Directorate,Department,Expenditure Type,Ref.Doc.1,Vendor Name,Expenditure Amount (exc VAT),Payment Date
Assurance,Assurance,Other Indirect Employee Expens,80007612,LBI MAYOR'S CHARITY,70.00,23/12/2016
Assurance,Assurance,Other Indirect Employee Expens,80007232,MAYOR OF BRENT'S CHARITY APPEA,70.00,06/12/2016
Assurance,Assurance,Other Indirect Employee Expens,80007328,NORWOOD,200.00,09/12/2016
Assurance,Assurance,Postage,10013545,ROYAL MAIL GROUP LIMITED,"1,085.44",16/12/2016
Assurance,Assurance,Postage,60067314,ROYAL MAIL GROUP LIMITED,"1,009.60",02/12/2016
Assurance,Assurance,Postage,60067486,ROYAL MAIL GROUP LIMITED,94.00,06/12/2016
Assurance,Assurance,Professional Services,60068338,ELECTORAL REFORM SERVICES,"2,905.85",28/12/2016
Assurance,Assurance,Professional Services,60069268,ELECTORAL REFORM SERVICES,"3,661.45",28/12/2016
Assurance,Assurance,Professional Services,80007109,HENDON SEA TRAINING CORPS,580.00,02/12/2016
Assurance,Assurance,Professional Services,60063698,PRICEWATERHOUSE COOPERS,"41,662.00",06/12/2016
Assurance,Assurance,Professional Services,60067704,PRICEWATERHOUSE COOPERS,"37,849.43",28/12/2016
Assurance,Assurance,Professional Services,80007106,THE BARNET BAND,200.00,02/12/2016
Assurance,Assurance,Publications,60068933,REDACTED - PERSONAL DATA,250.00,22/12/2016
Assurance,Assurance,Rents,60067755,BARNET FC COMMUNITY TRUST,400.00,07/12/2016
Assurance,Assurance,Rents,60068451,TRINITY CHURCH MILL HILL,624.30,16/12/2016
Assurance,Assurance,Subscriptions,80007113,THE INFORMATION COMMISSIONER,35.00,02/12/2016
Assurance,Assurance,Subscriptions,80007114,THE INFORMATION COMMISSIONER,35.00,02/12/2016
Assurance,Assurance,Subscriptions,80007209,THE INFORMATION COMMISSIONER,35.00,06/12/2016
Assurance,Assurance,Training,60066437,ASSOCIATION OF DEMOCRATIC SERVICES OFFIC,327.25,21/12/2016
Assurance,Assurance,Training,60067188,ASSOCIATION OF DEMOCRATIC SERVICES OFFIC,660.00,05/12/2016
Assurance,Assurance,Training,60064732,SKILLS TRAINING CENTRE LTD,130.00,16/12/2016
Assurance,Assurance,Translation Exp / Interpret,60067539,PRIME PRODUCTION LTD,39.50,05/12/2016
Assurance,Assurance,Translation Exp / Interpret,60067547,PRIME PRODUCTION LTD,69.50,05/12/2016
Assurance,Assurance,Translation Exp / Interpret,60067564,PRIME PRODUCTION LTD,135.00,12/12/2016
Assurance,Assurance,Translation Exp / Interpret,60067589,PRIME PRODUCTION LTD,39.50,05/12/2016
Central Expenses,Central Expenses,Insurance Claims,80007558,3D REHAB,50.00,21/12/2016
Central Expenses,Central Expenses,Insurance Claims,80007160,ADMIRAL LAW LTD CLIENT ACCOUNT,"2,530.00",05/12/2016
Central Expenses,Central Expenses,Insurance Claims,80007230,BARKER BOOTH & EASTWOOD,940.00,07/12/2016
Central Expenses,Central Expenses,Insurance Claims,80007245,BARKER BOOTH & EASTWOOD,"7,042.00",09/12/2016
Central Expenses,Central Expenses,Insurance Claims,80007190,BREARLEYS SOLICITORS,"1,108.00",06/12/2016
Central Expenses,Central Expenses,Insurance Claims,80007176,BROWNE JACOBSON SOLS.,"9,300.00",05/12/2016
Central Expenses,Central Expenses,Insurance Claims,80007246,BROWNE JACOBSON SOLS.,"50,000.00",12/12/2016
Central Expenses,Central Expenses,Insurance Claims,80007637,BROWNE JACOBSON SOLS.,"35,000.00",28/12/2016
Central Expenses,Central Expenses,Insurance Claims,80007136,COHEN CRAMER SOLICITORS,"22,813.00",06/12/2016
Central Expenses,Central Expenses,Insurance Claims,80007116,DAVID PHILLIPS & PARTNERS,810.00,06/12/2016
Central Expenses,Central Expenses,Insurance Claims,80007196,DAVID PHILLIPS & PARTNERS,"5,748.76",06/12/2016
Central Expenses,Central Expenses,Insurance Claims,80007193,DEVONSHIRE SOLICITORS,"8,750.00",06/12/2016
Central Expenses,Central Expenses,Insurance Claims,80007137,DWP COMPENSATION RECOVERY UNIT,"1,758.00",06/12/2016
Central Expenses,Central Expenses,Insurance Claims,80007139,DWP COMPENSATION RECOVERY UNIT,637.00,06/12/2016
Central Expenses,Central Expenses,Insurance Claims,80007247,DWP COMPENSATION RECOVERY UNIT,647.00,09/12/2016
Central Expenses,Central Expenses,Insurance Claims,80007462,DWP COMPENSATION RECOVERY UNIT,627.00,19/12/2016
Central Expenses,Central Expenses,Insurance Claims,80007587,DWP COMPENSATION RECOVERY UNIT,842.00,23/12/2016
Central Expenses,Central Expenses,Insurance Claims,80007203,HML HATHAWAYS,"13,000.00",06/12/2016
Central Expenses,Central Expenses,Insurance Claims,80007431,JINNAH SOLICITORS,"6,489.37",16/12/2016
Central Expenses,Central Expenses,Insurance Claims,60067500,JOHNSON AUSTIN PARTNERSHIP LLP,225.00,07/12/2016
Central Expenses,Central Expenses,Insurance Claims,80007504,LYONS SOLICITORS,"2,764.26",21/12/2016
Central Expenses,Central Expenses,Insurance Claims,80007551,MCKEAG & CO,"2,461.19",22/12/2016
Central Expenses,Central Expenses,Insurance Claims,80007547,PRODDOW MACKAY LTD,266.54,22/12/2016
Central Expenses,Central Expenses,Insurance Claims,80007162,ROMAIN COLEMAN,"1,560.00",06/12/2016
Central Expenses,Central Expenses,Insurance Claims,80007163,ROMAIN COLEMAN,"12,500.00",06/12/2016
Central Expenses,Central Expenses,Insurance Claims,80007250,ROMAIN COLEMAN,"1,060.00",09/12/2016
Central Expenses,Central Expenses,Insurance Claims,80007367,ROYAL FREE LONDON NHS TRUST,25.00,19/12/2016
Central Expenses,Central Expenses,Insurance Claims,80007238,RTA ASSISTANCE LIMITED,"1,000.00",09/12/2016
Central Expenses,Central Expenses,Insurance Claims,80007449,SCOTT REES & CO SOLICITORS,"12,437.00",19/12/2016
Central Expenses,Central Expenses,Insurance Claims,80007263,THE VILLAGE SURGERY,50.00,09/12/2016
Central Expenses,Central Expenses,Insurance Claims,80007138,TRADE UNION LEGAL LLP,"10,000.00",06/12/2016
Central Expenses,Central Expenses,Insurance Claims,80007430,TRADE UNION LEGAL LLP,"10,297.56",19/12/2016
Central Expenses,Central Expenses,Insurance Premiums,80007418,GALLAGHER BASSETT,"6,350.00",19/12/2016
Central Expenses,Central Expenses,Other Establishments - Third P,EBX0148788,ENVIRONMENT AGENCY,"76,899.75",16/12/2016
Central Expenses,Central Expenses,Other Establishments - Third P,EBX0148712,LEE VALLEY REGIONAL PARK AUTH.,"32,219.58",15/12/2016
Central Expenses,Central Expenses,Other Establishments - Third P,EBX0149283,LONDON PENSIONS FUND AUTHORITY,"49,627.80",20/12/2016
Central Expenses,Central Expenses,Other Establishments - Third P,EBX0146038,TRANSPORT TRADING LIMITED,"3,866,953.00",01/12/2016
Commercial,Customer Support Group,Building Repairs & Maintenance,60067735,ADAMS ENVIRONMENTAL LTD,500.00,22/12/2016
Commercial,Customer Support Group,Building Repairs & Maintenance,60068998,AJS LTD,78.40,22/12/2016
Commercial,Customer Support Group,Building Repairs & Maintenance,60068999,AJS LTD,94.08,22/12/2016
Commercial,Customer Support Group,Building Repairs & Maintenance,60069006,AJS LTD,94.08,22/12/2016
Commercial,Customer Support Group,Building Repairs & Maintenance,60069007,AJS LTD,94.08,22/12/2016
Commercial,Customer Support Group,Building Repairs & Maintenance,60069012,AJS LTD,266.56,22/12/2016
Commercial,Customer Support Group,Building Repairs & Maintenance,60069028,AJS LTD,133.28,22/12/2016
Commercial,Customer Support Group,Building Repairs & Maintenance,60069031,AJS LTD,86.24,22/12/2016
Commercial,Customer Support Group,Building Repairs & Maintenance,60069034,AJS LTD,611.52,22/12/2016
Commercial,Customer Support Group,Building Repairs & Maintenance,60069044,AJS LTD,164.64,22/12/2016
Commercial,Customer Support Group,Building Repairs & Maintenance,60069053,AJS LTD,125.44,22/12/2016
Commercial,Customer Support Group,Building Repairs & Maintenance,60069055,AJS LTD,296.87,28/12/2016
Commercial,Customer Support Group,Building Repairs & Maintenance,60069060,AJS LTD,86.24,22/12/2016
Commercial,Customer Support Group,Building Repairs & Maintenance,60069063,AJS LTD,125.44,22/12/2016
Commercial,Customer Support Group,Building Repairs & Maintenance,60069064,AJS LTD,62.72,22/12/2016
Commercial,Customer Support Group,Building Repairs & Maintenance,60069066,AJS LTD,150.00,22/12/2016
Commercial,Customer Support Group,Building Repairs & Maintenance,60069073,AJS LTD,376.32,22/12/2016
Commercial,Customer Support Group,Building Repairs & Maintenance,60069077,AJS LTD,296.87,22/12/2016
Commercial,Customer Support Group,Building Repairs & Maintenance,60069094,AJS LTD,94.08,22/12/2016
Commercial,Customer Support Group,Building Repairs & Maintenance,60069096,AJS LTD,109.86,22/12/2016
Commercial,Customer Support Group,Building Repairs & Maintenance,60069105,AJS LTD,321.44,22/12/2016
Commercial,Customer Support Group,Building Repairs & Maintenance,60069107,AJS LTD,101.92,22/12/2016
Commercial,Customer Support Group,Building Repairs & Maintenance,60069114,AJS LTD,196.00,22/12/2016
Commercial,Customer Support Group,Building Repairs & Maintenance,60069116,AJS LTD,141.12,22/12/2016
Commercial,Customer Support Group,Building Repairs & Maintenance,60069149,AJS LTD,203.84,23/12/2016
Commercial,Customer Support Group,Building Repairs & Maintenance,60069203,AJS LTD,188.16,23/12/2016
Commercial,Customer Support Group,Building Repairs & Maintenance,60068218,HERTEL (UK) LTD,500.00,12/12/2016
Commercial,Customer Support Group,Building Repairs & Maintenance,60068262,HERTEL (UK) LTD,268.00,21/12/2016
Commercial,Customer Support Group,Building Repairs & Maintenance,60068278,HERTEL (UK) LTD,321.00,12/12/2016
Commercial,Customer Support Group,Building Repairs & Maintenance,60069207,HERTEL (UK) LTD,34.91,28/12/2016
Commercial,Customer Support Group,Building Repairs & Maintenance,60069208,HERTEL (UK) LTD,34.91,28/12/2016
Commercial,Customer Support Group,Building Repairs & Maintenance,60069210,HERTEL (UK) LTD,34.91,28/12/2016
Commercial,Customer Support Group,Building Repairs & Maintenance,60069214,HERTEL (UK) LTD,34.91,28/12/2016
Commercial,Customer Support Group,Building Repairs & Maintenance,60069217,HERTEL (UK) LTD,34.91,28/12/2016
Commercial,Customer Support Group,Building Repairs & Maintenance,60069220,HERTEL (UK) LTD,34.91,28/12/2016
Commercial,Customer Support Group,Building Repairs & Maintenance,60069221,HERTEL (UK) LTD,34.91,28/12/2016
Commercial,Customer Support Group,Building Repairs & Maintenance,60069222,HERTEL (UK) LTD,34.91,28/12/2016
Commercial,Customer Support Group,Building Repairs & Maintenance,60069223,HERTEL (UK) LTD,34.91,28/12/2016
Commercial,Customer Support Group,Building Repairs & Maintenance,60069226,HERTEL (UK) LTD,34.91,28/12/2016
Commercial,Customer Support Group,Building Repairs & Maintenance,60069232,HERTEL (UK) LTD,34.91,28/12/2016
Commercial,Customer Support Group,Building Repairs & Maintenance,60069234,HERTEL (UK) LTD,34.91,28/12/2016
Commercial,Customer Support Group,Building Repairs & Maintenance,60069238,HERTEL (UK) LTD,133.00,28/12/2016
Commercial,Customer Support Group,Building Repairs & Maintenance,60069239,HERTEL (UK) LTD,34.91,28/12/2016
Commercial,Customer Support Group,Building Repairs & Maintenance,60069242,HERTEL (UK) LTD,34.91,28/12/2016
Commercial,Customer Support Group,Building Repairs & Maintenance,60069243,HERTEL (UK) LTD,34.91,28/12/2016
Commercial,Customer Support Group,Building Repairs & Maintenance,60069244,HERTEL (UK) LTD,34.91,28/12/2016
Commercial,Customer Support Group,Building Repairs & Maintenance,60069249,HERTEL (UK) LTD,34.91,28/12/2016
Commercial,Customer Support Group,Building Repairs & Maintenance,60069251,HERTEL (UK) LTD,34.91,28/12/2016
Commercial,Customer Support Group,Building Repairs & Maintenance,60069253,HERTEL (UK) LTD,34.91,28/12/2016
Commercial,Customer Support Group,Building Repairs & Maintenance,60069254,HERTEL (UK) LTD,34.91,28/12/2016
Commercial,Customer Support Group,Building Repairs & Maintenance,60069255,HERTEL (UK) LTD,34.91,28/12/2016
Commercial,Customer Support Group,Building Repairs & Maintenance,60069260,HERTEL (UK) LTD,34.91,28/12/2016
Commercial,Customer Support Group,Building Repairs & Maintenance,60069262,HERTEL (UK) LTD,133.00,28/12/2016
Commercial,Customer Support Group,Building Repairs & Maintenance,60069270,HERTEL (UK) LTD,34.91,28/12/2016
Commercial,Customer Support Group,Building Repairs & Maintenance,60069273,HERTEL (UK) LTD,"3,681.52",28/12/2016
Commercial,Customer Support Group,Building Repairs & Maintenance,60069275,HERTEL (UK) LTD,34.91,28/12/2016
Commercial,Customer Support Group,Building Repairs & Maintenance,60069276,HERTEL (UK) LTD,119.70,28/12/2016
Commercial,Customer Support Group,Building Repairs & Maintenance,60069280,HERTEL (UK) LTD,34.91,28/12/2016
Commercial,Customer Support Group,Building Repairs & Maintenance,60069281,HERTEL (UK) LTD,34.91,28/12/2016
Commercial,Customer Support Group,Building Repairs & Maintenance,60069285,HERTEL (UK) LTD,34.91,28/12/2016
Commercial,Customer Support Group,Building Repairs & Maintenance,60069286,HERTEL (UK) LTD,34.91,28/12/2016
Commercial,Customer Support Group,Building Repairs & Maintenance,60069292,HERTEL (UK) LTD,34.91,28/12/2016
Commercial,Customer Support Group,Building Repairs & Maintenance,60069294,HERTEL (UK) LTD,34.91,28/12/2016
Commercial,Customer Support Group,Building Repairs & Maintenance,60069298,HERTEL (UK) LTD,34.91,28/12/2016
Commercial,Customer Support Group,Building Repairs & Maintenance,60069299,HERTEL (UK) LTD,34.91,28/12/2016
Commercial,Customer Support Group,Building Repairs & Maintenance,60069301,HERTEL (UK) LTD,34.91,28/12/2016
Commercial,Customer Support Group,Building Repairs & Maintenance,60069303,HERTEL (UK) LTD,34.91,28/12/2016
Commercial,Customer Support Group,Building Repairs & Maintenance,60069311,HERTEL (UK) LTD,34.91,28/12/2016
Commercial,Customer Support Group,Building Repairs & Maintenance,60069321,HERTEL (UK) LTD,34.91,28/12/2016
Commercial,Customer Support Group,Building Repairs & Maintenance,60069324,HERTEL (UK) LTD,34.91,28/12/2016
Commercial,Customer Support Group,Building Repairs & Maintenance,60069328,HERTEL (UK) LTD,199.50,28/12/2016
Commercial,Customer Support Group,Building Repairs & Maintenance,60069330,HERTEL (UK) LTD,34.91,28/12/2016
Commercial,Customer Support Group,Building Repairs & Maintenance,60069334,HERTEL (UK) LTD,34.91,28/12/2016
Commercial,Customer Support Group,Building Repairs & Maintenance,60069335,HERTEL (UK) LTD,34.91,28/12/2016
Commercial,Customer Support Group,Building Repairs & Maintenance,60069338,HERTEL (UK) LTD,34.91,28/12/2016
Commercial,Customer Support Group,Building Repairs & Maintenance,60069339,HERTEL (UK) LTD,34.91,28/12/2016
Commercial,Customer Support Group,Building Repairs & Maintenance,60069341,HERTEL (UK) LTD,34.91,28/12/2016
Commercial,Customer Support Group,Building Repairs & Maintenance,60069343,HERTEL (UK) LTD,34.91,28/12/2016
Commercial,Customer Support Group,Building Repairs & Maintenance,60069344,HERTEL (UK) LTD,34.91,28/12/2016
Commercial,Customer Support Group,Building Repairs & Maintenance,60069345,HERTEL (UK) LTD,34.91,28/12/2016
Commercial,Customer Support Group,Building Repairs & Maintenance,60069347,HERTEL (UK) LTD,34.91,28/12/2016
Commercial,Customer Support Group,Building Repairs & Maintenance,60069348,HERTEL (UK) LTD,34.91,28/12/2016
Commercial,Customer Support Group,Building Repairs & Maintenance,60069349,HERTEL (UK) LTD,34.91,28/12/2016
Commercial,Customer Support Group,Building Repairs & Maintenance,60069351,HERTEL (UK) LTD,34.91,28/12/2016
Commercial,Customer Support Group,Building Repairs & Maintenance,60069355,HERTEL (UK) LTD,34.91,28/12/2016
Commercial,Customer Support Group,Building Repairs & Maintenance,60069357,HERTEL (UK) LTD,34.91,28/12/2016
Commercial,Customer Support Group,Building Repairs & Maintenance,60069369,HERTEL (UK) LTD,34.91,28/12/2016
Commercial,Customer Support Group,Building Repairs & Maintenance,60069371,HERTEL (UK) LTD,34.91,28/12/2016
Commercial,Customer Support Group,Building Repairs & Maintenance,60069379,HERTEL (UK) LTD,34.91,28/12/2016
Commercial,Customer Support Group,Building Repairs & Maintenance,60069381,HERTEL (UK) LTD,34.91,28/12/2016
Commercial,Customer Support Group,Building Repairs & Maintenance,60069384,HERTEL (UK) LTD,34.91,28/12/2016
Commercial,Customer Support Group,Building Repairs & Maintenance,60069386,HERTEL (UK) LTD,34.91,28/12/2016
Commercial,Customer Support Group,Building Repairs & Maintenance,60068143,KENT COUNTY COUNCIL (KCS),10.37,23/12/2016
Commercial,Customer Support Group,Building Repairs & Maintenance,60051219,LIFT & ENGINEERING SERVICES LTD,58.00,09/12/2016
Commercial,Customer Support Group,Building Repairs & Maintenance,60067094,LIFT & ENGINEERING SERVICES LTD,232.00,16/12/2016
Commercial,Customer Support Group,Building Repairs & Maintenance,60068258,LIFT & ENGINEERING SERVICES LTD,141.30,13/12/2016
Commercial,Customer Support Group,Building Repairs & Maintenance,60069331,LIFT & ENGINEERING SERVICES LTD,"4,800.00",28/12/2016
Commercial,Customer Support Group,Building Repairs & Maintenance,80007476,MERIT HOLDINGS,"3,956.50",20/12/2016
Commercial,Customer Support Group,Building Repairs & Maintenance,60065863,OAKRAY LIMITED,391.42,09/12/2016
Commercial,Customer Support Group,Building Repairs & Maintenance,60068486,OAKRAY LIMITED,56.00,28/12/2016
Commercial,Customer Support Group,Building Repairs & Maintenance,60068487,OAKRAY LIMITED,64.00,28/12/2016
Commercial,Customer Support Group,Building Repairs & Maintenance,60068493,OAKRAY LIMITED,72.00,28/12/2016
Commercial,Customer Support Group,Building Repairs & Maintenance,60068494,OAKRAY LIMITED,"1,355.00",28/12/2016
Commercial,Customer Support Group,Building Repairs & Maintenance,60068495,OAKRAY LIMITED,64.00,28/12/2016
Commercial,Customer Support Group,Building Repairs & Maintenance,60068496,OAKRAY LIMITED,80.00,28/12/2016
Commercial,Customer Support Group,Building Repairs & Maintenance,60068503,OAKRAY LIMITED,388.65,28/12/2016
Commercial,Customer Support Group,Building Repairs & Maintenance,60068511,OAKRAY LIMITED,72.00,28/12/2016
Commercial,Customer Support Group,Building Repairs & Maintenance,60068513,OAKRAY LIMITED,64.00,28/12/2016
Commercial,Customer Support Group,Building Repairs & Maintenance,60068514,OAKRAY LIMITED,64.00,28/12/2016
Commercial,Customer Support Group,Building Repairs & Maintenance,60068515,OAKRAY LIMITED,841.69,28/12/2016
Commercial,Customer Support Group,Building Repairs & Maintenance,60068518,OAKRAY LIMITED,80.00,28/12/2016
Commercial,Customer Support Group,Building Repairs & Maintenance,60068519,OAKRAY LIMITED,72.00,28/12/2016
Commercial,Customer Support Group,Building Repairs & Maintenance,60068521,OAKRAY LIMITED,64.00,28/12/2016
Commercial,Customer Support Group,Building Repairs & Maintenance,60068523,OAKRAY LIMITED,72.00,28/12/2016
Commercial,Customer Support Group,Building Repairs & Maintenance,60068528,OAKRAY LIMITED,104.00,28/12/2016
Commercial,Customer Support Group,Building Repairs & Maintenance,60068532,OAKRAY LIMITED,88.00,28/12/2016
Commercial,Customer Support Group,Building Repairs & Maintenance,60068534,OAKRAY LIMITED,72.00,28/12/2016
Commercial,Customer Support Group,Building Repairs & Maintenance,60068536,OAKRAY LIMITED,142.86,28/12/2016
Commercial,Customer Support Group,Building Repairs & Maintenance,60068537,OAKRAY LIMITED,64.00,28/12/2016
Commercial,Customer Support Group,Building Repairs & Maintenance,60068544,OAKRAY LIMITED,"2,657.95",28/12/2016
Commercial,Customer Support Group,Building Repairs & Maintenance,60068545,OAKRAY LIMITED,72.00,28/12/2016
Commercial,Customer Support Group,Building Repairs & Maintenance,60068548,OAKRAY LIMITED,64.00,28/12/2016
Commercial,Customer Support Group,Building Repairs & Maintenance,60068550,OAKRAY LIMITED,64.00,28/12/2016
Commercial,Customer Support Group,Building Repairs & Maintenance,60068551,OAKRAY LIMITED,72.00,28/12/2016
Commercial,Customer Support Group,Building Repairs & Maintenance,60068553,OAKRAY LIMITED,88.00,28/12/2016
Commercial,Customer Support Group,Building Repairs & Maintenance,60068556,OAKRAY LIMITED,81.62,28/12/2016
Commercial,Customer Support Group,Building Repairs & Maintenance,60068557,OAKRAY LIMITED,190.85,28/12/2016
Commercial,Customer Support Group,Building Repairs & Maintenance,60068558,OAKRAY LIMITED,352.00,28/12/2016
Commercial,Customer Support Group,Building Repairs & Maintenance,60068560,OAKRAY LIMITED,72.00,28/12/2016
Commercial,Customer Support Group,Building Repairs & Maintenance,60068568,OAKRAY LIMITED,72.00,28/12/2016
Commercial,Customer Support Group,Building Repairs & Maintenance,60068572,OAKRAY LIMITED,56.00,28/12/2016
Commercial,Customer Support Group,Building Repairs & Maintenance,60068573,OAKRAY LIMITED,64.00,28/12/2016
Commercial,Customer Support Group,Building Repairs & Maintenance,60068580,OAKRAY LIMITED,64.00,28/12/2016
Commercial,Customer Support Group,Building Repairs & Maintenance,60068581,OAKRAY LIMITED,88.00,28/12/2016
Commercial,Customer Support Group,Building Repairs & Maintenance,60068582,OAKRAY LIMITED,80.00,28/12/2016
Commercial,Customer Support Group,Building Repairs & Maintenance,60068583,OAKRAY LIMITED,56.00,28/12/2016
Commercial,Customer Support Group,Building Repairs & Maintenance,60068584,OAKRAY LIMITED,64.00,28/12/2016
Commercial,Customer Support Group,Building Repairs & Maintenance,60068586,OAKRAY LIMITED,80.00,28/12/2016
Commercial,Customer Support Group,Building Repairs & Maintenance,60068591,OAKRAY LIMITED,64.00,28/12/2016
Commercial,Customer Support Group,Building Repairs & Maintenance,60068601,OAKRAY LIMITED,192.00,28/12/2016
Commercial,Customer Support Group,Building Repairs & Maintenance,60068603,OAKRAY LIMITED,64.00,28/12/2016
Commercial,Customer Support Group,Building Repairs & Maintenance,60068607,OAKRAY LIMITED,120.11,28/12/2016
Commercial,Customer Support Group,Building Repairs & Maintenance,60068608,OAKRAY LIMITED,72.00,28/12/2016
Commercial,Customer Support Group,Building Repairs & Maintenance,60068614,OAKRAY LIMITED,72.00,28/12/2016
Commercial,Customer Support Group,Building Repairs & Maintenance,60068616,OAKRAY LIMITED,96.00,28/12/2016
Commercial,Customer Support Group,Building Repairs & Maintenance,60068618,OAKRAY LIMITED,94.59,28/12/2016
Commercial,Customer Support Group,Building Repairs & Maintenance,60068645,OAKRAY LIMITED,80.00,28/12/2016
Commercial,Customer Support Group,Building Repairs & Maintenance,60068650,OAKRAY LIMITED,80.00,28/12/2016
Commercial,Customer Support Group,Building Repairs & Maintenance,60068660,OAKRAY LIMITED,64.00,28/12/2016
Commercial,Customer Support Group,Building Repairs & Maintenance,60068683,OAKRAY LIMITED,64.00,28/12/2016
Commercial,Customer Support Group,Building Repairs & Maintenance,60068707,OAKRAY LIMITED,431.49,23/12/2016
Commercial,Customer Support Group,Building Repairs & Maintenance,60068733,OAKRAY LIMITED,80.00,28/12/2016
Commercial,Customer Support Group,Building Repairs & Maintenance,60067505,RGE SERVICES,257.10,01/12/2016
Commercial,Customer Support Group,Building Repairs & Maintenance,60067507,RGE SERVICES,73.42,15/12/2016
Commercial,Customer Support Group,Building Repairs & Maintenance,60067510,RGE SERVICES,"1,371.89",01/12/2016
Commercial,Customer Support Group,Building Repairs & Maintenance,60067514,RGE SERVICES,348.62,01/12/2016
Commercial,Customer Support Group,Building Repairs & Maintenance,60067515,RGE SERVICES,47.03,01/12/2016
Commercial,Customer Support Group,Building Repairs & Maintenance,60067520,RGE SERVICES,236.13,01/12/2016
Commercial,Customer Support Group,Building Repairs & Maintenance,60067521,RGE SERVICES,63.27,13/12/2016
Commercial,Customer Support Group,Building Repairs & Maintenance,60067522,RGE SERVICES,132.53,13/12/2016
Commercial,Customer Support Group,Building Repairs & Maintenance,60067523,RGE SERVICES,47.03,01/12/2016
Commercial,Customer Support Group,Building Repairs & Maintenance,60067524,RGE SERVICES,94.05,21/12/2016
Commercial,Customer Support Group,Building Repairs & Maintenance,60067525,RGE SERVICES,47.03,13/12/2016
Commercial,Customer Support Group,Building Repairs & Maintenance,60067527,RGE SERVICES,85.50,13/12/2016
Commercial,Customer Support Group,Building Repairs & Maintenance,60067530,RGE SERVICES,64.13,13/12/2016
Commercial,Customer Support Group,Building Repairs & Maintenance,60067537,RGE SERVICES,75.72,01/12/2016
Commercial,Customer Support Group,Building Repairs & Maintenance,60067540,RGE SERVICES,25.65,21/12/2016
Commercial,Customer Support Group,Building Repairs & Maintenance,60067546,RGE SERVICES,363.43,16/12/2016
Commercial,Customer Support Group,Building Repairs & Maintenance,60067551,RGE SERVICES,25.65,01/12/2016
Commercial,Customer Support Group,Building Repairs & Maintenance,60067552,RGE SERVICES,68.41,13/12/2016
Commercial,Customer Support Group,Building Repairs & Maintenance,60067553,RGE SERVICES,75.72,01/12/2016
Commercial,Customer Support Group,Building Repairs & Maintenance,60067555,RGE SERVICES,109.83,01/12/2016
Commercial,Customer Support Group,Building Repairs & Maintenance,60067556,RGE SERVICES,132.53,21/12/2016
Commercial,Customer Support Group,Building Repairs & Maintenance,60067558,RGE SERVICES,47.03,01/12/2016
Commercial,Customer Support Group,Building Repairs & Maintenance,60067562,RGE SERVICES,47.03,01/12/2016
Commercial,Customer Support Group,Building Repairs & Maintenance,60067565,RGE SERVICES,790.05,01/12/2016
Commercial,Customer Support Group,Building Repairs & Maintenance,60067566,RGE SERVICES,166.73,21/12/2016
Commercial,Customer Support Group,Building Repairs & Maintenance,60067567,RGE SERVICES,"1,327.30",01/12/2016
Commercial,Customer Support Group,Building Repairs & Maintenance,60067568,RGE SERVICES,64.13,13/12/2016
Commercial,Customer Support Group,Building Repairs & Maintenance,60067569,RGE SERVICES,173.57,13/12/2016
Commercial,Customer Support Group,Building Repairs & Maintenance,60067570,RGE SERVICES,106.88,13/12/2016
Commercial,Customer Support Group,Building Repairs & Maintenance,60067571,RGE SERVICES,63.27,13/12/2016
Commercial,Customer Support Group,Building Repairs & Maintenance,60067572,RGE SERVICES,84.65,13/12/2016
Commercial,Customer Support Group,Building Repairs & Maintenance,60067573,RGE SERVICES,166.73,01/12/2016
Commercial,Customer Support Group,Building Repairs & Maintenance,60067574,RGE SERVICES,124.00,01/12/2016
Commercial,Customer Support Group,Building Repairs & Maintenance,60067577,RGE SERVICES,84.65,13/12/2016
Commercial,Customer Support Group,Building Repairs & Maintenance,60067578,RGE SERVICES,64.13,21/12/2016
Commercial,Customer Support Group,Building Repairs & Maintenance,60067579,RGE SERVICES,98.33,01/12/2016
Commercial,Customer Support Group,Building Repairs & Maintenance,60067581,RGE SERVICES,47.03,13/12/2016
Commercial,Customer Support Group,Building Repairs & Maintenance,60067582,RGE SERVICES,47.03,01/12/2016
Commercial,Customer Support Group,Building Repairs & Maintenance,60067583,RGE SERVICES,47.03,01/12/2016
Commercial,Customer Support Group,Building Repairs & Maintenance,60067592,RGE SERVICES,268.40,01/12/2016
Commercial,Customer Support Group,Building Repairs & Maintenance,60067597,RGE SERVICES,25.65,13/12/2016
Commercial,Customer Support Group,Building Repairs & Maintenance,60067674,RGE SERVICES,76.26,02/12/2016
Commercial,Customer Support Group,Building Repairs & Maintenance,60067698,RGE SERVICES,136.71,02/12/2016
Commercial,Customer Support Group,Building Repairs & Maintenance,60067725,RGE SERVICES,47.03,05/12/2016
Commercial,Customer Support Group,Building Repairs & Maintenance,60067748,RGE SERVICES,62.00,22/12/2016
Commercial,Customer Support Group,Building Repairs & Maintenance,60067750,RGE SERVICES,117.80,22/12/2016
Commercial,Customer Support Group,Building Repairs & Maintenance,60067752,RGE SERVICES,163.95,22/12/2016
Commercial,Customer Support Group,Building Repairs & Maintenance,60067753,RGE SERVICES,198.08,28/12/2016
Commercial,Customer Support Group,Building Repairs & Maintenance,60067760,RGE SERVICES,37.90,22/12/2016
Commercial,Customer Support Group,Building Repairs & Maintenance,60067773,RGE SERVICES,93.00,22/12/2016
Commercial,Customer Support Group,Building Repairs & Maintenance,60067775,RGE SERVICES,62.00,22/12/2016
Commercial,Customer Support Group,Building Repairs & Maintenance,60067786,RGE SERVICES,58.56,22/12/2016
Commercial,Customer Support Group,Building Repairs & Maintenance,60067797,RGE SERVICES,237.48,22/12/2016
Commercial,Customer Support Group,Building Repairs & Maintenance,60067800,RGE SERVICES,151.77,22/12/2016
Commercial,Customer Support Group,Building Repairs & Maintenance,60067801,RGE SERVICES,64.96,22/12/2016
Commercial,Customer Support Group,Building Repairs & Maintenance,60067805,RGE SERVICES,240.50,22/12/2016
Commercial,Customer Support Group,Building Repairs & Maintenance,60067813,RGE SERVICES,64.13,28/12/2016
Commercial,Customer Support Group,Building Repairs & Maintenance,60067814,RGE SERVICES,62.00,22/12/2016
Commercial,Customer Support Group,Building Repairs & Maintenance,60067817,RGE SERVICES,62.00,22/12/2016
Commercial,Customer Support Group,Building Repairs & Maintenance,60067833,RGE SERVICES,82.81,22/12/2016
Commercial,Customer Support Group,Building Repairs & Maintenance,60067861,RGE SERVICES,111.15,13/12/2016
Commercial,Customer Support Group,Building Repairs & Maintenance,60068124,RGE SERVICES,842.78,22/12/2016
Commercial,Customer Support Group,Building Repairs & Maintenance,60068134,RGE SERVICES,63.27,16/12/2016
Commercial,Customer Support Group,Building Repairs & Maintenance,60068167,RGE SERVICES,"3,767.76",22/12/2016
Commercial,Customer Support Group,Building Repairs & Maintenance,60068169,RGE SERVICES,292.37,14/12/2016
Commercial,Customer Support Group,Building Repairs & Maintenance,60068170,RGE SERVICES,19.78,14/12/2016
Commercial,Customer Support Group,Building Repairs & Maintenance,60068181,RGE SERVICES,"2,480.65",22/12/2016
Commercial,Customer Support Group,Building Repairs & Maintenance,60068195,RGE SERVICES,62.00,28/12/2016
Commercial,Customer Support Group,Building Repairs & Maintenance,60068197,RGE SERVICES,86.90,28/12/2016
Commercial,Customer Support Group,Building Repairs & Maintenance,60068198,RGE SERVICES,72.98,28/12/2016
Commercial,Customer Support Group,Building Repairs & Maintenance,60068201,RGE SERVICES,"1,413.27",28/12/2016
Commercial,Customer Support Group,Building Repairs & Maintenance,60068206,RGE SERVICES,62.00,28/12/2016
Commercial,Customer Support Group,Building Repairs & Maintenance,60068214,RGE SERVICES,137.40,28/12/2016
Commercial,Customer Support Group,Building Repairs & Maintenance,60068215,RGE SERVICES,62.00,28/12/2016
Commercial,Customer Support Group,Building Repairs & Maintenance,60068221,RGE SERVICES,334.52,28/12/2016
Commercial,Customer Support Group,Building Repairs & Maintenance,60068222,RGE SERVICES,103.13,28/12/2016
Commercial,Customer Support Group,Building Repairs & Maintenance,60068229,RGE SERVICES,62.00,28/12/2016
Commercial,Customer Support Group,Building Repairs & Maintenance,60068245,RGE SERVICES,84.18,28/12/2016
Commercial,Customer Support Group,Building Repairs & Maintenance,60068247,RGE SERVICES,286.51,28/12/2016
Commercial,Customer Support Group,Building Repairs & Maintenance,60068269,RGE SERVICES,180.78,28/12/2016
Commercial,Customer Support Group,Building Repairs & Maintenance,60068271,RGE SERVICES,74.18,28/12/2016
Commercial,Customer Support Group,Building Repairs & Maintenance,60066228,S W BRUCE & CO LTD,144.00,01/12/2016
Commercial,Customer Support Group,Building Repairs & Maintenance,60069227,SECOM PLC,103.00,28/12/2016
Commercial,Customer Support Group,Building Repairs & Maintenance,60069295,SECOM PLC,89.00,28/12/2016
Commercial,Customer Support Group,Building Repairs & Maintenance,60069377,SECOM PLC,89.00,28/12/2016
Commercial,Customer Support Group,Building Repairs & Maintenance,60067276,TANN SYNCHRONOME LTD,"2,550.10",02/12/2016
Commercial,Customer Support Group,Building Repairs & Maintenance,60068178,THAMES WATER UTILITIES,5.32,12/12/2016
Commercial,Customer Support Group,Cleaning and domestic material,60067986,HERTFORDSHIRE SUPPLIES   COUNTY CO,285.80,07/12/2016
Commercial,Customer Support Group,Cleaning and domestic material,60067998,HERTFORDSHIRE SUPPLIES   COUNTY CO,71.90,07/12/2016
Commercial,Customer Support Group,Cleaning and domestic material,60068002,HERTFORDSHIRE SUPPLIES   COUNTY CO,136.30,07/12/2016
Commercial,Customer Support Group,Cleaning and domestic material,60068004,HERTFORDSHIRE SUPPLIES   COUNTY CO,"2,011.86",07/12/2016
Commercial,Customer Support Group,Cleaning and domestic material,60068014,HERTFORDSHIRE SUPPLIES   COUNTY CO,"1,041.75",07/12/2016
Commercial,Customer Support Group,Cleaning and domestic material,60068028,HERTFORDSHIRE SUPPLIES   COUNTY CO,99.50,07/12/2016
Commercial,Customer Support Group,Cleaning and domestic material,60068032,HERTFORDSHIRE SUPPLIES   COUNTY CO,90.00,07/12/2016
Commercial,Customer Support Group,Cleaning and domestic material,60068034,HERTFORDSHIRE SUPPLIES   COUNTY CO,623.40,07/12/2016
Commercial,Customer Support Group,Cleaning and domestic material,60068046,HERTFORDSHIRE SUPPLIES   COUNTY CO,12.70,07/12/2016
Commercial,Customer Support Group,Consultants Fees,60068217,VALUATION OFFICE AGENCY,"6,997.95",12/12/2016
Commercial,Customer Support Group,CSG Services Contract Payment,10013521,CAPITA BUSINESS SERVICES LTD,"-89,000.00",02/12/2016
Commercial,Customer Support Group,CSG Services Contract Payment,10013554,CAPITA BUSINESS SERVICES LTD,"19,089,468.93",19/12/2016
Commercial,Customer Support Group,CSG Services Contract Payment,10013562,CAPITA BUSINESS SERVICES LTD,"-10,000.00",28/12/2016
Commercial,Customer Support Group,CSG Services Contract Payment,60066188,CAPITA BUSINESS SERVICES LTD,"43,976.10",22/12/2016
Commercial,Customer Support Group,CSG Services Contract Payment,60066619,CAPITA BUSINESS SERVICES LTD,"8,879,241.83",02/12/2016
Commercial,Customer Support Group,CSG Services Contract Payment,60068299,CAPITA BUSINESS SERVICES LTD,"117,421.07",22/12/2016
Commercial,Customer Support Group,CSG Services Contract Payment,60068445,CAPITA BUSINESS SERVICES LTD,"183,464.00",22/12/2016
Commercial,Customer Support Group,CSG Services Contract Payment,60068692,CAPITA BUSINESS SERVICES LTD,"6,379,241.83",19/12/2016
Commercial,Customer Support Group,CSG Services Contract Payment,60068742,CAPITA BUSINESS SERVICES LTD,"280,102.25",19/12/2016
Commercial,Customer Support Group,CSG Services Contract Payment,60068777,CAPITA BUSINESS SERVICES LTD,"12,820.85",28/12/2016
Commercial,Customer Support Group,CSG Services Contract Payment,60068781,CAPITA BUSINESS SERVICES LTD,"1,982,525.00",19/12/2016
Commercial,Customer Support Group,CSG Services Contract Payment,60068789,CAPITA BUSINESS SERVICES LTD,"2,041,166.60",19/12/2016
Commercial,Customer Support Group,CSG Services Contract Payment,60068796,CAPITA BUSINESS SERVICES LTD,"48,410.88",28/12/2016
Commercial,Customer Support Group,CSG Services Contract Payment,60069119,CAPITA BUSINESS SERVICES LTD,"24,341.25",28/12/2016
Commercial,Customer Support Group,Electricity,60068180,BRITISH GAS BUSINESS,117.98,09/12/2016
Commercial,Customer Support Group,Electricity,60067187,BRITISH GAS BUSINESS(ELEC),634.93,15/12/2016
Commercial,Customer Support Group,Electricity,60067193,BRITISH GAS BUSINESS(ELEC),412.07,15/12/2016
Commercial,Customer Support Group,Electricity,60067207,BRITISH GAS BUSINESS(ELEC),479.32,15/12/2016
Commercial,Customer Support Group,Electricity,60067213,BRITISH GAS BUSINESS(ELEC),502.12,15/12/2016
Commercial,Customer Support Group,Electricity,60067215,BRITISH GAS BUSINESS(ELEC),443.55,15/12/2016
Commercial,Customer Support Group,Electricity,60067216,BRITISH GAS BUSINESS(ELEC),634.24,15/12/2016
Commercial,Customer Support Group,Electricity,60067217,BRITISH GAS BUSINESS(ELEC),591.73,15/12/2016
Commercial,Customer Support Group,Electricity,60066229,EDF ENERGY CUSTOMERS PLC,98.96,13/12/2016
Commercial,Customer Support Group,Electricity,60067419,E-ON ENERGY,69.23,14/12/2016
Commercial,Customer Support Group,Electricity,60067463,E-ON ENERGY,157.64,14/12/2016
Commercial,Customer Support Group,Electricity,60068417,E-ON ENERGY,136.84,14/12/2016
Commercial,Customer Support Group,Electricity,60068408,KENT COUNTY COUNCIL (KCS),772.26,15/12/2016
Commercial,Customer Support Group,Electricity,60068412,KENT COUNTY COUNCIL (KCS),582.99,15/12/2016
Commercial,Customer Support Group,Electricity,60068428,KENT COUNTY COUNCIL (KCS),784.50,15/12/2016
Commercial,Customer Support Group,Electricity,60068610,KENT COUNTY COUNCIL (KCS),"5,687.87",28/12/2016
Commercial,Customer Support Group,Electricity,60068688,KENT COUNTY COUNCIL (KCS),"5,786.34",28/12/2016
Commercial,Customer Support Group,Electricity,60069011,KENT COUNTY COUNCIL (KCS),396.74,28/12/2016
Commercial,Customer Support Group,Electricity,60069015,KENT COUNTY COUNCIL (KCS),"6,103.08",28/12/2016
Commercial,Customer Support Group,Electricity,60069075,KENT COUNTY COUNCIL (KCS),376.10,28/12/2016
Commercial,Customer Support Group,Equipment and Materials Purcha,60068085,DAY PLANT HIRE CO LIMITED,327.48,23/12/2016
Commercial,Customer Support Group,Equipment and Materials Purcha,60068385,HERTEL (UK) LTD,500.00,13/12/2016
Commercial,Customer Support Group,Equipment and Materials Purcha,60069240,HERTEL (UK) LTD,34.91,28/12/2016
Commercial,Customer Support Group,Equipment and Materials Purcha,60069337,HERTEL (UK) LTD,34.91,28/12/2016
Commercial,Customer Support Group,Equipment and Materials Purcha,60069167,INSTROTECH LTD,"2,094.99",28/12/2016
Commercial,Customer Support Group,Furniture-Purchase-Repair,60067209,ANGEL SPRINGS LTD,300.00,20/12/2016
Commercial,Customer Support Group,Furniture-Purchase-Repair,60067229,LYCO DIRECT LTD,96.50,21/12/2016
Commercial,Customer Support Group,Furniture-Purchase-Repair,60067444,LYCO DIRECT LTD,175.60,22/12/2016
Commercial,Customer Support Group,Furniture-Purchase-Repair,60067609,LYCO DIRECT LTD,119.00,23/12/2016
Commercial,Customer Support Group,Furniture-Purchase-Repair,60067816,LYCO DIRECT LTD,75.18,28/12/2016
Commercial,Customer Support Group,Furniture-Purchase-Repair,60067828,LYCO DIRECT LTD,50.52,28/12/2016
Commercial,Customer Support Group,Furniture-Purchase-Repair,10013559,SCREWFIX DIRECT LTD,20.83,22/12/2016
Commercial,Customer Support Group,Furniture-Purchase-Repair,10013560,SCREWFIX DIRECT LTD,79.12,22/12/2016
Commercial,Customer Support Group,Furniture-Purchase-Repair,60068059,SCREWFIX DIRECT LTD,62.05,12/12/2016
Commercial,Customer Support Group,Furniture-Purchase-Repair,60068097,SCREWFIX DIRECT LTD,47.12,14/12/2016
Commercial,Customer Support Group,Furniture-Purchase-Repair,60066249,SENATOR INTERNATIONAL,682.55,01/12/2016
Commercial,Customer Support Group,Furniture-Purchase-Repair,60067466,SENATOR INTERNATIONAL,"1,468.40",22/12/2016
Commercial,Customer Support Group,Gas,60065598,BRITISH GAS BUSINESS,115.42,07/12/2016
Commercial,Customer Support Group,Gas,60067397,KENT COUNTY COUNCIL (KCS),"6,687.11",05/12/2016
Commercial,Customer Support Group,Gas,60067449,KENT COUNTY COUNCIL (KCS),377.29,07/12/2016
Commercial,Customer Support Group,Gas,60067594,KENT COUNTY COUNCIL (KCS),82.77,05/12/2016
Commercial,Customer Support Group,Gas,60068415,KENT COUNTY COUNCIL (KCS),191.17,14/12/2016
Commercial,Customer Support Group,Gas,60068455,KENT COUNTY COUNCIL (KCS),231.82,15/12/2016
Commercial,Customer Support Group,Gas,60068462,KENT COUNTY COUNCIL (KCS),469.80,15/12/2016
Commercial,Customer Support Group,Gas,60068480,KENT COUNTY COUNCIL (KCS),320.27,22/12/2016
Commercial,Customer Support Group,Gas,60068708,KENT COUNTY COUNCIL (KCS),"3,100.97",28/12/2016
Commercial,Customer Support Group,Gas,60068793,KENT COUNTY COUNCIL (KCS),334.92,22/12/2016
Commercial,Customer Support Group,Gas,60068886,KENT COUNTY COUNCIL (KCS),523.30,28/12/2016
Commercial,Customer Support Group,Gas,60068888,KENT COUNTY COUNCIL (KCS),"4,810.36",28/12/2016
Commercial,Customer Support Group,Gas,60068967,KENT COUNTY COUNCIL (KCS),453.32,28/12/2016
Commercial,Customer Support Group,Gas,60068972,KENT COUNTY COUNCIL (KCS),141.45,28/12/2016
Commercial,Customer Support Group,Gas,60066226,TOTAL GAS & POWER LTD,"1,435.37",13/12/2016
Commercial,Customer Support Group,Gas,60068801,TOTAL GAS & POWER LTD,"3,056.94",22/12/2016
Commercial,Customer Support Group,Grounds maintenance,60069142,RIBBEX UK LTD,695.00,28/12/2016
Commercial,Customer Support Group,Operational Leases - Equipment,10013352,XEROX (UK) LTD,-832.96,06/12/2016
Commercial,Customer Support Group,Operational Leases - Equipment,10013353,XEROX (UK) LTD,"-1,419.19",06/12/2016
Commercial,Customer Support Group,Operational Leases - Equipment,10013354,XEROX (UK) LTD,"-1,514.27",06/12/2016
Commercial,Customer Support Group,Other Services,60068051,BLUE 9 SECURITY LIMITED,201.45,14/12/2016
Commercial,Customer Support Group,Other Services,60068058,BLUE 9 SECURITY LIMITED,"22,039.20",09/12/2016
Commercial,Customer Support Group,Other Services,60068089,BLUE 9 SECURITY LIMITED,"19,980.19",09/12/2016
Commercial,Customer Support Group,Other Services,60068095,BLUE 9 SECURITY LIMITED,53.72,14/12/2016
Commercial,Customer Support Group,Other Services,60068104,BLUE 9 SECURITY LIMITED,"1,828.49",09/12/2016
Commercial,Customer Support Group,Other Services,60068105,BLUE 9 SECURITY LIMITED,"11,210.40",09/12/2016
Commercial,Customer Support Group,Other Services,60068117,BLUE 9 SECURITY LIMITED,980.91,09/12/2016
Commercial,Customer Support Group,Other Services,60067790,LEASING PROGRAMMES LIMITED,"1,235.00",28/12/2016
Commercial,Customer Support Group,Postage,10013557,ROYAL MAIL GROUP LIMITED,-645.28,23/12/2016
Commercial,Customer Support Group,Postage,60067131,ROYAL MAIL GROUP LIMITED,"5,933.04",14/12/2016
Commercial,Customer Support Group,Postage,60067645,ROYAL MAIL GROUP LIMITED,"4,383.52",02/12/2016
Commercial,Customer Support Group,Postage,60068817,ROYAL MAIL GROUP LIMITED,"6,185.63",23/12/2016
Commercial,Customer Support Group,Postage,60068823,ROYAL MAIL GROUP LIMITED,"4,817.91",23/12/2016
Commercial,Customer Support Group,Postage,60068831,ROYAL MAIL GROUP LIMITED,293.08,23/12/2016
Commercial,Customer Support Group,Postage,60067591,TABBERS,172.80,09/12/2016
Commercial,Customer Support Group,Postage,10013355,XEROX (UK) LTD,-104.54,06/12/2016
Commercial,Customer Support Group,Postage,10013356,XEROX (UK) LTD,-238.84,06/12/2016
Commercial,Customer Support Group,Postage,60060203,XEROX (UK) LTD,176.73,06/12/2016
Commercial,Customer Support Group,Postage,60060228,XEROX (UK) LTD,272.98,06/12/2016
Commercial,Customer Support Group,Postage,60060231,XEROX (UK) LTD,862.30,06/12/2016
Commercial,Customer Support Group,Postage,60066312,XEROX (UK) LTD,185.57,06/12/2016
Commercial,Customer Support Group,Postage,60067107,XEROX (UK) LTD,"2,084.42",06/12/2016
Commercial,Customer Support Group,Professional Services,60066231,EQUITA LIMITED,141.00,12/12/2016
Commercial,Customer Support Group,Professional Services,60066611,EQUITA LIMITED,141.00,12/12/2016
Commercial,Customer Support Group,Rents,60068433,CANAL & RIVER TRUST,"2,000.00",14/12/2016
Commercial,Customer Support Group,Rents,60068132,DANCASTLE ASSOCIATES LIMITED,"187,500.00",09/12/2016
Commercial,Customer Support Group,Rubbish Collection,60064570,G.B.HOLDINGS LTD,130.00,15/12/2016
Commercial,Customer Support Group,Rubbish Collection,60068882,PREMIER SHREDDING,50.00,21/12/2016
Commercial,Customer Support Group,Rubbish Collection,60068997,PREMIER SHREDDING,63.00,21/12/2016
Commercial,Customer Support Group,Service Charges,10013556,MIDDLESEX UNIVERSITY,"76,984.80",21/12/2016
Commercial,Customer Support Group,Service Charges,60068899,MIDDLESEX UNIVERSITY,"85,143.59",21/12/2016
Commercial,Customer Support Group,Telephones Calls,60068187,BRITISH TELECOM PLC,114.90,12/12/2016
Commercial,Customer Support Group,Training,60067254,SKILLS TRAINING CENTRE LTD,655.00,05/12/2016
Commercial,Customer Support Group,Training,60068409,SKILLS TRAINING CENTRE LTD,250.00,16/12/2016
Commercial,Customer Support Group,Training,60068418,SKILLS TRAINING CENTRE LTD,170.00,16/12/2016
Commercial,Customer Support Group,Ttl IT & Comms,80007222,VODAFONE LTD (BILLS ONLY),"4,942.27",09/12/2016
Commercial,Customer Support Group,Water Services,60068236,AFFINITY WATER LIMITED,418.06,12/12/2016
Commercial,Customer Support Group,Water Services,60068624,AFFINITY WATER LIMITED,265.40,16/12/2016
Commercial,Customer Support Group,Water Services,60068714,AFFINITY WATER LIMITED,305.39,16/12/2016
Commercial,Customer Support Group,Water Services,60068437,ANGEL SPRINGS LTD,285.00,28/12/2016
Commercial,Customer Support Group,Water Services,60068477,ANGEL SPRINGS LTD,60.00,28/12/2016
Commercial,Customer Support Group,Water Services,60068423,THAMES WATER UTILITIES LIMITED,"3,170.31",16/12/2016
Commercial,Customer Support Group,Water Services,60068425,THAMES WATER UTILITIES LIMITED,438.45,14/12/2016
Commercial,HB LAW,Legal and Court Fees,60068207,LONDON BOROUGH OF HARROW,"183,260.00",15/12/2016
Commercial,HB LAW,Legal Disbursements,60068106,LONDON BOROUGH OF HARROW,"164,354.41",12/12/2016
Commercial,HB LAW,Legal Disbursements,60068112,LONDON BOROUGH OF HARROW,"104,490.29",12/12/2016
Commercial,Housing Needs Resources,Miscellaneous Expenses,60067083,THE BARNETGROUP LIMITED,"36,443.17",01/12/2016
Commercial,Housing Needs Resources,Miscellaneous Expenses,60067929,THE BARNETGROUP LIMITED,"77,364.00",21/12/2016
Commercial,Housing Needs Resources,Miscellaneous Expenses,60068350,THE BARNETGROUP LIMITED,"36,443.17",14/12/2016
Commercial,Housing Needs Resources,Non Education Staff GPay,60065291,THE BARNETGROUP LIMITED,"4,338.00",02/12/2016
Commercial,Housing Needs Resources,Other Services,60068284,THE BARNETGROUP LIMITED,"33,969.00",13/12/2016
Commercial,Housing Needs Resources,Private Contractors - Third Pa,60067109,THE BARNETGROUP LIMITED,"1,603,976.41",01/12/2016
Commercial,Housing Needs Resources,Private Contractors - Third Pa,60068303,THE BARNETGROUP LIMITED,"1,600,000.00",14/12/2016
Commercial,Housing Needs Resources,Private Contractors - Third Pa,60068305,THE BARNETGROUP LIMITED,"366,333.71",13/12/2016
Commercial,Housing Needs Resources,Reducing Demand,60065326,THE BARNETGROUP LIMITED,"11,695.00",02/12/2016
Commercial,Housing Needs Resources,Reducing Demand,60065367,THE BARNETGROUP LIMITED,"12,711.00",06/12/2016
Commercial,HRA,Consultants Fees,60067304,CONSULTCIH (T/A CIH CONSULTANCY),"1,275.00",02/12/2016
Commercial,HRA,Consultants Fees,60066885,PRIORITY ESTATES PROJECT LTD,"2,794.00",12/12/2016
Commercial,HRA,Consultants Fees,60066936,PRIORITY ESTATES PROJECT LTD,"1,362.07",13/12/2016
Commercial,HRA,Consultants Fees,60067988,THE BARNETGROUP LIMITED,852.11,07/12/2016
Commercial,HRA,Legal and Court Fees,60068832,THE BARNETGROUP LIMITED,"86,250.00",23/12/2016
Commercial,HRA,Non Education Staff GPay,60067602,THE BARNETGROUP LIMITED,"14,943.00",23/12/2016
Commercial,HRA,Other Services,20032803,THE BARNETGROUP LIMITED,"1,243,190.00",15/12/2016
Commercial,HRA,Other Services,20032804,THE BARNETGROUP LIMITED,"5,749,186.00",15/12/2016
Commercial,HRA,Other Services,60067102,THE BARNETGROUP LIMITED,"346,662.50",01/12/2016
Commercial,HRA,Other Services,60067113,THE BARNETGROUP LIMITED,"2,087,943.92",01/12/2016
Commercial,HRA,Other Services,60068234,THE BARNETGROUP LIMITED,"39,000.00",21/12/2016
Commercial,HRA,Other Services,60068302,THE BARNETGROUP LIMITED,"2,087,943.92",14/12/2016
Commercial,HRA,Other Services,60068353,THE BARNETGROUP LIMITED,"346,662.50",14/12/2016
Commercial,Parking & Infrastructure,Advertising,60068366,LONDON & ESSEX NEWSPAPERS LTD,600.00,28/12/2016
Commercial,Parking & Infrastructure,Advertising,60068358,NEWSQUEST (LONDON) LIMITED,650.00,28/12/2016
Commercial,Parking & Infrastructure,Electricity,60068066,BARNET LIGHTING SERVICES LTD,"448,308.17",08/12/2016
Commercial,Parking & Infrastructure,Equipment and Materials Purcha,60067262,GREENHAM TRADING LIMITED,419.17,22/12/2016
Commercial,Parking & Infrastructure,Equipment and Materials Purcha,60067281,GREENHAM TRADING LIMITED,387.57,22/12/2016
Commercial,Parking & Infrastructure,Equipment and Materials Purcha,60067517,LAFARGE TARMAC TRADING LIMITED,118.85,09/12/2016
Commercial,Parking & Infrastructure,Equipment and Materials Purcha,60067536,LAFARGE TARMAC TRADING LIMITED,116.99,09/12/2016
Commercial,Parking & Infrastructure,Equipment and Materials Purcha,60067542,LAFARGE TARMAC TRADING LIMITED,115.13,13/12/2016
Commercial,Parking & Infrastructure,Equipment and Materials Purcha,60067545,LAFARGE TARMAC TRADING LIMITED,122.56,05/12/2016
Commercial,Parking & Infrastructure,Equipment and Materials Purcha,60067549,LAFARGE TARMAC TRADING LIMITED,120.54,06/12/2016
Commercial,Parking & Infrastructure,Equipment and Materials Purcha,60067576,LAFARGE TARMAC TRADING LIMITED,124.42,09/12/2016
Commercial,Parking & Infrastructure,Equipment and Materials Purcha,60068135,LAFARGE TARMAC TRADING LIMITED,234.91,16/12/2016
Commercial,Parking & Infrastructure,Equipment and Materials Purcha,60068152,LAFARGE TARMAC TRADING LIMITED,122.56,20/12/2016
Commercial,Parking & Infrastructure,Equipment and Materials Purcha,60068158,LAFARGE TARMAC TRADING LIMITED,115.13,16/12/2016
Commercial,Parking & Infrastructure,Equipment and Materials Purcha,60068659,LAFARGE TARMAC TRADING LIMITED,118.85,23/12/2016
Commercial,Parking & Infrastructure,Equipment and Materials Purcha,60068709,LAFARGE TARMAC TRADING LIMITED,226.56,22/12/2016
Commercial,Parking & Infrastructure,Equipment and Materials Purcha,60066912,METDESK LTD,"5,200.00",15/12/2016
Commercial,Parking & Infrastructure,Equipment and Materials Purcha,60068208,NSL LTD,"8,530.17",13/12/2016
Commercial,Parking & Infrastructure,Equipment and Materials Purcha,60066679,PARKEON LIMITED,"7,230.00",09/12/2016
Commercial,Parking & Infrastructure,Miscellaneous Expenses,60068098,NSL LTD,"1,362.63",08/12/2016
Commercial,Parking & Infrastructure,Other Services,60066413,CITY OF LONDON,"16,296.00",14/12/2016
Commercial,Parking & Infrastructure,Other Services,60068588,LONDON COUNCILS,"18,240.00",21/12/2016
Commercial,Parking & Infrastructure,Other Services,60068921,NSL LTD,"1,837.80",22/12/2016
Commercial,Parking & Infrastructure,Other Services,60066016,PARKEON LIMITED,"2,519.20",08/12/2016
Commercial,Parking & Infrastructure,Other Services,60066956,PARKEON LIMITED,"2,526.32",16/12/2016
Commercial,Parking & Infrastructure,Other Services,60066978,PARKEON LIMITED,810.00,16/12/2016
Commercial,Parking & Infrastructure,Professional Services,60068249,NSL LTD,"11,418.08",19/12/2016
Commercial,Parking & Infrastructure,Professional Services,60068876,NSL LTD,"40,289.39",23/12/2016
Commercial,Parking & Infrastructure,Professional Services,60068884,NSL LTD,"4,589.89",22/12/2016
Commercial,Parking & Infrastructure,Professional Services,60068898,NSL LTD,"287,741.39",23/12/2016
Commercial,Parking & Infrastructure,Professional Services,60068900,NSL LTD,"5,463.40",22/12/2016
Commercial,Parking & Infrastructure,Professional Services,60068906,NSL LTD,"4,589.89",22/12/2016
Commercial,Parking & Infrastructure,Professional Services,60068935,NSL LTD,"10,926.80",22/12/2016
Commercial,Parking & Infrastructure,Professional Services,60068950,NSL LTD,"4,589.89",22/12/2016
Commercial,Parking & Infrastructure,Professional Services,60069155,NSL LTD,"11,214.66",23/12/2016
Commercial,Parking & Infrastructure,Software Licences & Support,60068887,NSL LTD,"8,658.07",22/12/2016
Commercial,Parking & Infrastructure,Software Licences & Support,60068913,NSL LTD,"34,253.43",21/12/2016
Commercial,Parking & Infrastructure,Water Services,60068325,ANGEL SPRINGS LTD,91.50,22/12/2016
Commercial,Parking & Infrastructure,Water Services,60069229,ANGEL SPRINGS LTD,32.00,28/12/2016
Commercial,Public Health,Food Costs,60067794,ANGEL SPRINGS LTD,116.38,05/12/2016
Commercial,Public Health,Other Transfer Payments to Soc,60067168,CENTRAL LONDONCOMMUNITY HEALTHCARE,"356,000.00",15/12/2016
Commercial,Public Health,Other Transfer Payments to Soc,60067178,CENTRAL LONDONCOMMUNITY HEALTHCARE,"16,667.00",15/12/2016
Commercial,Public Health,Professional Services,60067167,CENTRAL LONDONCOMMUNITY HEALTHCARE,"4,917.00",15/12/2016
Commercial,Public Health,Professional Services,60067173,CENTRAL LONDONCOMMUNITY HEALTHCARE,"9,583.00",15/12/2016
Commercial,Public Health,Professional Services,60067184,CENTRAL LONDONCOMMUNITY HEALTHCARE,"85,834.00",15/12/2016
Commercial,Regional Enterprise,Advertising,60067190,TMP (UK) LTD,433.65,20/12/2016
Commercial,Regional Enterprise,Agency/Interim Non Hays,60067149,WE MADE THAT LLP,"14,783.50",05/12/2016
Commercial,Regional Enterprise,Agency/Interim Non Hays,60067185,WE MADE THAT LLP,"5,000.00",21/12/2016
Commercial,Regional Enterprise,Agency/Interim Non Hays,60067200,WE MADE THAT LLP,"4,200.00",21/12/2016
Commercial,Regional Enterprise,Agency/Interim Non Hays,60068033,WE MADE THAT LLP,"5,400.00",20/12/2016
Commercial,Regional Enterprise,Building Repairs & Maintenance,60068115,SOUTH HERTFORDSHIRE,980.00,08/12/2016
Commercial,Regional Enterprise,Consultants Fees,60067673,CONWAY AECOM LTD,"14,000.00",02/12/2016
Commercial,Regional Enterprise,Consultants Fees,60069082,CONWAY AECOM LTD,"19,600.00",28/12/2016
Commercial,Regional Enterprise,Consultants Fees,60067502,EVERSHEDS LLP,"40,000.00",06/12/2016
Commercial,Regional Enterprise,Consultants Fees,60067550,EVERSHEDS LLP,"46,310.88",05/12/2016
Commercial,Regional Enterprise,Consultants Fees,60067319,GOWLING WLG,"8,761.96",16/12/2016
Commercial,Regional Enterprise,Consultants Fees,60068507,GOWLING WLG,"2,586.96",15/12/2016
Commercial,Regional Enterprise,Consultants Fees,60068612,GOWLING WLG,"1,405.30",15/12/2016
Commercial,Regional Enterprise,Consultants Fees,60068613,GOWLING WLG,"12,539.22",15/12/2016
Commercial,Regional Enterprise,Consultants Fees,60066559,NETWORK RAIL INFRASTRUCTURE LTD,"42,234.87",14/12/2016
Commercial,Regional Enterprise,Consultants Fees,60067366,NETWORK RAIL INFRASTRUCTURE LTD,"8,797.43",22/12/2016
Commercial,Regional Enterprise,Consultants Fees,60067501,NETWORK RAIL INFRASTRUCTURE LTD,"105,427.84",22/12/2016
Commercial,Regional Enterprise,Equipment and Materials Purcha,80007020,REDACTED - PERSONAL DATA,875.00,02/12/2016
Commercial,Regional Enterprise,Equipment and Materials Purcha,80007244,REDACTED - PERSONAL DATA,"1,225.00",09/12/2016
Commercial,Regional Enterprise,Equipment and Materials Purcha,80007499,REDACTED - PERSONAL DATA,420.00,21/12/2016
Commercial,Regional Enterprise,Grant Payments,80007259,AMWELL CONSTRUCTION LTD,306.00,09/12/2016
Commercial,Regional Enterprise,Grant Payments,80007293,AMWELL CONSTRUCTION LTD,"2,230.80",12/12/2016
Commercial,Regional Enterprise,Grant Payments,80007443,AMWELL CONSTRUCTION LTD,100.00,16/12/2016
Commercial,Regional Enterprise,Grant Payments,80007444,AMWELL CONSTRUCTION LTD,100.00,16/12/2016
Commercial,Regional Enterprise,Grant Payments,80007450,AMWELL CONSTRUCTION LTD,100.00,19/12/2016
Commercial,Regional Enterprise,Grant Payments,80007452,AMWELL CONSTRUCTION LTD,"8,278.80",19/12/2016
Commercial,Regional Enterprise,Grant Payments,80007506,AMWELL CONSTRUCTION LTD,"5,213.00",21/12/2016
Commercial,Regional Enterprise,Grant Payments,80007524,AMWELL CONSTRUCTION LTD,285.00,21/12/2016
Commercial,Regional Enterprise,Grant Payments,80007525,AMWELL CONSTRUCTION LTD,100.00,21/12/2016
Commercial,Regional Enterprise,Grant Payments,80007526,AMWELL CONSTRUCTION LTD,100.00,21/12/2016
Commercial,Regional Enterprise,Grant Payments,80007527,AMWELL CONSTRUCTION LTD,304.00,21/12/2016
Commercial,Regional Enterprise,Grant Payments,80007529,AMWELL CONSTRUCTION LTD,100.00,21/12/2016
Commercial,Regional Enterprise,Grant Payments,80007554,AMWELL CONSTRUCTION LTD,100.00,22/12/2016
Commercial,Regional Enterprise,Grant Payments,80007565,AMWELL CONSTRUCTION LTD,100.00,22/12/2016
Commercial,Regional Enterprise,Grant Payments,80007566,AMWELL CONSTRUCTION LTD,287.30,22/12/2016
Commercial,Regional Enterprise,Grant Payments,80007128,ARTHUR J. FERRYMAN ASSOCIATES,"1,284.90",02/12/2016
Commercial,Regional Enterprise,Grant Payments,80007240,ARTHUR J. FERRYMAN ASSOCIATES,400.00,08/12/2016
Commercial,Regional Enterprise,Grant Payments,80007285,ARTHUR J. FERRYMAN ASSOCIATES,408.00,09/12/2016
Commercial,Regional Enterprise,Grant Payments,80007400,ARTHUR J. FERRYMAN ASSOCIATES,281.00,15/12/2016
Commercial,Regional Enterprise,Grant Payments,80007503,ARTHUR J. FERRYMAN ASSOCIATES,"1,449.96",21/12/2016
Commercial,Regional Enterprise,Grant Payments,80006973,CAPITAL  LOCKSMITHS,300.00,01/12/2016
Commercial,Regional Enterprise,Grant Payments,80006974,CAPITAL  LOCKSMITHS,292.00,01/12/2016
Commercial,Regional Enterprise,Grant Payments,80006975,CAPITAL  LOCKSMITHS,300.00,01/12/2016
Commercial,Regional Enterprise,Grant Payments,80007065,CAPITAL  LOCKSMITHS,256.00,07/12/2016
Commercial,Regional Enterprise,Grant Payments,80007068,CAPITAL  LOCKSMITHS,80.00,07/12/2016
Commercial,Regional Enterprise,Grant Payments,80007069,CAPITAL  LOCKSMITHS,80.00,07/12/2016
Commercial,Regional Enterprise,Grant Payments,80007071,CAPITAL  LOCKSMITHS,255.00,07/12/2016
Commercial,Regional Enterprise,Grant Payments,80007073,CAPITAL  LOCKSMITHS,228.00,07/12/2016
Commercial,Regional Enterprise,Grant Payments,80007262,CAPITAL  LOCKSMITHS,300.00,16/12/2016
Commercial,Regional Enterprise,Grant Payments,80007267,CAPITAL  LOCKSMITHS,300.00,16/12/2016
Commercial,Regional Enterprise,Grant Payments,80007268,CAPITAL  LOCKSMITHS,294.00,16/12/2016
Commercial,Regional Enterprise,Grant Payments,80007445,CAPITAL  LOCKSMITHS,244.20,22/12/2016
Commercial,Regional Enterprise,Grant Payments,80007446,CAPITAL  LOCKSMITHS,244.20,22/12/2016
Commercial,Regional Enterprise,Grant Payments,80007530,CAPITAL  LOCKSMITHS,300.00,28/12/2016
Commercial,Regional Enterprise,Grant Payments,80007397,DOLPHIN MOBILITY LTD.,"1,591.68",15/12/2016
Commercial,Regional Enterprise,Grant Payments,80007498,DOLPHIN MOBILITY LTD.,"6,925.00",20/12/2016
Commercial,Regional Enterprise,Grant Payments,80006965,DP BUILDERS DISABLED ADAPTATIONS,"5,427.00",01/12/2016
Commercial,Regional Enterprise,Grant Payments,80007253,DP BUILDERS DISABLED ADAPTATIONS,"1,870.00",15/12/2016
Commercial,Regional Enterprise,Grant Payments,80007261,DP BUILDERS DISABLED ADAPTATIONS,149.00,16/12/2016
Commercial,Regional Enterprise,Grant Payments,80007284,DP BUILDERS DISABLED ADAPTATIONS,"4,080.00",16/12/2016
Commercial,Regional Enterprise,Grant Payments,80007294,DP BUILDERS DISABLED ADAPTATIONS,"8,847.00",16/12/2016
Commercial,Regional Enterprise,Grant Payments,80007424,DP BUILDERS DISABLED ADAPTATIONS,"2,489.05",22/12/2016
Commercial,Regional Enterprise,Grant Payments,80007482,DP BUILDERS DISABLED ADAPTATIONS,"5,186.00",28/12/2016
Commercial,Regional Enterprise,Grant Payments,80007312,EAST FINCHLEY ELECTRICAL,130.00,12/12/2016
Commercial,Regional Enterprise,Grant Payments,80007316,EAST FINCHLEY ELECTRICAL,160.00,12/12/2016
Commercial,Regional Enterprise,Grant Payments,80007385,ECOLOGIC ENERGY,"3,250.00",15/12/2016
Commercial,Regional Enterprise,Grant Payments,80007390,EMS LIFTS LTD,"8,740.00",15/12/2016
Commercial,Regional Enterprise,Grant Payments,80007417,H D PROPERTY SERVICES LTD,316.00,16/12/2016
Commercial,Regional Enterprise,Grant Payments,80007420,H D PROPERTY SERVICES LTD,316.00,16/12/2016
Commercial,Regional Enterprise,Grant Payments,80007422,H D PROPERTY SERVICES LTD,316.00,16/12/2016
Commercial,Regional Enterprise,Grant Payments,80007423,H D PROPERTY SERVICES LTD,316.00,16/12/2016
Commercial,Regional Enterprise,Grant Payments,80007447,H D PROPERTY SERVICES LTD,316.00,19/12/2016
Commercial,Regional Enterprise,Grant Payments,80007507,H D PROPERTY SERVICES LTD,583.00,21/12/2016
Commercial,Regional Enterprise,Grant Payments,80007510,H D PROPERTY SERVICES LTD,375.00,21/12/2016
Commercial,Regional Enterprise,Grant Payments,80007549,H D PROPERTY SERVICES LTD,208.00,22/12/2016
Commercial,Regional Enterprise,Grant Payments,80007555,H D PROPERTY SERVICES LTD,316.00,22/12/2016
Commercial,Regional Enterprise,Grant Payments,80007556,H D PROPERTY SERVICES LTD,287.00,22/12/2016
Commercial,Regional Enterprise,Grant Payments,80007254,REDACTED - PERSONAL DATA,132.00,09/12/2016
Commercial,Regional Enterprise,Grant Payments,80007387,REDACTED - PERSONAL DATA,"12,000.00",15/12/2016
Commercial,Regional Enterprise,Grant Payments,80007388,REDACTED - PERSONAL DATA,"11,341.00",15/12/2016
Commercial,Regional Enterprise,Grant Payments,80007405,REDACTED - PERSONAL DATA,"2,000.00",15/12/2016
Commercial,Regional Enterprise,Grant Payments,80007457,REDACTED - PERSONAL DATA,"10,626.00",19/12/2016
Commercial,Regional Enterprise,Grant Payments,80007500,SOUTH HERTFORDSHIRE,"12,083.00",21/12/2016
Commercial,Regional Enterprise,Grant Payments,80007559,SOUTH HERTFORDSHIRE,195.00,22/12/2016
Commercial,Regional Enterprise,Grant Payments,80007560,SOUTH HERTFORDSHIRE,260.00,22/12/2016
Commercial,Regional Enterprise,Grant Payments,80007564,SOUTH HERTFORDSHIRE,260.00,22/12/2016
Commercial,Regional Enterprise,Grant Payments,80007225,STANNAH STAIRLIFTS LTD,"4,481.00",09/12/2016
Commercial,Regional Enterprise,Other Services,60067116,ALL MEDIA WORKS LTD,"4,757.00",09/12/2016
Commercial,Regional Enterprise,Other Services,60064634,CANAL & RIVER TRUST,"1,650.00",05/12/2016
Commercial,Regional Enterprise,Other Services,60064689,CANAL & RIVER TRUST,380.00,05/12/2016
Commercial,Regional Enterprise,Other Services,10013563,CONWAY AECOM LTD,"24,714.60",28/12/2016
Commercial,Regional Enterprise,Other Services,10013564,CONWAY AECOM LTD,"21,025.60",28/12/2016
Commercial,Regional Enterprise,Other Services,10013565,CONWAY AECOM LTD,"39,168.00",28/12/2016
Commercial,Regional Enterprise,Other Services,10013566,CONWAY AECOM LTD,"39,522.28",28/12/2016
Commercial,Regional Enterprise,Other Services,10013567,CONWAY AECOM LTD,"48,984.48",28/12/2016
Commercial,Regional Enterprise,Other Services,10013568,CONWAY AECOM LTD,"48,289.40",28/12/2016
Commercial,Regional Enterprise,Other Services,10013569,CONWAY AECOM LTD,"95,363.20",28/12/2016
Commercial,Regional Enterprise,Other Services,60055251,CONWAY AECOM LTD,"3,896.69",05/12/2016
Commercial,Regional Enterprise,Other Services,60055907,CONWAY AECOM LTD,863.37,08/12/2016
Commercial,Regional Enterprise,Other Services,60056002,CONWAY AECOM LTD,668.65,21/12/2016
Commercial,Regional Enterprise,Other Services,60056586,CONWAY AECOM LTD,"51,340.00",06/12/2016
Commercial,Regional Enterprise,Other Services,60061202,CONWAY AECOM LTD,"-13,786.10",21/12/2016
Commercial,Regional Enterprise,Other Services,60061232,CONWAY AECOM LTD,"-2,265.41",02/12/2016
Commercial,Regional Enterprise,Other Services,60067303,CONWAY AECOM LTD,"2,923.35",09/12/2016
Commercial,Regional Enterprise,Other Services,60067351,CONWAY AECOM LTD,"96,830.18",21/12/2016
Commercial,Regional Enterprise,Other Services,60067364,CONWAY AECOM LTD,"13,450.59",09/12/2016
Commercial,Regional Enterprise,Other Services,60067367,CONWAY AECOM LTD,"50,976.24",21/12/2016
Commercial,Regional Enterprise,Other Services,60067369,CONWAY AECOM LTD,"3,622.16",09/12/2016
Commercial,Regional Enterprise,Other Services,60067599,CONWAY AECOM LTD,531.72,02/12/2016
Commercial,Regional Enterprise,Other Services,60067603,CONWAY AECOM LTD,685.75,02/12/2016
Commercial,Regional Enterprise,Other Services,60067610,CONWAY AECOM LTD,911.52,02/12/2016
Commercial,Regional Enterprise,Other Services,60067611,CONWAY AECOM LTD,"76,596.80",05/12/2016
Commercial,Regional Enterprise,Other Services,60067613,CONWAY AECOM LTD,"1,657.95",05/12/2016
Commercial,Regional Enterprise,Other Services,60067614,CONWAY AECOM LTD,569.70,05/12/2016
Commercial,Regional Enterprise,Other Services,60067615,CONWAY AECOM LTD,554.51,02/12/2016
Commercial,Regional Enterprise,Other Services,60067617,CONWAY AECOM LTD,"1,291.32",02/12/2016
Commercial,Regional Enterprise,Other Services,60067618,CONWAY AECOM LTD,759.60,02/12/2016
Commercial,Regional Enterprise,Other Services,60067622,CONWAY AECOM LTD,16.97,02/12/2016
Commercial,Regional Enterprise,Other Services,60067623,CONWAY AECOM LTD,911.52,02/12/2016
Commercial,Regional Enterprise,Other Services,60067624,CONWAY AECOM LTD,633.00,02/12/2016
Commercial,Regional Enterprise,Other Services,60067626,CONWAY AECOM LTD,886.20,02/12/2016
Commercial,Regional Enterprise,Other Services,60067627,CONWAY AECOM LTD,734.28,02/12/2016
Commercial,Regional Enterprise,Other Services,60067629,CONWAY AECOM LTD,"42,688.00",05/12/2016
Commercial,Regional Enterprise,Other Services,60067630,CONWAY AECOM LTD,"1,367.28",02/12/2016
Commercial,Regional Enterprise,Other Services,60067634,CONWAY AECOM LTD,911.52,02/12/2016
Commercial,Regional Enterprise,Other Services,60067636,CONWAY AECOM LTD,911.52,02/12/2016
Commercial,Regional Enterprise,Other Services,60067637,CONWAY AECOM LTD,854.55,02/12/2016
Commercial,Regional Enterprise,Other Services,60067646,CONWAY AECOM LTD,633.00,02/12/2016
Commercial,Regional Enterprise,Other Services,60067648,CONWAY AECOM LTD,506.40,05/12/2016
Commercial,Regional Enterprise,Other Services,60067650,CONWAY AECOM LTD,"1,215.36",02/12/2016
Commercial,Regional Enterprise,Other Services,60067652,CONWAY AECOM LTD,33.93,02/12/2016
Commercial,Regional Enterprise,Other Services,60067657,CONWAY AECOM LTD,"1,853.72",05/12/2016
Commercial,Regional Enterprise,Other Services,60067665,CONWAY AECOM LTD,"5,434.04",05/12/2016
Commercial,Regional Enterprise,Other Services,60067666,CONWAY AECOM LTD,"9,964.80",02/12/2016
Commercial,Regional Enterprise,Other Services,60067676,CONWAY AECOM LTD,569.70,02/12/2016
Commercial,Regional Enterprise,Other Services,60067679,CONWAY AECOM LTD,"1,234.35",02/12/2016
Commercial,Regional Enterprise,Other Services,60067681,CONWAY AECOM LTD,"1,569.84",02/12/2016
Commercial,Regional Enterprise,Other Services,60067684,CONWAY AECOM LTD,873.54,02/12/2016
Commercial,Regional Enterprise,Other Services,60067688,CONWAY AECOM LTD,743.78,02/12/2016
Commercial,Regional Enterprise,Other Services,60067691,CONWAY AECOM LTD,"27,379.20",05/12/2016
Commercial,Regional Enterprise,Other Services,60067692,CONWAY AECOM LTD,"1,025.46",02/12/2016
Commercial,Regional Enterprise,Other Services,60067694,CONWAY AECOM LTD,22.97,02/12/2016
Commercial,Regional Enterprise,Other Services,60067697,CONWAY AECOM LTD,392.46,02/12/2016
Commercial,Regional Enterprise,Other Services,60067700,CONWAY AECOM LTD,15.66,02/12/2016
Commercial,Regional Enterprise,Other Services,60067705,CONWAY AECOM LTD,"1,019.13",02/12/2016
Commercial,Regional Enterprise,Other Services,60067710,CONWAY AECOM LTD,"38,784.61",05/12/2016
Commercial,Regional Enterprise,Other Services,60067711,CONWAY AECOM LTD,506.40,02/12/2016
Commercial,Regional Enterprise,Other Services,60067712,CONWAY AECOM LTD,"4,144.47",02/12/2016
Commercial,Regional Enterprise,Other Services,60067721,CONWAY AECOM LTD,617.18,02/12/2016
Commercial,Regional Enterprise,Other Services,60067724,CONWAY AECOM LTD,569.70,02/12/2016
Commercial,Regional Enterprise,Other Services,60067726,CONWAY AECOM LTD,949.50,02/12/2016
Commercial,Regional Enterprise,Other Services,60067728,CONWAY AECOM LTD,244.49,05/12/2016
Commercial,Regional Enterprise,Other Services,60067729,CONWAY AECOM LTD,633.00,02/12/2016
Commercial,Regional Enterprise,Other Services,60067733,CONWAY AECOM LTD,607.68,02/12/2016
Commercial,Regional Enterprise,Other Services,60067734,CONWAY AECOM LTD,15.40,02/12/2016
Commercial,Regional Enterprise,Other Services,60067736,CONWAY AECOM LTD,582.36,02/12/2016
Commercial,Regional Enterprise,Other Services,60067983,CONWAY AECOM LTD,"16,296.59",21/12/2016
Commercial,Regional Enterprise,Other Services,60067985,CONWAY AECOM LTD,"127,676.03",21/12/2016
Commercial,Regional Enterprise,Other Services,60067999,CONWAY AECOM LTD,50.72,07/12/2016
Commercial,Regional Enterprise,Other Services,60068008,CONWAY AECOM LTD,99.47,22/12/2016
Commercial,Regional Enterprise,Other Services,60068013,CONWAY AECOM LTD,"38,653.22",21/12/2016
Commercial,Regional Enterprise,Other Services,60068026,CONWAY AECOM LTD,"268,808.67",21/12/2016
Commercial,Regional Enterprise,Other Services,60068029,CONWAY AECOM LTD,"40,987.09",21/12/2016
Commercial,Regional Enterprise,Other Services,60068037,CONWAY AECOM LTD,"153,748.10",21/12/2016
Commercial,Regional Enterprise,Other Services,60069004,CONWAY AECOM LTD,45.94,22/12/2016
Commercial,Regional Enterprise,Other Services,60069008,CONWAY AECOM LTD,734.28,22/12/2016
Commercial,Regional Enterprise,Other Services,60069009,CONWAY AECOM LTD,"14,777.86",28/12/2016
Commercial,Regional Enterprise,Other Services,60069018,CONWAY AECOM LTD,"15,045.62",28/12/2016
Commercial,Regional Enterprise,Other Services,60069021,CONWAY AECOM LTD,"47,988.00",28/12/2016
Commercial,Regional Enterprise,Other Services,60069022,CONWAY AECOM LTD,"23,500.00",28/12/2016
Commercial,Regional Enterprise,Other Services,60069023,CONWAY AECOM LTD,15.14,22/12/2016
Commercial,Regional Enterprise,Other Services,60069030,CONWAY AECOM LTD,"33,168.76",28/12/2016
Commercial,Regional Enterprise,Other Services,60069033,CONWAY AECOM LTD,"43,263.60",23/12/2016
Commercial,Regional Enterprise,Other Services,60069035,CONWAY AECOM LTD,"35,584.10",28/12/2016
Commercial,Regional Enterprise,Other Services,60069040,CONWAY AECOM LTD,"6,040.29",22/12/2016
Commercial,Regional Enterprise,Other Services,60069045,CONWAY AECOM LTD,"3,546.72",22/12/2016
Commercial,Regional Enterprise,Other Services,60069048,CONWAY AECOM LTD,582.36,22/12/2016
Commercial,Regional Enterprise,Other Services,60069052,CONWAY AECOM LTD,797.58,22/12/2016
Commercial,Regional Enterprise,Other Services,60069057,CONWAY AECOM LTD,"3,799.08",28/12/2016
Commercial,Regional Enterprise,Other Services,60069065,CONWAY AECOM LTD,"142,336.40",28/12/2016
Commercial,Regional Enterprise,Other Services,60069071,CONWAY AECOM LTD,"14,346.05",22/12/2016
Commercial,Regional Enterprise,Other Services,60069076,CONWAY AECOM LTD,"17,084.10",28/12/2016
Commercial,Regional Enterprise,Other Services,60069097,CONWAY AECOM LTD,"9,076.81",28/12/2016
Commercial,Regional Enterprise,Other Services,60069098,CONWAY AECOM LTD,"11,477.71",28/12/2016
Commercial,Regional Enterprise,Other Services,60069101,CONWAY AECOM LTD,"7,190.38",22/12/2016
Commercial,Regional Enterprise,Other Services,60069102,CONWAY AECOM LTD,917.85,22/12/2016
Commercial,Regional Enterprise,Other Services,60069106,CONWAY AECOM LTD,26.10,22/12/2016
Commercial,Regional Enterprise,Other Services,60069110,CONWAY AECOM LTD,32.63,22/12/2016
Commercial,Regional Enterprise,Other Services,60069117,CONWAY AECOM LTD,"4,774.80",28/12/2016
Commercial,Regional Enterprise,Other Services,60068343,GROUNDWORK LONDON,"17,400.00",13/12/2016
Commercial,Regional Enterprise,Other Services,60068362,GROUNDWORK LONDON,"13,800.00",13/12/2016
Commercial,Regional Enterprise,Other Services,60067989,J C DECAUX UK LTD,"21,631.04",07/12/2016
Commercial,Regional Enterprise,Other Services,60066772,SOUNDS BIG,"2,250.00",09/12/2016
Commercial,Regional Enterprise,Other Services,60067446,SOUTHGATE COACHES LTD,"7,095.00",06/12/2016
Commercial,Regional Enterprise,Other Services,60069195,TRAFFIC SURVEY PARTNERS (TSP) LTD,320.00,23/12/2016
Commercial,Regional Enterprise,Other Services,10013558,TRAFFIC WATCH UK LTD,"19,995.00",22/12/2016
Commercial,Regional Enterprise,Other Services,60066210,TRANSPORT FOR LONDON,"4,457.10",02/12/2016
Commercial,Regional Enterprise,Printing-Contract,60066337,LETTERBOX DISTRIBUTION.COM,400.00,19/12/2016
Commercial,Regional Enterprise,Professional Services,60045015,OPENVIEW SECURITY SOLUTIONS LTD,"268,548.31",16/12/2016
Commercial,Regional Enterprise,Professional Services,10013561,RE (REGIONAL ENTERPRISE) LIMITED,"7,500.00",23/12/2016
Commercial,Regional Enterprise,RE Services Contract Payment,10013525,RE (REGIONAL ENTERPRISE) LIMITED,"57,640.97",16/12/2016
Commercial,Regional Enterprise,RE Services Contract Payment,10013526,RE (REGIONAL ENTERPRISE) LIMITED,"114,715.00",15/12/2016
Commercial,Regional Enterprise,RE Services Contract Payment,10013539,RE (REGIONAL ENTERPRISE) LIMITED,"103,450.00",16/12/2016
Commercial,Regional Enterprise,RE Services Contract Payment,10013540,RE (REGIONAL ENTERPRISE) LIMITED,"1,050,643.22",16/12/2016
Commercial,Regional Enterprise,RE Services Contract Payment,10013541,RE (REGIONAL ENTERPRISE) LIMITED,"108,135.88",16/12/2016
Commercial,Regional Enterprise,RE Services Contract Payment,10013542,RE (REGIONAL ENTERPRISE) LIMITED,"-1,000.00",15/12/2016
Commercial,Regional Enterprise,RE Services Contract Payment,10013543,RE (REGIONAL ENTERPRISE) LIMITED,"-67,085.10",15/12/2016
Commercial,Regional Enterprise,RE Services Contract Payment,10013544,RE (REGIONAL ENTERPRISE) LIMITED,-952.54,15/12/2016
Commercial,Regional Enterprise,RE Services Contract Payment,10013546,RE (REGIONAL ENTERPRISE) LIMITED,"33,403.00",16/12/2016
Commercial,Regional Enterprise,RE Services Contract Payment,10013547,RE (REGIONAL ENTERPRISE) LIMITED,"313,450.58",16/12/2016
Commercial,Regional Enterprise,RE Services Contract Payment,60066323,RE (REGIONAL ENTERPRISE) LIMITED,"245,000.00",07/12/2016
Commercial,Regional Enterprise,RE Services Contract Payment,60068001,RE (REGIONAL ENTERPRISE) LIMITED,"4,046,101.00",16/12/2016
Commercial,Regional Enterprise,RE Services Contract Payment,60068845,RE (REGIONAL ENTERPRISE) LIMITED,"2,500.00",23/12/2016
Commissioning,Commissioning,Building Repairs & Maintenance,60066343,BELLHOUSE PROPERTY SERVICES LTD,420.00,01/12/2016
Commissioning,Commissioning,Building Repairs & Maintenance,60065796,HARROW GREEN LTD,"5,638.50",06/12/2016
Commissioning,Commissioning,Building Repairs & Maintenance,60068306,ISS MEDICLEAN,"38,467.85",13/12/2016
Commissioning,Commissioning,Building Repairs & Maintenance,60068529,OAKRAY LIMITED,955.00,28/12/2016
Commissioning,Commissioning,Building Repairs & Maintenance,60067690,REDACTED - PERSONAL DATA,575.00,02/12/2016
Commissioning,Commissioning,Building Repairs & Maintenance,60068189,RGE SERVICES,291.13,28/12/2016
Commissioning,Commissioning,Building Repairs & Maintenance,60066408,S W BRUCE & CO LTD,"90,000.00",01/12/2016
Commissioning,Commissioning,Building Repairs & Maintenance,60066698,S W BRUCE & CO LTD,"7,308.00",09/12/2016
Commissioning,Commissioning,Building Repairs & Maintenance,60066764,S W BRUCE & CO LTD,"3,268.72",09/12/2016
Commissioning,Commissioning,Building Repairs & Maintenance,60067046,S W BRUCE & CO LTD,"1,468.40",16/12/2016
Commissioning,Commissioning,Building Repairs & Maintenance,60067153,S W BRUCE & CO LTD,"14,195.72",16/12/2016
Commissioning,Commissioning,Capital Construction and Works,60068055,CONCEPT ACCOMMODATION LTD,"9,950.00",28/12/2016
Commissioning,Commissioning,Capital Construction and Works,60067852,PORTABLE BUILDING SALES LTD,"5,000.00",28/12/2016
Commissioning,Commissioning,Consultants Fees,60067129,CIPFA BUSINESS LIMITED,"1,020.00",16/12/2016
Commissioning,Commissioning,Consultants Fees,60067819,ECOLOGY SOLUTIONS LTD,"3,446.60",05/12/2016
Commissioning,Commissioning,Consultants Fees,60067212,G B GEOTECHNICS LIMITED,"3,840.25",16/12/2016
Commissioning,Commissioning,Consultants Fees,10013570,GALLIFORD TRY,"243,031.47",28/12/2016
Commissioning,Commissioning,Consultants Fees,60069046,GALLIFORD TRY,"106,561.66",23/12/2016
Commissioning,Commissioning,Consultants Fees,60067378,MURPHY SURVEYS LIMITED,"2,800.00",07/12/2016
Commissioning,Commissioning,Consultants Fees,60065839,MUTUAL VENTURES LTD,"62,491.90",28/12/2016
Commissioning,Commissioning,Consultants Fees,60067586,POLICY IN PRACTICE,"14,000.00",23/12/2016
Commissioning,Commissioning,Consultants Fees,60068231,PROJECT CENTRE LTD,"3,850.00",21/12/2016
Commissioning,Commissioning,Consultants Fees,60069032,PROJECT CENTRE LTD,"2,925.00",23/12/2016
Commissioning,Commissioning,Consultants Fees,60069050,PROJECT CENTRE LTD,"3,850.00",23/12/2016
Commissioning,Commissioning,Consultants Fees,60069068,PROJECT CENTRE LTD,"6,906.25",23/12/2016
Commissioning,Commissioning,Consultants Fees,60069072,PROJECT CENTRE LTD,"3,850.00",23/12/2016
Commissioning,Commissioning,Consultants Fees,60067358,REDACTED - PERSONAL DATA,400.00,07/12/2016
Commissioning,Commissioning,Consultants Fees,60068099,REDACTED - PERSONAL DATA,"1,175.00",12/12/2016
Commissioning,Commissioning,Consultants Fees,60068686,WILLMOTT DIXON CONSTRUCTION LTD,"923,439.00",22/12/2016
Commissioning,Commissioning,Employee Expenses,80007097,TMP (UK) LTD,529.50,01/12/2016
Commissioning,Commissioning,Equipment and Materials Purcha,60067225,CONTAINERS DIRECT,"5,040.00",22/12/2016
Commissioning,Commissioning,Equipment and Materials Purcha,60068955,OCS GROUP UK LIMITED,"46,521.00",28/12/2016
Commissioning,Commissioning,EXECUTIVE DIRECTORS RECHARGED,80007277,KIRKLEES COUNCIL,265.00,09/12/2016
Commissioning,Commissioning,Furniture-Purchase-Repair,60066702,S W BRUCE & CO LTD,"6,443.50",09/12/2016
Commissioning,Commissioning,Grant Payments,80007083,ACTION ON HEARING LOSS,"2,400.00",09/12/2016
Commissioning,Commissioning,Grant Payments,80007303,BARNET BOROUGH ARTS COUNCIL,"1,800.00",12/12/2016
Commissioning,Commissioning,Grant Payments,80007337,COMMUNITY BARNET,"9,999.00",14/12/2016
Commissioning,Commissioning,Grant Payments,80007131,FRIENDS OF BARNET ENVIRONMENT,"9,999.00",05/12/2016
Commissioning,Commissioning,Grant Payments,80007451,NOTICE BOARD COMPANY (UK) LTD,"1,056.00",16/12/2016
Commissioning,Commissioning,Grant Payments,80007086,ST PETER'S BOURNE MGMNT CO,"2,500.00",05/12/2016
Commissioning,Commissioning,Grant Payments,80007157,STROKE ACTION,"2,250.00",05/12/2016
Commissioning,Commissioning,Grant Payments,80007089,THE AXIS EDUCATIONAL TRUST,"2,500.00",05/12/2016
Commissioning,Commissioning,Grant Payments,60069074,THE BARNETGROUP LIMITED,"63,465.13",22/12/2016
Commissioning,Commissioning,Health authorities - Third Par,60067757,BARNET & DISTRICT ATHLETIC CLUB,75.00,06/12/2016
Commissioning,Commissioning,Health authorities - Third Par,60068354,REDACTED - PERSONAL DATA,50.00,15/12/2016
Commissioning,Commissioning,Other Agencies - Third Party P,60066336,FAMILY FUND TRADING LTD,655.83,14/12/2016
Commissioning,Commissioning,Other Agencies - Third Party P,60066798,FAMILY FUND TRADING LTD,"4,699.17",14/12/2016
Commissioning,Commissioning,Other Agencies - Third Party P,60067182,FAMILY FUND TRADING LTD,"1,890.00",16/12/2016
Commissioning,Commissioning,Other Agencies - Third Party P,60067504,FAMILY FUND TRADING LTD,"5,593.33",16/12/2016
Commissioning,Commissioning,Other Agencies - Third Party P,60068020,FAMILY FUND TRADING LTD,"3,404.17",16/12/2016
Commissioning,Commissioning,Other Agencies - Third Party P,60068765,FAMILY FUND TRADING LTD,163.00,20/12/2016
Commissioning,Commissioning,Other Agencies - Third Party P,60067318,THE BARNETGROUP LIMITED,"2,166.80",08/12/2016
Commissioning,Commissioning,Other Services,60067948,GREENWICH LEISURE LTD,"5,238.00",06/12/2016
Commissioning,Commissioning,Other Services,60067979,LONDON YOUTH GAMES,249.65,06/12/2016
Commissioning,Commissioning,Other Services,80007180,MAYOR OF THE LBB BENEVOLENT FUND,"10,300.00",05/12/2016
Commissioning,Commissioning,Other Services,80007505,SITEMORSE DIGITAL CONFIDENCE,"9,000.00",21/12/2016
Commissioning,Commissioning,Other Transfer Payments to Soc,60064034,LIQUID PERSONNEL LTD,"23,700.00",22/12/2016
Commissioning,Commissioning,Printing-Contract,60068869,MPC PRINT SOLUTIONS,547.00,21/12/2016
Commissioning,Commissioning,Private Contractors - Third Pa,60068072,GREENWICH LEISURE LTD,"101,631.70",16/12/2016
Commissioning,Commissioning,Professional Services,60067896,C A C I LTD,"2,000.00",28/12/2016
Commissioning,Commissioning,Professional Services,60067557,CIPFA BUSINESS LIMITED,245.00,21/12/2016
Commissioning,Commissioning,Professional Services,10013536,GENERAL DYNAMICS INFORMATION TECHNOLOGY,"5,010.40",13/12/2016
Commissioning,Commissioning,Professional Services,10013537,GENERAL DYNAMICS INFORMATION TECHNOLOGY,"5,275.56",13/12/2016
Commissioning,Commissioning,Professional Services,60066178,P A CONSULTING SERVICES LTD,"60,850.00",01/12/2016
Commissioning,Commissioning,Professional Services,60068050,REDACTED - PERSONAL DATA,135.00,13/12/2016
Commissioning,Commissioning,Professional Services,60068086,REDACTED - PERSONAL DATA,45.00,13/12/2016
Commissioning,Commissioning,Professional Services,60069200,REDACTED - PERSONAL DATA,"1,565.55",23/12/2016
Commissioning,Commissioning,Professional Services,60067440,ROSSENDALES (COLLECT) LTD,611.55,02/12/2016
Commissioning,Commissioning,Professional Services,60067479,ROSSENDALES (COLLECT) LTD,418.03,02/12/2016
Commissioning,Commissioning,Professional Services,60067494,ROSSENDALES (COLLECT) LTD,401.24,22/12/2016
Commissioning,Commissioning,Professional Services,60069140,THE BARNETGROUP LIMITED,"2,000.00",28/12/2016
Commissioning,Commissioning,Publications,60067103,CAPITA BUSINESS SERVICES LTD,"7,200.00",02/12/2016
Commissioning,Commissioning,Publications,60068730,REDACTED - PERSONAL DATA,350.00,21/12/2016
Commissioning,Commissioning,Subscriptions,60068084,CARERS UK,"5,000.00",08/12/2016
Commissioning,Commissioning,Training,60066384,INCLUSIVE TRADING CIC,"6,000.00",07/12/2016
Commissioning,Commissioning,Training,60068379,PAVILION PUBLISHING(BRIGHTON)LTD,70.00,22/12/2016
Commissioning,Commissioning,Training,60068466,PDP TRAINING,"2,195.00",14/12/2016
Commissioning,Commissioning,Transport Hire Charges,60068287,MOTT MACDONALD LTD/CAMBRIDGE EDUCATION,22.00,19/12/2016
Commissioning,Commissioning,Transport Hire Charges,60068364,MOTT MACDONALD LTD/CAMBRIDGE EDUCATION,522.00,13/12/2016
Commissioning,Commissioning,Transport Hire Charges,60068390,MOTT MACDONALD LTD/CAMBRIDGE EDUCATION,92.00,13/12/2016
Commissioning,Commissioning,Ttl IT & Comms,60067533,O2 (UK) LIMITED,"14,800.00",02/12/2016
Commissioning,Commissioning,Ttl IT & Comms,60068082,STOR-A FILE LTD,713.69,28/12/2016
Commissioning,Commissioning,Ttl IT & Comms,60067427,TELEFONICA UK LTD,"5,180.00",02/12/2016
Commissioning,Commissioning,Ttl IT & Comms,60067475,TELEFONICA UK LTD,"18,500.00",02/12/2016
Commissioning,Commissioning,Venue Hire,60067117,GREENWICH LEISURE LTD,"1,245.60",01/12/2016
Corporate Accounting,Control Accounts,Other Local Authorities - Thir,EBX0147383,GREATER LONDON AUTHORITY,"230,277.00",08/12/2016
Corporate Accounting,Control Accounts,Other Local Authorities - Thir,EBX0147469,GREATER LONDON AUTHORITY,"1,521,304.00",09/12/2016
Corporate Accounting,Control Accounts,Other Local Authorities - Thir,EBX0149640,GREATER LONDON AUTHORITY,"3,891,785.34",21/12/2016
Corporate Accounting,Corporate Accounting,Other Agencies - Third Party P,60067127,THE BARNETGROUP LIMITED,"1,970,905.00",01/12/2016
Corporate Accounting,Corporate Accounting,Other Agencies - Third Party P,60068398,THE BARNETGROUP LIMITED,"574,595.00",14/12/2016
Corporate Accounting,Corporate Accounting,Other Agencies - Third Party P,60068405,THE BARNETGROUP LIMITED,"5,106,800.00",14/12/2016
Corporate Accounting,Corporate Accounting,Other Transfer Payments to Soc,60067394,CITIBANK NA LONDON,340.20,06/12/2016
Corporate Accounting,Corporate Accounting,Other Transfer Payments to Soc,60067395,CITIBANK NA LONDON,"2,423.90",06/12/2016
Corporate Accounting,Corporate Accounting,Other Transfer Payments to Soc,60067398,CITIBANK NA LONDON,"3,984.00",06/12/2016
Corporate Accounting,Corporate Accounting,Other Transfer Payments to Soc,60067399,CITIBANK NA LONDON,"1,898.00",06/12/2016
Corporate Accounting,Corporate Accounting,Other Transfer Payments to Soc,60067407,CITIBANK NA LONDON,520.61,06/12/2016
Corporate Accounting,Corporate Accounting,Other Transfer Payments to Soc,60067414,CITIBANK NA LONDON,357.80,06/12/2016
Corporate Accounting,Corporate Accounting,Other Transfer Payments to Soc,60067415,CITIBANK NA LONDON,48.50,06/12/2016
Corporate Accounting,Corporate Accounting,Other Transfer Payments to Soc,60067416,CITIBANK NA LONDON,"1,178.20",06/12/2016
Corporate Accounting,Corporate Accounting,Other Transfer Payments to Soc,60067421,CITIBANK NA LONDON,350.00,06/12/2016
Corporate Accounting,Corporate Accounting,Other Transfer Payments to Soc,60067422,CITIBANK NA LONDON,360.40,06/12/2016
Corporate Accounting,Corporate Accounting,Other Transfer Payments to Soc,60067425,CITIBANK NA LONDON,"1,549.30",06/12/2016
Corporate Accounting,Corporate Accounting,Other Transfer Payments to Soc,60067428,CITIBANK NA LONDON,328.20,06/12/2016
Corporate Accounting,Corporate Accounting,Other Transfer Payments to Soc,60067433,CITIBANK NA LONDON,441.72,06/12/2016
Corporate Accounting,Corporate Accounting,Other Transfer Payments to Soc,60067439,CITIBANK NA LONDON,184.40,06/12/2016
Corporate Accounting,Corporate Accounting,Other Transfer Payments to Soc,60067442,CITIBANK NA LONDON,"11,631.24",06/12/2016
Corporate Accounting,Corporate Accounting,Other Transfer Payments to Soc,60067448,CITIBANK NA LONDON,300.00,06/12/2016
Corporate Accounting,Corporate Accounting,Other Transfer Payments to Soc,60067453,CITIBANK NA LONDON,"4,316.20",05/12/2016
Corporate Accounting,Corporate Accounting,Other Transfer Payments to Soc,60067454,CITIBANK NA LONDON,57.90,05/12/2016
Corporate Accounting,Corporate Accounting,Other Transfer Payments to Soc,60067456,CITIBANK NA LONDON,300.00,05/12/2016
Corporate Accounting,Corporate Accounting,Other Transfer Payments to Soc,60067457,CITIBANK NA LONDON,"2,376.50",05/12/2016
Corporate Accounting,Corporate Accounting,Other Transfer Payments to Soc,60067460,CITIBANK NA LONDON,188.00,05/12/2016
Corporate Accounting,Corporate Accounting,Other Transfer Payments to Soc,60067469,CITIBANK NA LONDON,245.00,05/12/2016
Corporate Accounting,Corporate Accounting,Other Transfer Payments to Soc,60067473,CITIBANK NA LONDON,"1,345.84",05/12/2016
Corporate Accounting,Corporate Accounting,Other Transfer Payments to Soc,60067480,CITIBANK NA LONDON,553.00,05/12/2016
Corporate Accounting,Corporate Accounting,Other Transfer Payments to Soc,60067484,CITIBANK NA LONDON,61.38,05/12/2016
Corporate Accounting,Corporate Accounting,Other Transfer Payments to Soc,60067488,CITIBANK NA LONDON,275.00,05/12/2016
Corporate Accounting,Corporate Accounting,Other Transfer Payments to Soc,60067492,CITIBANK NA LONDON,200.00,05/12/2016
Corporate Accounting,Corporate Accounting,Other Transfer Payments to Soc,60067495,CITIBANK NA LONDON,82.90,05/12/2016
Corporate Accounting,Corporate Accounting,Other Transfer Payments to Soc,60067496,CITIBANK NA LONDON,"3,109.55",05/12/2016
Corporate Accounting,Corporate Accounting,Other Transfer Payments to Soc,60068203,CITIBANK NA LONDON,57.90,12/12/2016
Corporate Accounting,Corporate Accounting,Other Transfer Payments to Soc,60068209,CITIBANK NA LONDON,199.90,12/12/2016
Corporate Accounting,Corporate Accounting,Other Transfer Payments to Soc,60068211,CITIBANK NA LONDON,115.80,12/12/2016
Corporate Accounting,Corporate Accounting,Other Transfer Payments to Soc,60068254,CITIBANK NA LONDON,100.00,12/12/2016
Corporate Accounting,Corporate Accounting,Other Transfer Payments to Soc,60068255,CITIBANK NA LONDON,368.00,12/12/2016
Corporate Accounting,Corporate Accounting,Other Transfer Payments to Soc,60068261,CITIBANK NA LONDON,311.92,13/12/2016
Corporate Accounting,Corporate Accounting,Other Transfer Payments to Soc,60068263,CITIBANK NA LONDON,456.40,13/12/2016
Corporate Accounting,Corporate Accounting,Other Transfer Payments to Soc,60068264,CITIBANK NA LONDON,57.90,14/12/2016
Corporate Accounting,Corporate Accounting,Other Transfer Payments to Soc,60068265,CITIBANK NA LONDON,"2,366.39",13/12/2016
Corporate Accounting,Corporate Accounting,Other Transfer Payments to Soc,60068414,CITIBANK NA LONDON,400.00,15/12/2016
Corporate Accounting,Corporate Accounting,Other Transfer Payments to Soc,60068416,CITIBANK NA LONDON,375.00,15/12/2016
Corporate Accounting,Corporate Accounting,Other Transfer Payments to Soc,60068421,CITIBANK NA LONDON,873.01,15/12/2016
Corporate Accounting,Corporate Accounting,Other Transfer Payments to Soc,60068435,CITIBANK NA LONDON,711.60,15/12/2016
Corporate Accounting,Corporate Accounting,Other Transfer Payments to Soc,60068453,CITIBANK NA LONDON,816.41,15/12/2016
Corporate Accounting,Corporate Accounting,Other Transfer Payments to Soc,60068467,CITIBANK NA LONDON,231.00,15/12/2016
Corporate Accounting,Corporate Accounting,Other Transfer Payments to Soc,60068468,CITIBANK NA LONDON,418.80,15/12/2016
Corporate Accounting,Corporate Accounting,Other Transfer Payments to Soc,60068470,CITIBANK NA LONDON,174.40,15/12/2016
Corporate Accounting,Corporate Accounting,Other Transfer Payments to Soc,60068475,CITIBANK NA LONDON,"1,338.05",15/12/2016
Corporate Accounting,Corporate Accounting,Other Transfer Payments to Soc,60068483,CITIBANK NA LONDON,76.50,15/12/2016
Corporate Accounting,Corporate Accounting,Other Transfer Payments to Soc,60068484,CITIBANK NA LONDON,"1,034.41",15/12/2016
Corporate Accounting,Corporate Accounting,Other Transfer Payments to Soc,60068881,CITIBANK NA LONDON,883.75,22/12/2016
Corporate Accounting,Corporate Accounting,Other Transfer Payments to Soc,60068890,CITIBANK NA LONDON,57.90,22/12/2016
Corporate Accounting,Corporate Accounting,Other Transfer Payments to Soc,60068896,CITIBANK NA LONDON,"6,250.95",22/12/2016
Corporate Accounting,Corporate Accounting,Other Transfer Payments to Soc,60068923,CITIBANK NA LONDON,115.80,22/12/2016
Corporate Accounting,Corporate Accounting,Other Transfer Payments to Soc,60068980,CITIBANK NA LONDON,975.00,22/12/2016
Corporate Accounting,Corporate Accounting,Other Transfer Payments to Soc,60068987,CITIBANK NA LONDON,115.80,22/12/2016
Corporate Accounting,Corporate Accounting,Other Transfer Payments to Soc,60068988,CITIBANK NA LONDON,176.75,22/12/2016
Corporate Accounting,Corporate Accounting,Other Transfer Payments to Soc,60069000,CITIBANK NA LONDON,227.90,23/12/2016
Corporate Accounting,Corporate Accounting,Other Transfer Payments to Soc,60069016,CITIBANK NA LONDON,"1,139.00",23/12/2016
Corporate Accounting,Corporate Accounting,Other Transfer Payments to Soc,60069025,CITIBANK NA LONDON,100.00,23/12/2016
Corporate Accounting,Corporate Accounting,Other Transfer Payments to Soc,60069067,CITIBANK NA LONDON,897.90,23/12/2016
Corporate Accounting,Corporate Accounting,Other Transfer Payments to Soc,60069081,CITIBANK NA LONDON,343.23,23/12/2016
Corporate Accounting,Corporate Accounting,Other Transfer Payments to Soc,60069100,CITIBANK NA LONDON,805.60,23/12/2016
Delivery Units,Adults and Communities,Cleaning and domestic material,60067972,CHURCHILL CONTRACT SERVICES,377.81,28/12/2016
Delivery Units,Adults and Communities,Consultants Fees,60068246,VOICEABILITY,"3,588.00",14/12/2016
Delivery Units,Adults and Communities,Employee Expenses,60068230,THE BARNETGROUP LIMITED,"22,291.74",12/12/2016
Delivery Units,Adults and Communities,Equipment and Materials Purcha,80007477,BRITISH TELECOM PLC,"2,032.05",20/12/2016
Delivery Units,Adults and Communities,Equipment and Materials Purcha,80007478,BRITISH TELECOM PLC,"2,706.48",20/12/2016
Delivery Units,Adults and Communities,Equipment and Materials Purcha,80007479,BRITISH TELECOM PLC,"1,756.14",20/12/2016
Delivery Units,Adults and Communities,Food Costs,60067074,MULLER MILK & INGREDIENTS,1.50,02/12/2016
Delivery Units,Adults and Communities,Food Costs,60067703,MULLER MILK & INGREDIENTS,1.50,09/12/2016
Delivery Units,Adults and Communities,Food Costs,60067723,MULLER MILK & INGREDIENTS,1.50,16/12/2016
Delivery Units,Adults and Communities,Food Costs,60068351,MULLER MILK & INGREDIENTS,1.50,23/12/2016
Delivery Units,Adults and Communities,Food Costs,60068749,MULLER MILK & INGREDIENTS,1.50,23/12/2016
Delivery Units,Adults and Communities,Gas,60067893,KENT COUNTY COUNCIL (KCS),125.83,06/12/2016
Delivery Units,Adults and Communities,Gas,60068941,KENT COUNTY COUNCIL (KCS),198.23,28/12/2016
Delivery Units,Adults and Communities,Other Agencies - Third Party P,80007403,3A CARE (LONDON) LTD,"9,282.00",15/12/2016
Delivery Units,Adults and Communities,Other Agencies - Third Party P,30147344,AARON COURT CARE HOME,"2,216.41",20/12/2016
Delivery Units,Adults and Communities,Other Agencies - Third Party P,30145887,ABBEY RAVENSCROFT PARK NURSING HOME,"2,788.32",13/12/2016
Delivery Units,Adults and Communities,Other Agencies - Third Party P,30147168,ABBEY RAVENSCROFT PARK NURSING HOME,"2,788.32",20/12/2016
Delivery Units,Adults and Communities,Other Agencies - Third Party P,30147169,ABBEY RAVENSCROFT PARK NURSING HOME,"2,517.60",20/12/2016
Delivery Units,Adults and Communities,Other Agencies - Third Party P,30147170,ABBEY RAVENSCROFT PARK NURSING HOME,"2,788.32",20/12/2016
Delivery Units,Adults and Communities,Other Agencies - Third Party P,30147171,ABBEY RAVENSCROFT PARK NURSING HOME,"2,788.32",20/12/2016
Delivery Units,Adults and Communities,Other Agencies - Third Party P,30147172,ABBEY RAVENSCROFT PARK NURSING HOME,"2,788.32",20/12/2016
Delivery Units,Adults and Communities,Other Agencies - Third Party P,30147174,ABBEY RAVENSCROFT PARK NURSING HOME,"3,255.00",20/12/2016
Delivery Units,Adults and Communities,Other Agencies - Third Party P,30147175,ABBEY RAVENSCROFT PARK NURSING HOME,"3,255.00",20/12/2016
Delivery Units,Adults and Communities,Other Agencies - Third Party P,30147176,ABBEY RAVENSCROFT PARK NURSING HOME,"3,255.00",20/12/2016
Delivery Units,Adults and Communities,Other Agencies - Third Party P,30147177,ABBEY RAVENSCROFT PARK NURSING HOME,"2,788.32",20/12/2016
Delivery Units,Adults and Communities,Other Agencies - Third Party P,30147178,ABBEY RAVENSCROFT PARK NURSING HOME,"3,138.75",20/12/2016
Delivery Units,Adults and Communities,Other Agencies - Third Party P,30147179,ABBEY RAVENSCROFT PARK NURSING HOME,"2,788.32",20/12/2016
Delivery Units,Adults and Communities,Other Agencies - Third Party P,30147180,ABBEY RAVENSCROFT PARK NURSING HOME,"3,255.00",20/12/2016
Delivery Units,Adults and Communities,Other Agencies - Third Party P,30147181,ABBEY RAVENSCROFT PARK NURSING HOME,"3,255.00",20/12/2016
Delivery Units,Adults and Communities,Other Agencies - Third Party P,30147182,ABBEY RAVENSCROFT PARK NURSING HOME,"3,255.00",20/12/2016
Delivery Units,Adults and Communities,Other Agencies - Third Party P,30147183,ABBEY RAVENSCROFT PARK NURSING HOME,"3,255.00",20/12/2016
Delivery Units,Adults and Communities,Other Agencies - Third Party P,30147184,ABBEY RAVENSCROFT PARK NURSING HOME,"3,255.00",20/12/2016
Delivery Units,Adults and Communities,Other Agencies - Third Party P,30147185,ABBEY RAVENSCROFT PARK NURSING HOME,"3,255.00",20/12/2016
Delivery Units,Adults and Communities,Other Agencies - Third Party P,30147186,ABBEY RAVENSCROFT PARK NURSING HOME,"3,255.00",20/12/2016
Delivery Units,Adults and Communities,Other Agencies - Third Party P,30147187,ABBEY RAVENSCROFT PARK NURSING HOME,"2,788.32",20/12/2016
Delivery Units,Adults and Communities,Other Agencies - Third Party P,30147188,ABBEY RAVENSCROFT PARK NURSING HOME,"2,788.32",20/12/2016
Delivery Units,Adults and Communities,Other Agencies - Third Party P,30147189,ABBEY RAVENSCROFT PARK NURSING HOME,"3,255.00",20/12/2016
Delivery Units,Adults and Communities,Other Agencies - Third Party P,30147190,ABBEY RAVENSCROFT PARK NURSING HOME,"2,900.00",20/12/2016
Delivery Units,Adults and Communities,Other Agencies - Third Party P,30147191,ABBEY RAVENSCROFT PARK NURSING HOME,"3,000.00",20/12/2016
Delivery Units,Adults and Communities,Other Agencies - Third Party P,30147192,ABBEY RAVENSCROFT PARK NURSING HOME,"3,100.00",20/12/2016
Delivery Units,Adults and Communities,Other Agencies - Third Party P,30146546,AGUDAS ISRAEL HOUSING ASSCTN LTD,"3,052.50",19/12/2016
Delivery Units,Adults and Communities,Other Agencies - Third Party P,30146547,AGUDAS ISRAEL HOUSING ASSCTN LTD,"2,648.57",19/12/2016
Delivery Units,Adults and Communities,Other Agencies - Third Party P,30147160,ALDWYCK HOUSING GROUP,"2,249.45",20/12/2016
Delivery Units,Adults and Communities,Other Agencies - Third Party P,30147161,ALDWYCK HOUSING GROUP,"2,249.45",20/12/2016
Delivery Units,Adults and Communities,Other Agencies - Third Party P,30147162,ALDWYCK HOUSING GROUP,"2,249.45",20/12/2016
Delivery Units,Adults and Communities,Other Agencies - Third Party P,30147163,ALDWYCK HOUSING GROUP,"2,249.45",20/12/2016
Delivery Units,Adults and Communities,Other Agencies - Third Party P,30145523,ALEXANDRA HOUSE (RUNWOOD HOMES),"2,189.70",09/12/2016
Delivery Units,Adults and Communities,Other Agencies - Third Party P,80006836,ALEXANDRA HOUSE (RUNWOOD HOMES),"1,094.85",06/12/2016
Delivery Units,Adults and Communities,Other Agencies - Third Party P,80006838,ALEXANDRA HOUSE (RUNWOOD HOMES),"2,189.70",06/12/2016
Delivery Units,Adults and Communities,Other Agencies - Third Party P,30145418,ALLIED HEALTHCARE LTD,"2,965.74",08/12/2016
Delivery Units,Adults and Communities,Other Agencies - Third Party P,30147151,AN DIANDAN HOUSE,"20,034.64",20/12/2016
Delivery Units,Adults and Communities,Other Agencies - Third Party P,30147152,AN DIANDAN HOUSE,"-5,008.66",20/12/2016
Delivery Units,Adults and Communities,Other Agencies - Third Party P,30145432,ANA HOMECARE LTD,363.16,09/12/2016
Delivery Units,Adults and Communities,Other Agencies - Third Party P,30145433,ANA HOMECARE LTD,693.29,09/12/2016
Delivery Units,Adults and Communities,Other Agencies - Third Party P,30145434,ANA HOMECARE LTD,367.36,09/12/2016
Delivery Units,Adults and Communities,Other Agencies - Third Party P,30145435,ANA HOMECARE LTD,329.86,09/12/2016
Delivery Units,Adults and Communities,Other Agencies - Third Party P,30145436,ANA HOMECARE LTD,644.57,09/12/2016
Delivery Units,Adults and Communities,Other Agencies - Third Party P,30145437,ANA HOMECARE LTD,367.36,09/12/2016
Delivery Units,Adults and Communities,Other Agencies - Third Party P,30145438,ANA HOMECARE LTD,-329.86,09/12/2016
Delivery Units,Adults and Communities,Other Agencies - Third Party P,30145439,ANA HOMECARE LTD,697.22,09/12/2016
Delivery Units,Adults and Communities,Other Agencies - Third Party P,30145440,ANA HOMECARE LTD,"1,379.08",09/12/2016
Delivery Units,Adults and Communities,Other Agencies - Third Party P,30145441,ANA HOMECARE LTD,-18.74,09/12/2016
Delivery Units,Adults and Communities,Other Agencies - Third Party P,30147013,ANA HOMECARE LTD,674.55,20/12/2016
Delivery Units,Adults and Communities,Other Agencies - Third Party P,30147014,ANA HOMECARE LTD,359.86,20/12/2016
Delivery Units,Adults and Communities,Other Agencies - Third Party P,30145933,AREA 51 EDUCATION LTD,632.00,13/12/2016
Delivery Units,Adults and Communities,Other Agencies - Third Party P,30145934,AREA 51 EDUCATION LTD,"1,580.00",13/12/2016
Delivery Units,Adults and Communities,Other Agencies - Third Party P,30145935,AREA 51 EDUCATION LTD,948.00,13/12/2016
Delivery Units,Adults and Communities,Other Agencies - Third Party P,30145936,AREA 51 EDUCATION LTD,632.00,13/12/2016
Delivery Units,Adults and Communities,Other Agencies - Third Party P,30147010,AREA 51 EDUCATION LTD,948.00,20/12/2016
Delivery Units,Adults and Communities,Other Agencies - Third Party P,30147318,ASH COURT CARE CENTRE,"3,764.29",28/12/2016
Delivery Units,Adults and Communities,Other Agencies - Third Party P,30146827,ASHFIELDS RESIDENTIAL CARE HOME,"2,448.78",19/12/2016
Delivery Units,Adults and Communities,Other Agencies - Third Party P,30146828,ASHFIELDS RESIDENTIAL CARE HOME,"2,448.78",19/12/2016
Delivery Units,Adults and Communities,Other Agencies - Third Party P,30146829,ASHFIELDS RESIDENTIAL CARE HOME,"2,448.78",19/12/2016
Delivery Units,Adults and Communities,Other Agencies - Third Party P,30146830,ASHFIELDS RESIDENTIAL CARE HOME,"2,657.14",19/12/2016
Delivery Units,Adults and Communities,Other Agencies - Third Party P,30146831,ASHFIELDS RESIDENTIAL CARE HOME,"2,448.78",19/12/2016
Delivery Units,Adults and Communities,Other Agencies - Third Party P,30146832,ASHFIELDS RESIDENTIAL CARE HOME,"2,249.27",19/12/2016
Delivery Units,Adults and Communities,Other Agencies - Third Party P,30146833,ASHFIELDS RESIDENTIAL CARE HOME,"2,448.78",19/12/2016
Delivery Units,Adults and Communities,Other Agencies - Third Party P,30147887,ASHFIELDS RESIDENTIAL CARE HOME,"2,448.78",22/12/2016
Delivery Units,Adults and Communities,Other Agencies - Third Party P,30147312,ASHTON LODGE CARE CENTRE,"2,397.72",20/12/2016
Delivery Units,Adults and Communities,Other Agencies - Third Party P,30147341,ASHTON LODGE CARE CENTRE,"2,655.55",20/12/2016
Delivery Units,Adults and Communities,Other Agencies - Third Party P,30147346,ASHTON LODGE CARE CENTRE,"2,655.55",20/12/2016
Delivery Units,Adults and Communities,Other Agencies - Third Party P,30147402,ASHTON LODGE CARE CENTRE,"2,655.55",20/12/2016
Delivery Units,Adults and Communities,Other Agencies - Third Party P,30147415,ASHTON LODGE CARE CENTRE,"2,397.72",20/12/2016
Delivery Units,Adults and Communities,Other Agencies - Third Party P,30147419,ASHTON LODGE CARE CENTRE,"2,657.14",20/12/2016
Delivery Units,Adults and Communities,Other Agencies - Third Party P,30147431,ASHTON LODGE CARE CENTRE,"2,657.14",20/12/2016
Delivery Units,Adults and Communities,Other Agencies - Third Party P,30147436,ASHTON LODGE CARE CENTRE,"2,448.78",20/12/2016
Delivery Units,Adults and Communities,Other Agencies - Third Party P,30147440,ASHTON LODGE CARE CENTRE,"3,764.29",20/12/2016
Delivery Units,Adults and Communities,Other Agencies - Third Party P,30147441,ASHTON LODGE CARE CENTRE,"2,502.14",20/12/2016
Delivery Units,Adults and Communities,Other Agencies - Third Party P,30147444,ASHTON LODGE CARE CENTRE,"2,655.55",20/12/2016
Delivery Units,Adults and Communities,Other Agencies - Third Party P,30147449,ASHTON LODGE CARE CENTRE,"3,072.32",20/12/2016
Delivery Units,Adults and Communities,Other Agencies - Third Party P,30147452,ASHTON LODGE CARE CENTRE,"2,397.72",20/12/2016
Delivery Units,Adults and Communities,Other Agencies - Third Party P,30147478,ASHTON LODGE CARE CENTRE,"2,448.78",20/12/2016
Delivery Units,Adults and Communities,Other Agencies - Third Party P,30147480,ASHTON LODGE CARE CENTRE,"3,268.29",20/12/2016
Delivery Units,Adults and Communities,Other Agencies - Third Party P,30147485,ASHTON LODGE CARE CENTRE,"2,878.57",20/12/2016
Delivery Units,Adults and Communities,Other Agencies - Third Party P,30147486,ASHTON LODGE CARE CENTRE,"3,072.32",20/12/2016
Delivery Units,Adults and Communities,Other Agencies - Third Party P,30147487,ASHTON LODGE CARE CENTRE,"2,397.72",20/12/2016
Delivery Units,Adults and Communities,Other Agencies - Third Party P,30147493,ASHTON LODGE CARE CENTRE,"2,448.78",20/12/2016
Delivery Units,Adults and Communities,Other Agencies - Third Party P,30147498,ASHTON LODGE CARE CENTRE,"3,932.57",20/12/2016
Delivery Units,Adults and Communities,Other Agencies - Third Party P,30147897,ASHTON LODGE CARE CENTRE,"2,249.45",22/12/2016
Delivery Units,Adults and Communities,Other Agencies - Third Party P,30147362,ASPEN VILLAGES LTD,"2,216.41",20/12/2016
Delivery Units,Adults and Communities,Other Agencies - Third Party P,30147363,ASPEN VILLAGES LTD,"4,871.43",20/12/2016
Delivery Units,Adults and Communities,Other Agencies - Third Party P,30147364,ASPEN VILLAGES LTD,"3,321.43",20/12/2016
Delivery Units,Adults and Communities,Other Agencies - Third Party P,30147366,ASPEN VILLAGES LTD,"3,542.86",20/12/2016
Delivery Units,Adults and Communities,Other Agencies - Third Party P,30147367,ASPEN VILLAGES LTD,"5,978.57",20/12/2016
Delivery Units,Adults and Communities,Other Agencies - Third Party P,30147368,ASPEN VILLAGES LTD,"2,418.04",20/12/2016
Delivery Units,Adults and Communities,Other Agencies - Third Party P,30147369,ASPEN VILLAGES LTD,"4,871.43",20/12/2016
Delivery Units,Adults and Communities,Other Agencies - Third Party P,30147370,ASPEN VILLAGES LTD,"4,207.14",20/12/2016
Delivery Units,Adults and Communities,Other Agencies - Third Party P,30147371,ASPEN VILLAGES LTD,"3,542.86",20/12/2016
Delivery Units,Adults and Communities,Other Agencies - Third Party P,30147372,ASPEN VILLAGES LTD,"4,871.43",20/12/2016
Delivery Units,Adults and Communities,Other Agencies - Third Party P,30147373,ASPEN VILLAGES LTD,"3,764.29",20/12/2016
Delivery Units,Adults and Communities,Other Agencies - Third Party P,30145297,AUTUMN GARDENS,"3,200.00",06/12/2016
Delivery Units,Adults and Communities,Other Agencies - Third Party P,30147388,B & M CARE,"2,249.45",20/12/2016
Delivery Units,Adults and Communities,Other Agencies - Third Party P,30147389,B & M CARE,"3,082.29",20/12/2016
Delivery Units,Adults and Communities,Other Agencies - Third Party P,30147390,B & M CARE,"2,448.78",20/12/2016
Delivery Units,Adults and Communities,Other Agencies - Third Party P,30147391,B & M CARE,"2,448.78",20/12/2016
Delivery Units,Adults and Communities,Other Agencies - Third Party P,30147392,B & M CARE,"3,764.29",20/12/2016
Delivery Units,Adults and Communities,Other Agencies - Third Party P,30147393,B & M CARE,"3,764.29",20/12/2016
Delivery Units,Adults and Communities,Other Agencies - Third Party P,30147394,B & M CARE,"3,764.29",20/12/2016
Delivery Units,Adults and Communities,Other Agencies - Third Party P,30145424,BARNET CARERS CENTRE,65.96,09/12/2016
Delivery Units,Adults and Communities,Other Agencies - Third Party P,30145458,BARNET CARERS CENTRE,92.35,09/12/2016
Delivery Units,Adults and Communities,Other Agencies - Third Party P,30146230,BARNET CARERS CENTRE,400.00,14/12/2016
Delivery Units,Adults and Communities,Other Agencies - Third Party P,30145380,BARNET EXECUTIVE CAR SERVICE,480.00,08/12/2016
Delivery Units,Adults and Communities,Other Agencies - Third Party P,30145381,BARNET EXECUTIVE CAR SERVICE,480.00,08/12/2016
Delivery Units,Adults and Communities,Other Agencies - Third Party P,30145382,BARNET EXECUTIVE CAR SERVICE,480.00,08/12/2016
Delivery Units,Adults and Communities,Other Agencies - Third Party P,30145383,BARNET EXECUTIVE CAR SERVICE,400.00,08/12/2016
Delivery Units,Adults and Communities,Other Agencies - Third Party P,30147279,BAYTREE COMMUNITY CARE (LONDON) LTD,"2,890.26",20/12/2016
Delivery Units,Adults and Communities,Other Agencies - Third Party P,30147280,BAYTREE COMMUNITY CARE (LONDON) LTD,"2,686.64",20/12/2016
Delivery Units,Adults and Communities,Other Agencies - Third Party P,30147281,BAYTREE COMMUNITY CARE (LONDON) LTD,"2,081.97",20/12/2016
Delivery Units,Adults and Communities,Other Agencies - Third Party P,30147282,BAYTREE COMMUNITY CARE (LONDON) LTD,"3,538.37",20/12/2016
Delivery Units,Adults and Communities,Other Agencies - Third Party P,30147835,BAYTREE COMMUNITY CARE (LONDON) LTD,734.40,22/12/2016
Delivery Units,Adults and Communities,Other Agencies - Third Party P,30147836,BAYTREE COMMUNITY CARE (LONDON) LTD,734.40,22/12/2016
Delivery Units,Adults and Communities,Other Agencies - Third Party P,30147837,BAYTREE COMMUNITY CARE (LONDON) LTD,"1,280.00",22/12/2016
Delivery Units,Adults and Communities,Other Agencies - Third Party P,30147838,BAYTREE COMMUNITY CARE (LONDON) LTD,"1,280.00",22/12/2016
Delivery Units,Adults and Communities,Other Agencies - Third Party P,30147321,BELMONT LODGE CARE CENTRE,"2,404.71",20/12/2016
Delivery Units,Adults and Communities,Other Agencies - Third Party P,30145309,BIRCHWOOD GRANGE CARE HOME,"2,657.14",06/12/2016
Delivery Units,Adults and Communities,Other Agencies - Third Party P,30145964,BLUEBIRD CARE (BARNET),336.00,13/12/2016
Delivery Units,Adults and Communities,Other Agencies - Third Party P,30145965,BLUEBIRD CARE (BARNET),168.00,13/12/2016
Delivery Units,Adults and Communities,Other Agencies - Third Party P,30145966,BLUEBIRD CARE (BARNET),"1,316.00",13/12/2016
Delivery Units,Adults and Communities,Other Agencies - Third Party P,30145967,BLUEBIRD CARE (BARNET),336.00,13/12/2016
Delivery Units,Adults and Communities,Other Agencies - Third Party P,30145968,BLUEBIRD CARE (BARNET),48.00,13/12/2016
Delivery Units,Adults and Communities,Other Agencies - Third Party P,30145969,BLUEBIRD CARE (BARNET),606.00,13/12/2016
Delivery Units,Adults and Communities,Other Agencies - Third Party P,30146255,BLUEBIRD CARE (BARNET),324.00,14/12/2016
Delivery Units,Adults and Communities,Other Agencies - Third Party P,30146256,BLUEBIRD CARE (BARNET),168.00,14/12/2016
Delivery Units,Adults and Communities,Other Agencies - Third Party P,30146257,BLUEBIRD CARE (BARNET),"1,374.00",14/12/2016
Delivery Units,Adults and Communities,Other Agencies - Third Party P,30146258,BLUEBIRD CARE (BARNET),192.00,14/12/2016
Delivery Units,Adults and Communities,Other Agencies - Third Party P,30146259,BLUEBIRD CARE (BARNET),120.00,14/12/2016
Delivery Units,Adults and Communities,Other Agencies - Third Party P,30146260,BLUEBIRD CARE (BARNET),594.00,14/12/2016
Delivery Units,Adults and Communities,Other Agencies - Third Party P,30146261,BLUEBIRD CARE (BARNET),14.00,14/12/2016
Delivery Units,Adults and Communities,Other Agencies - Third Party P,30146262,BLUEBIRD CARE (BARNET),504.00,14/12/2016
Delivery Units,Adults and Communities,Other Agencies - Third Party P,30146263,BLUEBIRD CARE (BARNET),312.00,14/12/2016
Delivery Units,Adults and Communities,Other Agencies - Third Party P,30146264,BLUEBIRD CARE (BARNET),168.00,14/12/2016
Delivery Units,Adults and Communities,Other Agencies - Third Party P,30146265,BLUEBIRD CARE (BARNET),"1,364.00",14/12/2016
Delivery Units,Adults and Communities,Other Agencies - Third Party P,30146266,BLUEBIRD CARE (BARNET),468.00,14/12/2016
Delivery Units,Adults and Communities,Other Agencies - Third Party P,30146267,BLUEBIRD CARE (BARNET),92.00,14/12/2016
Delivery Units,Adults and Communities,Other Agencies - Third Party P,30146268,BLUEBIRD CARE (BARNET),594.00,14/12/2016
Delivery Units,Adults and Communities,Other Agencies - Third Party P,30146269,BLUEBIRD CARE (BARNET),28.00,14/12/2016
Delivery Units,Adults and Communities,Other Agencies - Third Party P,30146270,BLUEBIRD CARE (BARNET),492.00,14/12/2016
Delivery Units,Adults and Communities,Other Agencies - Third Party P,30146271,BLUEBIRD CARE (BARNET),41.70,14/12/2016
Delivery Units,Adults and Communities,Other Agencies - Third Party P,30146272,BLUEBIRD CARE (BARNET),48.00,14/12/2016
Delivery Units,Adults and Communities,Other Agencies - Third Party P,30146358,BLUEBIRD CARE (BARNET),336.00,14/12/2016
Delivery Units,Adults and Communities,Other Agencies - Third Party P,30146359,BLUEBIRD CARE (BARNET),554.10,14/12/2016
Delivery Units,Adults and Communities,Other Agencies - Third Party P,30146360,BLUEBIRD CARE (BARNET),156.00,14/12/2016
Delivery Units,Adults and Communities,Other Agencies - Third Party P,30146361,BLUEBIRD CARE (BARNET),425.00,14/12/2016
Delivery Units,Adults and Communities,Other Agencies - Third Party P,30146362,BLUEBIRD CARE (BARNET),396.00,14/12/2016
Delivery Units,Adults and Communities,Other Agencies - Third Party P,30147039,BLUEBIRD CARE (BARNET),96.00,20/12/2016
Delivery Units,Adults and Communities,Other Agencies - Third Party P,30147043,BLUEBIRD CARE (BARNET),315.40,20/12/2016
Delivery Units,Adults and Communities,Other Agencies - Third Party P,30147044,BLUEBIRD CARE (BARNET),168.00,20/12/2016
Delivery Units,Adults and Communities,Other Agencies - Third Party P,30147045,BLUEBIRD CARE (BARNET),606.00,20/12/2016
Delivery Units,Adults and Communities,Other Agencies - Third Party P,30147046,BLUEBIRD CARE (BARNET),28.00,20/12/2016
Delivery Units,Adults and Communities,Other Agencies - Third Party P,30145883,BROOKDALE HEALTHCARE,"3,759.36",13/12/2016
Delivery Units,Adults and Communities,Other Agencies - Third Party P,30147706,BROOKDALE HEALTHCARE,"9,995.33",22/12/2016
Delivery Units,Adults and Communities,Other Agencies - Third Party P,30147911,BRUNSWICK SUPPORTED LIVING SERVICES,"1,412.68",22/12/2016
Delivery Units,Adults and Communities,Other Agencies - Third Party P,30147916,BRUNSWICK SUPPORTED LIVING SERVICES,"1,942.84",22/12/2016
Delivery Units,Adults and Communities,Other Agencies - Third Party P,30147926,BRUNSWICK SUPPORTED LIVING SERVICES,"2,153.92",22/12/2016
Delivery Units,Adults and Communities,Other Agencies - Third Party P,30145337,BUPA CARE HOMES,"2,314.15",06/12/2016
Delivery Units,Adults and Communities,Other Agencies - Third Party P,30145339,BUPA CARE HOMES,"4,955.97",06/12/2016
Delivery Units,Adults and Communities,Other Agencies - Third Party P,30145509,BUPA CARE HOMES,"2,165.68",09/12/2016
Delivery Units,Adults and Communities,Other Agencies - Third Party P,30145510,BUPA CARE HOMES,"2,398.56",09/12/2016
Delivery Units,Adults and Communities,Other Agencies - Third Party P,30145531,BUPA CARE HOMES,"2,443.64",09/12/2016
Delivery Units,Adults and Communities,Other Agencies - Third Party P,30146835,BUPA CARE HOMES,"3,035.20",19/12/2016
Delivery Units,Adults and Communities,Other Agencies - Third Party P,30146836,BUPA CARE HOMES,"2,384.57",19/12/2016
Delivery Units,Adults and Communities,Other Agencies - Third Party P,30146838,BUPA CARE HOMES,"2,464.06",19/12/2016
Delivery Units,Adults and Communities,Other Agencies - Third Party P,30146840,BUPA CARE HOMES,"2,384.57",19/12/2016
Delivery Units,Adults and Communities,Other Agencies - Third Party P,30146841,BUPA CARE HOMES,"2,943.51",19/12/2016
Delivery Units,Adults and Communities,Other Agencies - Third Party P,30147399,BUPA CARE HOMES,"7,964.70",20/12/2016
Delivery Units,Adults and Communities,Other Agencies - Third Party P,30147400,BUPA CARE HOMES,"2,518.48",20/12/2016
Delivery Units,Adults and Communities,Other Agencies - Third Party P,30147899,BUPA CARE HOMES,"2,089.89",22/12/2016
Delivery Units,Adults and Communities,Other Agencies - Third Party P,30147900,BUPA CARE HOMES,"2,159.55",22/12/2016
Delivery Units,Adults and Communities,Other Agencies - Third Party P,30147901,BUPA CARE HOMES,"2,537.01",22/12/2016
Delivery Units,Adults and Communities,Other Agencies - Third Party P,30147902,BUPA CARE HOMES,"2,163.90",22/12/2016
Delivery Units,Adults and Communities,Other Agencies - Third Party P,30147903,BUPA CARE HOMES,"-2,163.90",22/12/2016
Delivery Units,Adults and Communities,Other Agencies - Third Party P,30147904,BUPA CARE HOMES,"-2,236.03",22/12/2016
Delivery Units,Adults and Communities,Other Agencies - Third Party P,30147905,BUPA CARE HOMES,"-2,236.03",22/12/2016
Delivery Units,Adults and Communities,Other Agencies - Third Party P,30147906,BUPA CARE HOMES,"-2,163.90",22/12/2016
Delivery Units,Adults and Communities,Other Agencies - Third Party P,30145504,BUPA CARE HOMES - BRUNSWICK COURT,"3,385.71",09/12/2016
Delivery Units,Adults and Communities,Other Agencies - Third Party P,30145307,BUPA NURSING HOMES LTD - ARKLEY,"2,088.33",06/12/2016
Delivery Units,Adults and Communities,Other Agencies - Third Party P,30147314,BUPA NURSING HOMES LTD - ARKLEY,"2,629.95",20/12/2016
Delivery Units,Adults and Communities,Other Agencies - Third Party P,30147315,BUPA NURSING HOMES LTD - ARKLEY,"2,718.61",20/12/2016
Delivery Units,Adults and Communities,Other Agencies - Third Party P,30147316,BUPA NURSING HOMES LTD - ARKLEY,"3,484.16",20/12/2016
Delivery Units,Adults and Communities,Other Agencies - Third Party P,30147879,BUPA NURSING HOMES LTD - ARKLEY,"2,165.68",22/12/2016
Delivery Units,Adults and Communities,Other Agencies - Third Party P,30147880,BUPA NURSING HOMES LTD - ARKLEY,"2,214.76",22/12/2016
Delivery Units,Adults and Communities,Other Agencies - Third Party P,30147881,BUPA NURSING HOMES LTD - ARKLEY,"2,165.68",22/12/2016
Delivery Units,Adults and Communities,Other Agencies - Third Party P,30147264,CAMPHILL DEVON COMMUNITY LIMITED,"4,508.00",20/12/2016
Delivery Units,Adults and Communities,Other Agencies - Third Party P,30147240,CANDLE COURT NURSING HOME,"5,314.29",20/12/2016
Delivery Units,Adults and Communities,Other Agencies - Third Party P,30147241,CANDLE COURT NURSING HOME,"3,764.29",20/12/2016
Delivery Units,Adults and Communities,Other Agencies - Third Party P,30147242,CANDLE COURT NURSING HOME,"2,655.55",20/12/2016
Delivery Units,Adults and Communities,Other Agencies - Third Party P,30147396,CARE ASSIST LIMITED,"4,207.14",20/12/2016
Delivery Units,Adults and Communities,Other Agencies - Third Party P,30147397,CARE ASSIST LIMITED,"4,207.14",20/12/2016
Delivery Units,Adults and Communities,Other Agencies - Third Party P,80007107,CARE ASSIST LIMITED,"4,071.43",06/12/2016
Delivery Units,Adults and Communities,Other Agencies - Third Party P,80007108,CARE ASSIST LIMITED,"4,071.43",06/12/2016
Delivery Units,Adults and Communities,Other Agencies - Third Party P,30147806,CARE WORLDWIDE (LONDON) LTD,"2,680.88",22/12/2016
Delivery Units,Adults and Communities,Other Agencies - Third Party P,30147807,CARE WORLDWIDE (LONDON) LTD,"3,936.46",22/12/2016
Delivery Units,Adults and Communities,Other Agencies - Third Party P,30147808,CARE WORLDWIDE (LONDON) LTD,"5,380.25",22/12/2016
Delivery Units,Adults and Communities,Other Agencies - Third Party P,30147809,CARE WORLDWIDE (LONDON) LTD,"4,246.53",22/12/2016
Delivery Units,Adults and Communities,Other Agencies - Third Party P,30147810,CARE WORLDWIDE (LONDON) LTD,"2,685.98",22/12/2016
Delivery Units,Adults and Communities,Other Agencies - Third Party P,30147811,CARE WORLDWIDE (LONDON) LTD,"4,400.13",22/12/2016
Delivery Units,Adults and Communities,Other Agencies - Third Party P,30145289,CARETECH COMMUNITY SERVICES LTD,"1,088.14",06/12/2016
Delivery Units,Adults and Communities,Other Agencies - Third Party P,30147732,CARETECH COMMUNITY SERVICES LTD,475.27,28/12/2016
Delivery Units,Adults and Communities,Other Agencies - Third Party P,30147733,CARETECH COMMUNITY SERVICES LTD,"4,646.55",28/12/2016
Delivery Units,Adults and Communities,Other Agencies - Third Party P,30147737,CARETECH COMMUNITY SERVICES LTD,816.14,28/12/2016
Delivery Units,Adults and Communities,Other Agencies - Third Party P,30147738,CARETECH COMMUNITY SERVICES LTD,"24,756.45",28/12/2016
Delivery Units,Adults and Communities,Other Agencies - Third Party P,30147740,CARETECH COMMUNITY SERVICES LTD,"4,627.86",28/12/2016
Delivery Units,Adults and Communities,Other Agencies - Third Party P,30147741,CARETECH COMMUNITY SERVICES LTD,919.15,28/12/2016
Delivery Units,Adults and Communities,Other Agencies - Third Party P,30147744,CARETECH COMMUNITY SERVICES LTD,"1,088.14",28/12/2016
Delivery Units,Adults and Communities,Other Agencies - Third Party P,30147748,CARETECH COMMUNITY SERVICES LTD,"1,088.14",28/12/2016
Delivery Units,Adults and Communities,Other Agencies - Third Party P,30147752,CARETECH COMMUNITY SERVICES LTD,"1,088.14",28/12/2016
Delivery Units,Adults and Communities,Other Agencies - Third Party P,30147753,CARETECH COMMUNITY SERVICES LTD,"2,589.74",28/12/2016
Delivery Units,Adults and Communities,Other Agencies - Third Party P,30147754,CARETECH COMMUNITY SERVICES LTD,"4,627.86",28/12/2016
Delivery Units,Adults and Communities,Other Agencies - Third Party P,30147755,CARETECH COMMUNITY SERVICES LTD,"2,149.94",28/12/2016
Delivery Units,Adults and Communities,Other Agencies - Third Party P,30147756,CARETECH COMMUNITY SERVICES LTD,"4,782.86",28/12/2016
Delivery Units,Adults and Communities,Other Agencies - Third Party P,30147757,CARETECH COMMUNITY SERVICES LTD,"1,527.86",28/12/2016
Delivery Units,Adults and Communities,Other Agencies - Third Party P,30146664,CARING HOMES HEALTHCARE GROUP,"3,200.00",19/12/2016
Delivery Units,Adults and Communities,Other Agencies - Third Party P,30147200,CARLTON COURT (TLC GROUP),"3,764.29",20/12/2016
Delivery Units,Adults and Communities,Other Agencies - Third Party P,30147201,CARLTON COURT (TLC GROUP),"4,428.57",20/12/2016
Delivery Units,Adults and Communities,Other Agencies - Third Party P,30147202,CARLTON COURT (TLC GROUP),"2,448.78",20/12/2016
Delivery Units,Adults and Communities,Other Agencies - Third Party P,30147203,CARLTON COURT (TLC GROUP),"2,249.45",20/12/2016
Delivery Units,Adults and Communities,Other Agencies - Third Party P,30147204,CARLTON COURT (TLC GROUP),"2,249.45",20/12/2016
Delivery Units,Adults and Communities,Other Agencies - Third Party P,30147205,CARLTON COURT (TLC GROUP),"2,655.55",20/12/2016
Delivery Units,Adults and Communities,Other Agencies - Third Party P,30147206,CARLTON COURT (TLC GROUP),"2,655.55",20/12/2016
Delivery Units,Adults and Communities,Other Agencies - Third Party P,30147209,CARLTON COURT (TLC GROUP),"2,655.55",20/12/2016
Delivery Units,Adults and Communities,Other Agencies - Third Party P,30147210,CARLTON COURT (TLC GROUP),"6,200.00",20/12/2016
Delivery Units,Adults and Communities,Other Agencies - Third Party P,30147211,CARLTON COURT (TLC GROUP),"4,428.57",20/12/2016
Delivery Units,Adults and Communities,Other Agencies - Third Party P,30147212,CARLTON COURT (TLC GROUP),"4,871.43",20/12/2016
Delivery Units,Adults and Communities,Other Agencies - Third Party P,30147213,CARLTON COURT (TLC GROUP),"3,720.93",20/12/2016
Delivery Units,Adults and Communities,Other Agencies - Third Party P,30147214,CARLTON COURT (TLC GROUP),"2,655.55",20/12/2016
Delivery Units,Adults and Communities,Other Agencies - Third Party P,30147215,CARLTON COURT (TLC GROUP),"2,397.72",20/12/2016
Delivery Units,Adults and Communities,Other Agencies - Third Party P,30147216,CARLTON COURT (TLC GROUP),"2,448.78",20/12/2016
Delivery Units,Adults and Communities,Other Agencies - Third Party P,30147827,CARMEN LODGE RESIDENTIAL HOME,"2,651.10",28/12/2016
Delivery Units,Adults and Communities,Other Agencies - Third Party P,30147828,CARMEN LODGE RESIDENTIAL HOME,"2,739.47",28/12/2016
Delivery Units,Adults and Communities,Other Agencies - Third Party P,30145060,CATHERINE LODGE,"1,105.90",01/12/2016
Delivery Units,Adults and Communities,Other Agencies - Third Party P,30145460,CATHERINE LODGE,"2,211.80",09/12/2016
Delivery Units,Adults and Communities,Other Agencies - Third Party P,30146697,CATHERINE LODGE,"1,105.90",19/12/2016
Delivery Units,Adults and Communities,Other Agencies - Third Party P,30146790,CATHERINE LODGE,"3,000.00",19/12/2016
Delivery Units,Adults and Communities,Other Agencies - Third Party P,30146797,CATHERINE LODGE,"2,211.80",19/12/2016
Delivery Units,Adults and Communities,Other Agencies - Third Party P,30146799,CATHERINE LODGE,"2,920.00",19/12/2016
Delivery Units,Adults and Communities,Other Agencies - Third Party P,30146802,CATHERINE LODGE,"2,211.80",19/12/2016
Delivery Units,Adults and Communities,Other Agencies - Third Party P,30146804,CATHERINE LODGE,"2,211.80",19/12/2016
Delivery Units,Adults and Communities,Other Agencies - Third Party P,30146231,CDR CARE LTD,"1,680.00",14/12/2016
Delivery Units,Adults and Communities,Other Agencies - Third Party P,30146232,CDR CARE LTD,800.00,14/12/2016
Delivery Units,Adults and Communities,Other Agencies - Third Party P,30146233,CDR CARE LTD,800.00,14/12/2016
Delivery Units,Adults and Communities,Other Agencies - Third Party P,30146234,CDR CARE LTD,800.00,14/12/2016
Delivery Units,Adults and Communities,Other Agencies - Third Party P,30147329,CEDARS NURSING HOME,"2,655.55",20/12/2016
Delivery Units,Adults and Communities,Other Agencies - Third Party P,30147330,CEDARS NURSING HOME,"2,655.55",20/12/2016
Delivery Units,Adults and Communities,Other Agencies - Third Party P,30147331,CEDARS NURSING HOME,"2,397.72",20/12/2016
Delivery Units,Adults and Communities,Other Agencies - Third Party P,30147332,CEDARS NURSING HOME,"2,655.55",20/12/2016
Delivery Units,Adults and Communities,Other Agencies - Third Party P,30147333,CEDARS NURSING HOME,"2,397.72",20/12/2016
Delivery Units,Adults and Communities,Other Agencies - Third Party P,30145274,CHILTERN SUPPORT & HOUSING LTD,"10,000.00",06/12/2016
Delivery Units,Adults and Communities,Other Agencies - Third Party P,30145275,CHILTERN SUPPORT & HOUSING LTD,"23,836.80",07/12/2016
Delivery Units,Adults and Communities,Other Agencies - Third Party P,30145507,CLARE HOUSE NURSING HOME,"2,228.72",09/12/2016
Delivery Units,Adults and Communities,Other Agencies - Third Party P,30147334,CLOVELLY HOUSE RESID. HOME LTD,"2,600.00",20/12/2016
Delivery Units,Adults and Communities,Other Agencies - Third Party P,30147335,CLOVELLY HOUSE RESID. HOME LTD,"2,211.80",20/12/2016
Delivery Units,Adults and Communities,Other Agencies - Third Party P,30147336,CLOVELLY HOUSE RESID. HOME LTD,"2,600.00",20/12/2016
Delivery Units,Adults and Communities,Other Agencies - Third Party P,30147337,CLOVELLY HOUSE RESID. HOME LTD,"2,211.80",20/12/2016
Delivery Units,Adults and Communities,Other Agencies - Third Party P,30147338,CLOVELLY HOUSE RESID. HOME LTD,"1,900.40",20/12/2016
Delivery Units,Adults and Communities,Other Agencies - Third Party P,30147339,CLOVELLY HOUSE RESID. HOME LTD,"2,600.00",20/12/2016
Delivery Units,Adults and Communities,Other Agencies - Third Party P,30147340,CLOVELLY HOUSE RESID. HOME LTD,"2,211.80",20/12/2016
Delivery Units,Adults and Communities,Other Agencies - Third Party P,30147342,CLOVELLY HOUSE RESID. HOME LTD,"2,211.80",20/12/2016
Delivery Units,Adults and Communities,Other Agencies - Third Party P,30147888,CLOVELLY HOUSE RESID. HOME LTD,394.96,22/12/2016
Delivery Units,Adults and Communities,Other Agencies - Third Party P,30145445,CMG HOMES LTD,"3,240.96",09/12/2016
Delivery Units,Adults and Communities,Other Agencies - Third Party P,30146573,COMPLETE CARE SERVICES LTD,"5,251.80",19/12/2016
Delivery Units,Adults and Communities,Other Agencies - Third Party P,30147218,COMPLETE CARE SERVICES LTD,"5,426.86",20/12/2016
Delivery Units,Adults and Communities,Other Agencies - Third Party P,30147932,CONNIFERS CARE LTD,"7,375.83",28/12/2016
Delivery Units,Adults and Communities,Other Agencies - Third Party P,30145447,CRESWICK HOUSE,"7,123.12",14/12/2016
Delivery Units,Adults and Communities,Other Agencies - Third Party P,80007178,CREWS HIL LREPTILES,440.00,07/12/2016
Delivery Units,Adults and Communities,Other Agencies - Third Party P,30147842,DANA CARE LIMITED,"9,902.29",22/12/2016
Delivery Units,Adults and Communities,Other Agencies - Third Party P,30147348,DELAMER HOUSE,"2,435.71",20/12/2016
Delivery Units,Adults and Communities,Other Agencies - Third Party P,30145290,DILLON CARE LTD,"3,900.00",06/12/2016
Delivery Units,Adults and Communities,Other Agencies - Third Party P,30145420,DIMENSIONS UK,74.80,08/12/2016
Delivery Units,Adults and Communities,Other Agencies - Third Party P,30145519,DIMENSIONS UK,"1,118.16",09/12/2016
Delivery Units,Adults and Communities,Other Agencies - Third Party P,30145520,DIMENSIONS UK,"1,118.16",09/12/2016
Delivery Units,Adults and Communities,Other Agencies - Third Party P,30145521,DIMENSIONS UK,"1,118.16",09/12/2016
Delivery Units,Adults and Communities,Other Agencies - Third Party P,30146863,DIMENSIONS UK,"6,025.32",19/12/2016
Delivery Units,Adults and Communities,Other Agencies - Third Party P,30146866,DIMENSIONS UK,"6,025.32",19/12/2016
Delivery Units,Adults and Communities,Other Agencies - Third Party P,30147136,DIMENSIONS UK,"1,541.00",20/12/2016
Delivery Units,Adults and Communities,Other Agencies - Third Party P,30147140,DIMENSIONS UK,912.00,20/12/2016
Delivery Units,Adults and Communities,Other Agencies - Third Party P,30147147,DIMENSIONS UK,"2,128.00",20/12/2016
Delivery Units,Adults and Communities,Other Agencies - Third Party P,30147463,DIMENSIONS UK,"4,495.76",20/12/2016
Delivery Units,Adults and Communities,Other Agencies - Third Party P,30147464,DIMENSIONS UK,"4,495.76",20/12/2016
Delivery Units,Adults and Communities,Other Agencies - Third Party P,30147276,DOWNLANDS CARE LTD,"2,079.17",20/12/2016
Delivery Units,Adults and Communities,Other Agencies - Third Party P,30147349,DR FRENCH MEMORIAL HOME LTD,"2,448.78",20/12/2016
Delivery Units,Adults and Communities,Other Agencies - Third Party P,30147350,DR FRENCH MEMORIAL HOME LTD,"2,369.79",20/12/2016
Delivery Units,Adults and Communities,Other Agencies - Third Party P,30147351,DR FRENCH MEMORIAL HOME LTD,"2,448.78",20/12/2016
Delivery Units,Adults and Communities,Other Agencies - Third Party P,30146602,ELEANOR PALMER TRUST NO 2 A/C.,"1,105.90",19/12/2016
Delivery Units,Adults and Communities,Other Agencies - Third Party P,30145511,ELIZA HOUSE,"2,369.79",09/12/2016
Delivery Units,Adults and Communities,Other Agencies - Third Party P,30145306,ELM PARK LODGE,"3,192.86",09/12/2016
Delivery Units,Adults and Communities,Other Agencies - Third Party P,30145310,ELM PARK LODGE,"3,407.14",09/12/2016
Delivery Units,Adults and Communities,Other Agencies - Third Party P,30145311,ELM PARK LODGE,"3,330.00",09/12/2016
Delivery Units,Adults and Communities,Other Agencies - Third Party P,30145312,ELM PARK LODGE,"2,035.46",09/12/2016
Delivery Units,Adults and Communities,Other Agencies - Third Party P,30145313,ELM PARK LODGE,"3,321.43",09/12/2016
Delivery Units,Adults and Communities,Other Agencies - Third Party P,30145314,ELM PARK LODGE,"2,092.11",09/12/2016
Delivery Units,Adults and Communities,Other Agencies - Third Party P,30145315,ELM PARK LODGE,"3,107.14",09/12/2016
Delivery Units,Adults and Communities,Other Agencies - Third Party P,30145333,ELM PARK LODGE,"3,321.43",09/12/2016
Delivery Units,Adults and Communities,Other Agencies - Third Party P,30145334,ELM PARK LODGE,"3,321.43",09/12/2016
Delivery Units,Adults and Communities,Other Agencies - Third Party P,30145336,ELM PARK LODGE,"2,340.90",09/12/2016
Delivery Units,Adults and Communities,Other Agencies - Third Party P,30145338,ELM PARK LODGE,"3,068.57",09/12/2016
Delivery Units,Adults and Communities,Other Agencies - Third Party P,30147386,ELM PARK LODGE,"3,321.43",20/12/2016
Delivery Units,Adults and Communities,Other Agencies - Third Party P,30147361,EMMAUS HOUSE,315.97,20/12/2016
Delivery Units,Adults and Communities,Other Agencies - Third Party P,80007054,ENARA COMMUNITY CARE,"1,815.80",06/12/2016
Delivery Units,Adults and Communities,Other Agencies - Third Party P,80007055,ENARA COMMUNITY CARE,"1,815.80",06/12/2016
Delivery Units,Adults and Communities,Other Agencies - Third Party P,80007056,ENARA COMMUNITY CARE,"1,815.80",06/12/2016
Delivery Units,Adults and Communities,Other Agencies - Third Party P,80007057,ENARA COMMUNITY CARE,"1,815.80",06/12/2016
Delivery Units,Adults and Communities,Other Agencies - Third Party P,80007058,ENARA COMMUNITY CARE,"1,815.80",06/12/2016
Delivery Units,Adults and Communities,Other Agencies - Third Party P,80007059,ENARA COMMUNITY CARE,"1,815.80",06/12/2016
Delivery Units,Adults and Communities,Other Agencies - Third Party P,80007060,ENARA COMMUNITY CARE,"1,815.80",06/12/2016
Delivery Units,Adults and Communities,Other Agencies - Third Party P,80007061,ENARA COMMUNITY CARE,"1,894.20",06/12/2016
Delivery Units,Adults and Communities,Other Agencies - Third Party P,80007062,ENARA COMMUNITY CARE,"1,205.40",06/12/2016
Delivery Units,Adults and Communities,Other Agencies - Third Party P,80007063,ENARA COMMUNITY CARE,"2,410.80",06/12/2016
Delivery Units,Adults and Communities,Other Agencies - Third Party P,80007064,ENARA COMMUNITY CARE,"2,410.80",06/12/2016
Delivery Units,Adults and Communities,Other Agencies - Third Party P,30145298,FERNBANK NURSING HOME.,"2,320.20",06/12/2016
Delivery Units,Adults and Communities,Other Agencies - Third Party P,30145299,FERNBANK NURSING HOME.,"2,320.20",06/12/2016
Delivery Units,Adults and Communities,Other Agencies - Third Party P,30145300,FERNBANK NURSING HOME.,"2,320.20",06/12/2016
Delivery Units,Adults and Communities,Other Agencies - Third Party P,30145301,FERNBANK NURSING HOME.,"2,320.20",06/12/2016
Delivery Units,Adults and Communities,Other Agencies - Third Party P,30145463,FERNBANK NURSING HOME.,"2,320.20",09/12/2016
Delivery Units,Adults and Communities,Other Agencies - Third Party P,30147284,FINBOND LIMITED,"2,657.14",20/12/2016
Delivery Units,Adults and Communities,Other Agencies - Third Party P,30147285,FINBOND LIMITED,"2,144.91",20/12/2016
Delivery Units,Adults and Communities,Other Agencies - Third Party P,30147286,FINBOND LIMITED,"3,321.43",20/12/2016
Delivery Units,Adults and Communities,Other Agencies - Third Party P,30147287,FINBOND LIMITED,"2,418.04",20/12/2016
Delivery Units,Adults and Communities,Other Agencies - Third Party P,30147288,FINBOND LIMITED,"2,431.29",20/12/2016
Delivery Units,Adults and Communities,Other Agencies - Third Party P,30146861,FLAGSWAN TWO LTD,"2,973.22",19/12/2016
Delivery Units,Adults and Communities,Other Agencies - Third Party P,30146862,FLAGSWAN TWO LTD,"2,464.29",19/12/2016
Delivery Units,Adults and Communities,Other Agencies - Third Party P,30145266,FLEXSERVE RESOURCE LTD,143.40,06/12/2016
Delivery Units,Adults and Communities,Other Agencies - Third Party P,30145987,FLEXSERVE RESOURCE LTD,"1,369.20",13/12/2016
Delivery Units,Adults and Communities,Other Agencies - Third Party P,30145988,FLEXSERVE RESOURCE LTD,143.40,13/12/2016
Delivery Units,Adults and Communities,Other Agencies - Third Party P,30145989,FLEXSERVE RESOURCE LTD,"2,937.20",13/12/2016
Delivery Units,Adults and Communities,Other Agencies - Third Party P,30147818,FLEXSERVE RESOURCE LTD,"2,875.60",22/12/2016
Delivery Units,Adults and Communities,Other Agencies - Third Party P,30147819,FLEXSERVE RESOURCE LTD,350.00,22/12/2016
Delivery Units,Adults and Communities,Other Agencies - Third Party P,30148425,FOCUS CARE LINK LTD,23.22,28/12/2016
Delivery Units,Adults and Communities,Other Agencies - Third Party P,30148426,FOCUS CARE LINK LTD,30.96,28/12/2016
Delivery Units,Adults and Communities,Other Agencies - Third Party P,30148428,FOCUS CARE LINK LTD,553.41,28/12/2016
Delivery Units,Adults and Communities,Other Agencies - Third Party P,30146846,FOUR SEASONS HEALTH CARE,"2,246.44",19/12/2016
Delivery Units,Adults and Communities,Other Agencies - Third Party P,30146847,FOUR SEASONS HEALTH CARE,"2,246.44",19/12/2016
Delivery Units,Adults and Communities,Other Agencies - Third Party P,30146848,FOUR SEASONS HEALTH CARE,"2,399.36",19/12/2016
Delivery Units,Adults and Communities,Other Agencies - Third Party P,30146849,FOUR SEASONS HEALTH CARE,"2,246.44",19/12/2016
Delivery Units,Adults and Communities,Other Agencies - Third Party P,30146850,FOUR SEASONS HEALTH CARE,"2,246.44",19/12/2016
Delivery Units,Adults and Communities,Other Agencies - Third Party P,30146851,FOUR SEASONS HEALTH CARE,"2,246.44",19/12/2016
Delivery Units,Adults and Communities,Other Agencies - Third Party P,30146852,FOUR SEASONS HEALTH CARE,"2,246.44",19/12/2016
Delivery Units,Adults and Communities,Other Agencies - Third Party P,30146853,FOUR SEASONS HEALTH CARE,"1,948.37",19/12/2016
Delivery Units,Adults and Communities,Other Agencies - Third Party P,30146854,FOUR SEASONS HEALTH CARE,"2,246.44",19/12/2016
Delivery Units,Adults and Communities,Other Agencies - Third Party P,30146855,FOUR SEASONS HEALTH CARE,"2,246.44",19/12/2016
Delivery Units,Adults and Communities,Other Agencies - Third Party P,30146856,FOUR SEASONS HEALTH CARE,"2,500.72",19/12/2016
Delivery Units,Adults and Communities,Other Agencies - Third Party P,30146857,FOUR SEASONS HEALTH CARE,"2,123.48",19/12/2016
Delivery Units,Adults and Communities,Other Agencies - Third Party P,30146858,FOUR SEASONS HEALTH CARE,"2,500.72",19/12/2016
Delivery Units,Adults and Communities,Other Agencies - Third Party P,30146859,FOUR SEASONS HEALTH CARE,"2,246.44",19/12/2016
Delivery Units,Adults and Communities,Other Agencies - Third Party P,30146860,FOUR SEASONS HEALTH CARE,"2,500.72",19/12/2016
Delivery Units,Adults and Communities,Other Agencies - Third Party P,30147273,FOUR SEASONS HEALTH CARE (NO.4) LTD,"2,004.00",20/12/2016
Delivery Units,Adults and Communities,Other Agencies - Third Party P,30147274,FOUR SEASONS HEALTH CARE (NO.4) LTD,"2,004.00",20/12/2016
Delivery Units,Adults and Communities,Other Agencies - Third Party P,30145270,FREMANTLE TRUST,"-1,849.60",15/12/2016
Delivery Units,Adults and Communities,Other Agencies - Third Party P,30147892,FREMANTLE TRUST,"2,402.14",22/12/2016
Delivery Units,Adults and Communities,Other Agencies - Third Party P,30147893,FREMANTLE TRUST,383.04,22/12/2016
Delivery Units,Adults and Communities,Other Agencies - Third Party P,30147894,FREMANTLE TRUST,"-13,455.00",22/12/2016
Delivery Units,Adults and Communities,Other Agencies - Third Party P,30147929,FREMANTLE TRUST,"1,423.52",22/12/2016
Delivery Units,Adults and Communities,Other Agencies - Third Party P,30147930,FREMANTLE TRUST,"3,581.96",22/12/2016
Delivery Units,Adults and Communities,Other Agencies - Third Party P,80007323,FREMANTLE TRUST,"13,050.74",21/12/2016
Delivery Units,Adults and Communities,Other Agencies - Third Party P,80007324,FREMANTLE TRUST,"2,602.14",15/12/2016
Delivery Units,Adults and Communities,Other Agencies - Third Party P,80007480,FREMANTLE TRUST,"74,025.80",20/12/2016
Delivery Units,Adults and Communities,Other Agencies - Third Party P,30145302,FRIEND IN NEED COMMUNITY CENTRE,320.00,06/12/2016
Delivery Units,Adults and Communities,Other Agencies - Third Party P,30145303,FRIEND IN NEED COMMUNITY CENTRE,240.00,06/12/2016
Delivery Units,Adults and Communities,Other Agencies - Third Party P,30147874,FRIEND IN NEED COMMUNITY CENTRE,320.00,22/12/2016
Delivery Units,Adults and Communities,Other Agencies - Third Party P,30147317,FRIERN RESIDENTIAL CARE HOME,"2,103.31",20/12/2016
Delivery Units,Adults and Communities,Other Agencies - Third Party P,30147324,FRIERN RESIDENTIAL CARE HOME,"3,985.71",20/12/2016
Delivery Units,Adults and Communities,Other Agencies - Third Party P,30147325,FRIERN RESIDENTIAL CARE HOME,"3,985.71",20/12/2016
Delivery Units,Adults and Communities,Other Agencies - Third Party P,30145282,GENTLE CARE,222.32,06/12/2016
Delivery Units,Adults and Communities,Other Agencies - Third Party P,30146370,GENTLE HANDS CARE AGENCY,216.00,14/12/2016
Delivery Units,Adults and Communities,Other Agencies - Third Party P,30146371,GENTLE HANDS CARE AGENCY,270.00,14/12/2016
Delivery Units,Adults and Communities,Other Agencies - Third Party P,30147896,GENTLE HANDS CARE AGENCY,481.00,22/12/2016
Delivery Units,Adults and Communities,Other Agencies - Third Party P,30145284,GENTLE HANDS CARE HOMES LIMITED,"4,394.00",06/12/2016
Delivery Units,Adults and Communities,Other Agencies - Third Party P,30146372,GENTLE HANDS CARE HOMES LIMITED,"2,700.00",14/12/2016
Delivery Units,Adults and Communities,Other Agencies - Third Party P,30146373,GENTLE HANDS CARE HOMES LIMITED,"3,419.00",14/12/2016
Delivery Units,Adults and Communities,Other Agencies - Third Party P,80007321,GENTLE HANDS CARE HOMES LIMITED,"1,080.00",14/12/2016
Delivery Units,Adults and Communities,Other Agencies - Third Party P,30147347,GLENHOLME PSYCHIATRIC AFTER CARE HO,"4,097.05",20/12/2016
Delivery Units,Adults and Communities,Other Agencies - Third Party P,30147358,GLENHOLME PSYCHIATRIC AFTER CARE HO,"4,262.94",20/12/2016
Delivery Units,Adults and Communities,Other Agencies - Third Party P,30147442,GLENHOLME PSYCHIATRIC AFTER CARE HO,"3,986.16",20/12/2016
Delivery Units,Adults and Communities,Other Agencies - Third Party P,30146354,GOLDSMITH PERSONNEL LTD,160.00,14/12/2016
Delivery Units,Adults and Communities,Other Agencies - Third Party P,30147035,GOLDSMITH PERSONNEL LTD,196.00,20/12/2016
Delivery Units,Adults and Communities,Other Agencies - Third Party P,30147037,GOLDSMITH PERSONNEL LTD,196.00,22/12/2016
Delivery Units,Adults and Communities,Other Agencies - Third Party P,30147038,GOLDSMITH PERSONNEL LTD,376.00,22/12/2016
Delivery Units,Adults and Communities,Other Agencies - Third Party P,30145513,HARDEN,"4,806.00",09/12/2016
Delivery Units,Adults and Communities,Other Agencies - Third Party P,30142616,HEADWAY EAST LONDON,634.84,06/12/2016
Delivery Units,Adults and Communities,Other Agencies - Third Party P,30145949,HEADWAY EAST LONDON,376.08,28/12/2016
Delivery Units,Adults and Communities,Other Agencies - Third Party P,30145950,HEADWAY EAST LONDON,634.84,28/12/2016
Delivery Units,Adults and Communities,Other Agencies - Third Party P,30146598,HENRY NIHILL HOUSE,"2,398.56",19/12/2016
Delivery Units,Adults and Communities,Other Agencies - Third Party P,30147272,HILLGREEN CARE LTD,"6,864.42",20/12/2016
Delivery Units,Adults and Communities,Other Agencies - Third Party P,30147322,HILTON LODGE LTD.,"2,800.00",20/12/2016
Delivery Units,Adults and Communities,Other Agencies - Third Party P,30147401,HILTON LODGE LTD.,"2,480.00",20/12/2016
Delivery Units,Adults and Communities,Other Agencies - Third Party P,30147429,HILTON LODGE LTD.,"2,480.00",20/12/2016
Delivery Units,Adults and Communities,Other Agencies - Third Party P,30147445,HILTON LODGE LTD.,"2,211.80",20/12/2016
Delivery Units,Adults and Communities,Other Agencies - Third Party P,30147447,HILTON LODGE LTD.,"2,211.80",20/12/2016
Delivery Units,Adults and Communities,Other Agencies - Third Party P,30147484,HILTON LODGE LTD.,"2,211.80",20/12/2016
Delivery Units,Adults and Communities,Other Agencies - Third Party P,30147488,HILTON LODGE LTD.,"2,211.80",20/12/2016
Delivery Units,Adults and Communities,Other Agencies - Third Party P,30147924,HILTON LODGE LTD.,"1,692.03",22/12/2016
Delivery Units,Adults and Communities,Other Agencies - Third Party P,30146534,HOFFMAN FOUNDATION FOR AUTISM,"15,504.00",19/12/2016
Delivery Units,Adults and Communities,Other Agencies - Third Party P,30147148,HOFFMAN FOUNDATION FOR AUTISM,"-4,318.36",28/12/2016
Delivery Units,Adults and Communities,Other Agencies - Third Party P,30147271,HOLLY HOUSE RESIDENTIAL HOME,"2,600.00",20/12/2016
Delivery Units,Adults and Communities,Other Agencies - Third Party P,30147323,HONISTER RESIDENTIAL CARE LTD,"2,418.04",20/12/2016
Delivery Units,Adults and Communities,Other Agencies - Third Party P,30147502,HUSKARDS NEW CARE LTD,"2,249.36",20/12/2016
Delivery Units,Adults and Communities,Other Agencies - Third Party P,30147050,INDEPENDENCE HOMES LIMITED,"2,900.00",20/12/2016
Delivery Units,Adults and Communities,Other Agencies - Third Party P,30145229,INDIVIDUALISED CARE LIMITED,224.00,02/12/2016
Delivery Units,Adults and Communities,Other Agencies - Third Party P,30147004,INDIVIDUALISED CARE LIMITED,-107.50,22/12/2016
Delivery Units,Adults and Communities,Other Agencies - Third Party P,30147005,INDIVIDUALISED CARE LIMITED,-200.00,22/12/2016
Delivery Units,Adults and Communities,Other Agencies - Third Party P,30147767,INDIVIDUALISED CARE LIMITED,280.00,22/12/2016
Delivery Units,Adults and Communities,Other Agencies - Third Party P,30147768,INDIVIDUALISED CARE LIMITED,800.00,22/12/2016
Delivery Units,Adults and Communities,Other Agencies - Third Party P,30147769,INDIVIDUALISED CARE LIMITED,"1,000.00",22/12/2016
Delivery Units,Adults and Communities,Other Agencies - Third Party P,30147770,INDIVIDUALISED CARE LIMITED,256.00,22/12/2016
Delivery Units,Adults and Communities,Other Agencies - Third Party P,30147771,INDIVIDUALISED CARE LIMITED,224.00,22/12/2016
Delivery Units,Adults and Communities,Other Agencies - Third Party P,30147772,INDIVIDUALISED CARE LIMITED,200.00,22/12/2016
Delivery Units,Adults and Communities,Other Agencies - Third Party P,30147773,INDIVIDUALISED CARE LIMITED,300.00,22/12/2016
Delivery Units,Adults and Communities,Other Agencies - Third Party P,30147774,INDIVIDUALISED CARE LIMITED,288.00,22/12/2016
Delivery Units,Adults and Communities,Other Agencies - Third Party P,30147775,INDIVIDUALISED CARE LIMITED,500.00,22/12/2016
Delivery Units,Adults and Communities,Other Agencies - Third Party P,30147776,INDIVIDUALISED CARE LIMITED,125.00,22/12/2016
Delivery Units,Adults and Communities,Other Agencies - Third Party P,30147777,INDIVIDUALISED CARE LIMITED,600.00,22/12/2016
Delivery Units,Adults and Communities,Other Agencies - Third Party P,30147778,INDIVIDUALISED CARE LIMITED,"1,800.00",22/12/2016
Delivery Units,Adults and Communities,Other Agencies - Third Party P,30145268,JACARANDA HEALTHCARE,568.40,06/12/2016
Delivery Units,Adults and Communities,Other Agencies - Third Party P,30146533,JEMINI RESPONSE,"9,100.00",21/12/2016
Delivery Units,Adults and Communities,Other Agencies - Third Party P,30145232,JEWISH CARE,330.00,02/12/2016
Delivery Units,Adults and Communities,Other Agencies - Third Party P,30145465,JEWISH CARE,"2,322.40",09/12/2016
Delivery Units,Adults and Communities,Other Agencies - Third Party P,30146812,JEWISH CARE,580.60,19/12/2016
Delivery Units,Adults and Communities,Other Agencies - Third Party P,30146813,JEWISH CARE,"1,161.20",19/12/2016
Delivery Units,Adults and Communities,Other Agencies - Third Party P,30147292,JEWISH CARE,"6,400.00",20/12/2016
Delivery Units,Adults and Communities,Other Agencies - Third Party P,30147297,JEWISH CARE,-15.24,20/12/2016
Delivery Units,Adults and Communities,Other Agencies - Third Party P,30147298,JEWISH CARE,"2,436.39",20/12/2016
Delivery Units,Adults and Communities,Other Agencies - Third Party P,30147300,JEWISH CARE,"4,121.41",20/12/2016
Delivery Units,Adults and Communities,Other Agencies - Third Party P,30147305,JEWISH CARE,"1,066.68",20/12/2016
Delivery Units,Adults and Communities,Other Agencies - Third Party P,30147306,JEWISH CARE,"1,492.97",20/12/2016
Delivery Units,Adults and Communities,Other Agencies - Third Party P,30145376,JIGSAW CREATIVE CARE LIMITED,"9,065.28",08/12/2016
Delivery Units,Adults and Communities,Other Agencies - Third Party P,30145377,JIGSAW CREATIVE CARE LIMITED,"4,236.00",08/12/2016
Delivery Units,Adults and Communities,Other Agencies - Third Party P,30145378,JIGSAW CREATIVE CARE LIMITED,"8,349.00",08/12/2016
Delivery Units,Adults and Communities,Other Agencies - Third Party P,30147812,JIGSAW CREATIVE CARE LIMITED,"6,043.52",22/12/2016
Delivery Units,Adults and Communities,Other Agencies - Third Party P,30147813,JIGSAW CREATIVE CARE LIMITED,"2,824.00",22/12/2016
Delivery Units,Adults and Communities,Other Agencies - Third Party P,30147814,JIGSAW CREATIVE CARE LIMITED,"5,566.00",22/12/2016
Delivery Units,Adults and Communities,Other Agencies - Third Party P,30146279,KARE PLUS BARNET,11.78,14/12/2016
Delivery Units,Adults and Communities,Other Agencies - Third Party P,30146280,KARE PLUS BARNET,47.01,14/12/2016
Delivery Units,Adults and Communities,Other Agencies - Third Party P,30146281,KARE PLUS BARNET,35.34,14/12/2016
Delivery Units,Adults and Communities,Other Agencies - Third Party P,30146282,KARE PLUS BARNET,35.34,14/12/2016
Delivery Units,Adults and Communities,Other Agencies - Third Party P,30146283,KARE PLUS BARNET,112.84,14/12/2016
Delivery Units,Adults and Communities,Other Agencies - Third Party P,30146284,KARE PLUS BARNET,324.53,14/12/2016
Delivery Units,Adults and Communities,Other Agencies - Third Party P,30146285,KARE PLUS BARNET,35.34,14/12/2016
Delivery Units,Adults and Communities,Other Agencies - Third Party P,30146286,KARE PLUS BARNET,120.85,14/12/2016
Delivery Units,Adults and Communities,Other Agencies - Third Party P,30146287,KARE PLUS BARNET,336.31,14/12/2016
Delivery Units,Adults and Communities,Other Agencies - Third Party P,30146288,KARE PLUS BARNET,367.80,14/12/2016
Delivery Units,Adults and Communities,Other Agencies - Third Party P,30146289,KARE PLUS BARNET,47.01,14/12/2016
Delivery Units,Adults and Communities,Other Agencies - Third Party P,30146290,KARE PLUS BARNET,247.37,14/12/2016
Delivery Units,Adults and Communities,Other Agencies - Third Party P,30146291,KARE PLUS BARNET,324.53,14/12/2016
Delivery Units,Adults and Communities,Other Agencies - Third Party P,30146292,KARE PLUS BARNET,35.34,14/12/2016
Delivery Units,Adults and Communities,Other Agencies - Third Party P,30146293,KARE PLUS BARNET,296.84,14/12/2016
Delivery Units,Adults and Communities,Other Agencies - Third Party P,30146294,KARE PLUS BARNET,324.53,14/12/2016
Delivery Units,Adults and Communities,Other Agencies - Third Party P,30146295,KARE PLUS BARNET,11.78,14/12/2016
Delivery Units,Adults and Communities,Other Agencies - Third Party P,30146296,KARE PLUS BARNET,296.84,14/12/2016
Delivery Units,Adults and Communities,Other Agencies - Third Party P,30146297,KARE PLUS BARNET,307.16,14/12/2016
Delivery Units,Adults and Communities,Other Agencies - Third Party P,30146298,KARE PLUS BARNET,35.34,14/12/2016
Delivery Units,Adults and Communities,Other Agencies - Third Party P,30146300,KARE PLUS BARNET,310.74,14/12/2016
Delivery Units,Adults and Communities,Other Agencies - Third Party P,30147063,KARE PLUS BARNET,180.69,20/12/2016
Delivery Units,Adults and Communities,Other Agencies - Third Party P,30147064,KARE PLUS BARNET,161.79,20/12/2016
Delivery Units,Adults and Communities,Other Agencies - Third Party P,30147065,KARE PLUS BARNET,183.25,20/12/2016
Delivery Units,Adults and Communities,Other Agencies - Third Party P,30147066,KARE PLUS BARNET,183.25,20/12/2016
Delivery Units,Adults and Communities,Other Agencies - Third Party P,30147067,KARE PLUS BARNET,21.57,20/12/2016
Delivery Units,Adults and Communities,Other Agencies - Third Party P,30147119,KARE PLUS BARNET,-15.99,20/12/2016
Delivery Units,Adults and Communities,Other Agencies - Third Party P,30147120,KARE PLUS BARNET,-10.66,20/12/2016
Delivery Units,Adults and Communities,Other Agencies - Third Party P,30147121,KARE PLUS BARNET,-10.68,20/12/2016
Delivery Units,Adults and Communities,Other Agencies - Third Party P,30147128,KARE PLUS BARNET,24.68,20/12/2016
Delivery Units,Adults and Communities,Other Agencies - Third Party P,30147715,KARUNA MANOR,"4,207.14",22/12/2016
Delivery Units,Adults and Communities,Other Agencies - Third Party P,30147150,KEMBLE HOUSE,"8,192.99",20/12/2016
Delivery Units,Adults and Communities,Other Agencies - Third Party P,80007456,KEMBLE HOUSE,"74,164.30",20/12/2016
Delivery Units,Adults and Communities,Other Agencies - Third Party P,30147847,KISHARON DAY SCHOOL,"1,464.03",22/12/2016
Delivery Units,Adults and Communities,Other Agencies - Third Party P,30147848,KISHARON DAY SCHOOL,"4,260.72",22/12/2016
Delivery Units,Adults and Communities,Other Agencies - Third Party P,30147849,KISHARON DAY SCHOOL,"2,144.10",22/12/2016
Delivery Units,Adults and Communities,Other Agencies - Third Party P,30147850,KISHARON DAY SCHOOL,"2,284.24",22/12/2016
Delivery Units,Adults and Communities,Other Agencies - Third Party P,30147851,KISHARON DAY SCHOOL,686.88,22/12/2016
Delivery Units,Adults and Communities,Other Agencies - Third Party P,30147852,KISHARON DAY SCHOOL,"1,128.15",22/12/2016
Delivery Units,Adults and Communities,Other Agencies - Third Party P,30147853,KISHARON DAY SCHOOL,381.54,22/12/2016
Delivery Units,Adults and Communities,Other Agencies - Third Party P,30147854,KISHARON DAY SCHOOL,"1,373.49",22/12/2016
Delivery Units,Adults and Communities,Other Agencies - Third Party P,30147855,KISHARON DAY SCHOOL,397.11,22/12/2016
Delivery Units,Adults and Communities,Other Agencies - Third Party P,30147856,KISHARON DAY SCHOOL,"1,679.87",22/12/2016
Delivery Units,Adults and Communities,Other Agencies - Third Party P,30147857,KISHARON DAY SCHOOL,"1,340.18",22/12/2016
Delivery Units,Adults and Communities,Other Agencies - Third Party P,30147858,KISHARON DAY SCHOOL,"1,241.16",22/12/2016
Delivery Units,Adults and Communities,Other Agencies - Third Party P,30147859,KISHARON DAY SCHOOL,"1,369.23",22/12/2016
Delivery Units,Adults and Communities,Other Agencies - Third Party P,30147860,KISHARON DAY SCHOOL,"1,373.68",22/12/2016
Delivery Units,Adults and Communities,Other Agencies - Third Party P,30147861,KISHARON DAY SCHOOL,"1,595.00",22/12/2016
Delivery Units,Adults and Communities,Other Agencies - Third Party P,30147862,KISHARON DAY SCHOOL,733.72,22/12/2016
Delivery Units,Adults and Communities,Other Agencies - Third Party P,30147864,KISHARON DAY SCHOOL,"1,275.96",22/12/2016
Delivery Units,Adults and Communities,Other Agencies - Third Party P,30147869,KISHARON DAY SCHOOL,"1,914.00",22/12/2016
Delivery Units,Adults and Communities,Other Agencies - Third Party P,30145470,LANGDON COLLEGE,"20,692.07",13/12/2016
Delivery Units,Adults and Communities,Other Agencies - Third Party P,30145239,LANGDON COMMUNITY LTD,"1,124.80",06/12/2016
Delivery Units,Adults and Communities,Other Agencies - Third Party P,30145240,LANGDON COMMUNITY LTD,"3,411.48",06/12/2016
Delivery Units,Adults and Communities,Other Agencies - Third Party P,30145241,LANGDON COMMUNITY LTD,"4,594.04",06/12/2016
Delivery Units,Adults and Communities,Other Agencies - Third Party P,30145242,LANGDON COMMUNITY LTD,"1,641.60",06/12/2016
Delivery Units,Adults and Communities,Other Agencies - Third Party P,30145243,LANGDON COMMUNITY LTD,"2,097.60",06/12/2016
Delivery Units,Adults and Communities,Other Agencies - Third Party P,30145245,LANGDON COMMUNITY LTD,"2,403.92",06/12/2016
Delivery Units,Adults and Communities,Other Agencies - Third Party P,30145246,LANGDON COMMUNITY LTD,243.20,06/12/2016
Delivery Units,Adults and Communities,Other Agencies - Third Party P,30145247,LANGDON COMMUNITY LTD,"1,763.20",06/12/2016
Delivery Units,Adults and Communities,Other Agencies - Third Party P,30145248,LANGDON COMMUNITY LTD,"1,315.12",06/12/2016
Delivery Units,Adults and Communities,Other Agencies - Third Party P,30145249,LANGDON COMMUNITY LTD,608.00,06/12/2016
Delivery Units,Adults and Communities,Other Agencies - Third Party P,30145251,LANGDON COMMUNITY LTD,"1,064.00",06/12/2016
Delivery Units,Adults and Communities,Other Agencies - Third Party P,30145252,LANGDON COMMUNITY LTD,425.60,06/12/2016
Delivery Units,Adults and Communities,Other Agencies - Third Party P,30145253,LANGDON COMMUNITY LTD,"1,276.80",06/12/2016
Delivery Units,Adults and Communities,Other Agencies - Third Party P,30145254,LANGDON COMMUNITY LTD,851.20,06/12/2016
Delivery Units,Adults and Communities,Other Agencies - Third Party P,30145255,LANGDON COMMUNITY LTD,956.36,06/12/2016
Delivery Units,Adults and Communities,Other Agencies - Third Party P,30145931,LANGDON COMMUNITY LTD,"2,128.00",13/12/2016
Delivery Units,Adults and Communities,Other Agencies - Third Party P,30145932,LANGDON COMMUNITY LTD,"1,094.40",13/12/2016
Delivery Units,Adults and Communities,Other Agencies - Third Party P,30146199,LCS PARTNERSHIPS LTD,896.00,14/12/2016
Delivery Units,Adults and Communities,Other Agencies - Third Party P,30147923,LCS PARTNERSHIPS LTD,896.00,23/12/2016
Delivery Units,Adults and Communities,Other Agencies - Third Party P,30146845,LEEMING BAR CARE HOME,"2,039.70",19/12/2016
Delivery Units,Adults and Communities,Other Agencies - Third Party P,30147343,LEO BAECK HOUSING ASSOC. LTD,"2,448.78",20/12/2016
Delivery Units,Adults and Communities,Other Agencies - Third Party P,30147421,LEO BAECK HOUSING ASSOC. LTD,"2,249.45",20/12/2016
Delivery Units,Adults and Communities,Other Agencies - Third Party P,30147423,LEO BAECK HOUSING ASSOC. LTD,"2,448.78",20/12/2016
Delivery Units,Adults and Communities,Other Agencies - Third Party P,30147424,LEO BAECK HOUSING ASSOC. LTD,-72.56,20/12/2016
Delivery Units,Adults and Communities,Other Agencies - Third Party P,30147451,LEO BAECK HOUSING ASSOC. LTD,"2,327.21",20/12/2016
Delivery Units,Adults and Communities,Other Agencies - Third Party P,30147496,LEO BAECK HOUSING ASSOC. LTD,"2,361.93",20/12/2016
Delivery Units,Adults and Communities,Other Agencies - Third Party P,30147891,LEO BAECK HOUSING ASSOC. LTD,"2,249.45",22/12/2016
Delivery Units,Adults and Communities,Other Agencies - Third Party P,30147951,LEO BAECK HOUSING ASSOC. LTD,"2,249.45",22/12/2016
Delivery Units,Adults and Communities,Other Agencies - Third Party P,30147476,LEWIS.W.HAMMERSON MEMORIAL HOME,"2,317.83",20/12/2016
Delivery Units,Adults and Communities,Other Agencies - Third Party P,30147477,LEWIS.W.HAMMERSON MEMORIAL HOME,"2,317.83",20/12/2016
Delivery Units,Adults and Communities,Other Agencies - Third Party P,80006673,LIFESTYLE CARE 2011 PLC,"2,138.00",06/12/2016
Delivery Units,Adults and Communities,Other Agencies - Third Party P,80007105,LIFESTYLE CARE 2011 PLC,"2,138.00",06/12/2016
Delivery Units,Adults and Communities,Other Agencies - Third Party P,80007100,LIFESTYLE CARE PLC,"3,800.00",06/12/2016
Delivery Units,Adults and Communities,Other Agencies - Third Party P,80007101,LIFESTYLE CARE PLC,625.00,06/12/2016
Delivery Units,Adults and Communities,Other Agencies - Third Party P,80007102,LIFESTYLE CARE PLC,"2,094.52",06/12/2016
Delivery Units,Adults and Communities,Other Agencies - Third Party P,80007103,LIFESTYLE CARE PLC,"3,854.83",06/12/2016
Delivery Units,Adults and Communities,Other Agencies - Third Party P,80007104,LIFESTYLE CARE PLC,"2,010.99",06/12/2016
Delivery Units,Adults and Communities,Other Agencies - Third Party P,30145500,LIVABILITY,"2,400.00",09/12/2016
Delivery Units,Adults and Communities,Other Agencies - Third Party P,30145502,LIVABILITY,"3,424.00",09/12/2016
Delivery Units,Adults and Communities,Other Agencies - Third Party P,30145512,LIVABILITY,"4,891.20",09/12/2016
Delivery Units,Adults and Communities,Other Agencies - Third Party P,30144224,M D HOMES,"3,428.57",20/12/2016
Delivery Units,Adults and Communities,Other Agencies - Third Party P,30147430,M D HOMES,"3,542.86",20/12/2016
Delivery Units,Adults and Communities,Other Agencies - Third Party P,30145015,MACINTYRE CARE,758.80,01/12/2016
Delivery Units,Adults and Communities,Other Agencies - Third Party P,30145522,MADELAYNE COURT,"2,144.91",09/12/2016
Delivery Units,Adults and Communities,Other Agencies - Third Party P,30145448,MANDELA HOUSE,"3,541.84",14/12/2016
Delivery Units,Adults and Communities,Other Agencies - Third Party P,30147468,MARLBOROUGH HOUSE,"3,951.44",20/12/2016
Delivery Units,Adults and Communities,Other Agencies - Third Party P,30147925,MARRILYNE LODGE,"2,554.16",22/12/2016
Delivery Units,Adults and Communities,Other Agencies - Third Party P,30147501,MAYFIELD ADULT SERVICES,"9,875.71",20/12/2016
Delivery Units,Adults and Communities,Other Agencies - Third Party P,30147319,MEERA NURSING HOME LIMITED,"2,397.72",20/12/2016
Delivery Units,Adults and Communities,Other Agencies - Third Party P,30147353,MEERA NURSING HOME LIMITED,"2,397.72",20/12/2016
Delivery Units,Adults and Communities,Other Agencies - Third Party P,30147395,MEERA NURSING HOME LIMITED,"2,397.72",20/12/2016
Delivery Units,Adults and Communities,Other Agencies - Third Party P,30147422,MEERA NURSING HOME LIMITED,"2,397.72",20/12/2016
Delivery Units,Adults and Communities,Other Agencies - Third Party P,30147458,MEERA NURSING HOME LIMITED,"2,397.72",20/12/2016
Delivery Units,Adults and Communities,Other Agencies - Third Party P,30147459,MEERA NURSING HOME LIMITED,"2,397.72",20/12/2016
Delivery Units,Adults and Communities,Other Agencies - Third Party P,30147474,MEERA NURSING HOME LIMITED,"2,397.72",20/12/2016
Delivery Units,Adults and Communities,Other Agencies - Third Party P,30147500,MEERA NURSING HOME LIMITED,"2,397.72",20/12/2016
Delivery Units,Adults and Communities,Other Agencies - Third Party P,30147937,MEERA NURSING HOME LIMITED,"2,397.72",22/12/2016
Delivery Units,Adults and Communities,Other Agencies - Third Party P,30147938,MEERA NURSING HOME LIMITED,"-1,469.57",22/12/2016
Delivery Units,Adults and Communities,Other Agencies - Third Party P,30147196,MENTAL HEALTH CARE (UK) LTD,"11,140.69",20/12/2016
Delivery Units,Adults and Communities,Other Agencies - Third Party P,30147833,METROPOLITAN HOUSING TRUST,658.16,28/12/2016
Delivery Units,Adults and Communities,Other Agencies - Third Party P,30147834,METROPOLITAN HOUSING TRUST,"1,005.74",28/12/2016
Delivery Units,Adults and Communities,Other Agencies - Third Party P,30147873,ML HOMES LTD,"1,780.80",21/12/2016
Delivery Units,Adults and Communities,Other Agencies - Third Party P,30147877,ML HOMES LTD,"1,740.00",21/12/2016
Delivery Units,Adults and Communities,Other Agencies - Third Party P,30147882,ML HOMES LTD,"2,118.36",21/12/2016
Delivery Units,Adults and Communities,Other Agencies - Third Party P,30147885,ML HOMES LTD,"1,433.56",21/12/2016
Delivery Units,Adults and Communities,Other Agencies - Third Party P,30147889,ML HOMES LTD,"1,751.16",21/12/2016
Delivery Units,Adults and Communities,Other Agencies - Third Party P,30147895,ML HOMES LTD,"2,118.36",21/12/2016
Delivery Units,Adults and Communities,Other Agencies - Third Party P,30147913,ML HOMES LTD,"1,417.24",21/12/2016
Delivery Units,Adults and Communities,Other Agencies - Third Party P,30147917,ML HOMES LTD,"1,428.68",21/12/2016
Delivery Units,Adults and Communities,Other Agencies - Third Party P,30147920,ML HOMES LTD,"1,009.03",21/12/2016
Delivery Units,Adults and Communities,Other Agencies - Third Party P,30147936,ML HOMES LTD,"1,767.40",21/12/2016
Delivery Units,Adults and Communities,Other Agencies - Third Party P,30147949,ML HOMES LTD,"1,780.00",21/12/2016
Delivery Units,Adults and Communities,Other Agencies - Third Party P,30147954,ML HOMES LTD,"1,780.80",21/12/2016
Delivery Units,Adults and Communities,Other Agencies - Third Party P,30147955,ML HOMES LTD,"1,751.16",21/12/2016
Delivery Units,Adults and Communities,Other Agencies - Third Party P,30145283,MOREWAYS HEALTHCARE,"2,600.00",06/12/2016
Delivery Units,Adults and Communities,Other Agencies - Third Party P,30147129,MOREWAYS HEALTHCARE,"2,907.00",20/12/2016
Delivery Units,Adults and Communities,Other Agencies - Third Party P,30147130,MOREWAYS HEALTHCARE,"1,800.00",20/12/2016
Delivery Units,Adults and Communities,Other Agencies - Third Party P,30147375,NAZARETH HOUSE,"2,934.37",20/12/2016
Delivery Units,Adults and Communities,Other Agencies - Third Party P,30147376,NAZARETH HOUSE,"2,216.41",20/12/2016
Delivery Units,Adults and Communities,Other Agencies - Third Party P,30147377,NAZARETH HOUSE,"1,084.69",20/12/2016
Delivery Units,Adults and Communities,Other Agencies - Third Party P,30147378,NAZARETH HOUSE,"1,624.20",20/12/2016
Delivery Units,Adults and Communities,Other Agencies - Third Party P,30147379,NAZARETH HOUSE,"2,031.76",20/12/2016
Delivery Units,Adults and Communities,Other Agencies - Third Party P,30147380,NAZARETH HOUSE,"2,757.39",20/12/2016
Delivery Units,Adults and Communities,Other Agencies - Third Party P,30147381,NAZARETH HOUSE,"2,031.76",20/12/2016
Delivery Units,Adults and Communities,Other Agencies - Third Party P,30145425,NEEM TREE CARE CENTRE,"2,612.14",09/12/2016
Delivery Units,Adults and Communities,Other Agencies - Third Party P,30145426,NEEM TREE CARE CENTRE,"2,610.00",09/12/2016
Delivery Units,Adults and Communities,Other Agencies - Third Party P,30145293,NEWCENTURY CARE LTD,"2,398.56",06/12/2016
Delivery Units,Adults and Communities,Other Agencies - Third Party P,30147154,NEWCENTURY CARE LTD,"3,764.29",20/12/2016
Delivery Units,Adults and Communities,Other Agencies - Third Party P,30147155,NEWCENTURY CARE LTD,"2,655.55",20/12/2016
Delivery Units,Adults and Communities,Other Agencies - Third Party P,30147156,NEWCENTURY CARE LTD,"3,764.29",20/12/2016
Delivery Units,Adults and Communities,Other Agencies - Third Party P,30147157,NEWCENTURY CARE LTD,"2,655.55",20/12/2016
Delivery Units,Adults and Communities,Other Agencies - Third Party P,30147158,NEWCENTURY CARE LTD,"2,655.55",20/12/2016
Delivery Units,Adults and Communities,Other Agencies - Third Party P,30146198,NEXT STEP SUPPORT LIMITED,"2,240.00",13/12/2016
Delivery Units,Adults and Communities,Other Agencies - Third Party P,30147144,NEXT STEP SUPPORT LIMITED,"2,000.00",20/12/2016
Delivery Units,Adults and Communities,Other Agencies - Third Party P,30147265,NIGHTINGALES RESIDENTIAL CARE HOME,"3,326.08",20/12/2016
Delivery Units,Adults and Communities,Other Agencies - Third Party P,30147266,NIGHTINGALES RESIDENTIAL CARE HOME,"3,326.08",20/12/2016
Delivery Units,Adults and Communities,Other Agencies - Third Party P,30145019,NORWOOD RAVENSWOOD SCHOOLS LTD,"-1,411.05",06/12/2016
Delivery Units,Adults and Communities,Other Agencies - Third Party P,30145291,NORWOOD RAVENSWOOD SCHOOLS LTD,"1,003.20",06/12/2016
Delivery Units,Adults and Communities,Other Agencies - Third Party P,30145292,NORWOOD RAVENSWOOD SCHOOLS LTD,"1,337.60",06/12/2016
Delivery Units,Adults and Communities,Other Agencies - Third Party P,80007098,NOUVITA LTD,"5,203.17",02/12/2016
Delivery Units,Adults and Communities,Other Agencies - Third Party P,80007099,NOUVITA LTD,"1,992.86",02/12/2016
Delivery Units,Adults and Communities,Other Agencies - Third Party P,30146338,ONE STEP (SUPPORT) LTD,"1,339.80",14/12/2016
Delivery Units,Adults and Communities,Other Agencies - Third Party P,30146339,ONE STEP (SUPPORT) LTD,"3,395.80",14/12/2016
Delivery Units,Adults and Communities,Other Agencies - Third Party P,30146340,ONE STEP (SUPPORT) LTD,"2,618.20",14/12/2016
Delivery Units,Adults and Communities,Other Agencies - Third Party P,30146341,ONE STEP (SUPPORT) LTD,638.00,14/12/2016
Delivery Units,Adults and Communities,Other Agencies - Third Party P,30146342,ONE STEP (SUPPORT) LTD,638.00,14/12/2016
Delivery Units,Adults and Communities,Other Agencies - Third Party P,30146343,ONE STEP (SUPPORT) LTD,"7,692.72",14/12/2016
Delivery Units,Adults and Communities,Other Agencies - Third Party P,30147890,ONE STEP (SUPPORT) LTD,-411.54,22/12/2016
Delivery Units,Adults and Communities,Other Agencies - Third Party P,30147940,ONE STEP (SUPPORT) LTD,"1,810.79",22/12/2016
Delivery Units,Adults and Communities,Other Agencies - Third Party P,30147159,PATERNOSTER HOUSE (BARCHESTER CARE),"5,008.71",20/12/2016
Delivery Units,Adults and Communities,Other Agencies - Third Party P,30147118,PILLARCARE,"6,328.00",20/12/2016
Delivery Units,Adults and Communities,Other Agencies - Third Party P,30147311,PLATINUM HEALTH RESOURCES LTD,"4,233.71",20/12/2016
Delivery Units,Adults and Communities,Other Agencies - Third Party P,30147374,PLATINUM HEALTH RESOURCES LTD,"3,893.11",20/12/2016
Delivery Units,Adults and Communities,Other Agencies - Third Party P,30147427,PLATINUM HEALTH RESOURCES LTD,"3,764.29",20/12/2016
Delivery Units,Adults and Communities,Other Agencies - Third Party P,30143271,PRACTICAL CARE,84.00,13/12/2016
Delivery Units,Adults and Communities,Other Agencies - Third Party P,30143272,PRACTICAL CARE,"1,001.00",13/12/2016
Delivery Units,Adults and Communities,Other Agencies - Third Party P,30143273,PRACTICAL CARE,406.00,13/12/2016
Delivery Units,Adults and Communities,Other Agencies - Third Party P,30143705,PRACTICAL CARE,182.00,13/12/2016
Delivery Units,Adults and Communities,Other Agencies - Third Party P,30144634,PRACTICAL CARE,168.00,20/12/2016
Delivery Units,Adults and Communities,Other Agencies - Third Party P,30144635,PRACTICAL CARE,280.00,20/12/2016
Delivery Units,Adults and Communities,Other Agencies - Third Party P,30144636,PRACTICAL CARE,"1,666.00",20/12/2016
Delivery Units,Adults and Communities,Other Agencies - Third Party P,30144637,PRACTICAL CARE,157.50,20/12/2016
Delivery Units,Adults and Communities,Other Agencies - Third Party P,30144639,PRACTICAL CARE,476.00,20/12/2016
Delivery Units,Adults and Communities,Other Agencies - Third Party P,30144640,PRACTICAL CARE,451.50,20/12/2016
Delivery Units,Adults and Communities,Other Agencies - Third Party P,30145994,PRACTICAL CARE,525.00,13/12/2016
Delivery Units,Adults and Communities,Other Agencies - Third Party P,30145995,PRACTICAL CARE,262.50,13/12/2016
Delivery Units,Adults and Communities,Other Agencies - Third Party P,30145996,PRACTICAL CARE,140.00,20/12/2016
Delivery Units,Adults and Communities,Other Agencies - Third Party P,30146276,PRACTICAL CARE,224.00,20/12/2016
Delivery Units,Adults and Communities,Other Agencies - Third Party P,30147052,PRACTICAL CARE,437.50,28/12/2016
Delivery Units,Adults and Communities,Other Agencies - Third Party P,30147053,PRACTICAL CARE,"2,002.00",28/12/2016
Delivery Units,Adults and Communities,Other Agencies - Third Party P,30147820,PRACTICAL CARE,357.00,22/12/2016
Delivery Units,Adults and Communities,Other Agencies - Third Party P,30147821,PRACTICAL CARE,"2,002.00",23/12/2016
Delivery Units,Adults and Communities,Other Agencies - Third Party P,30147822,PRACTICAL CARE,"2,156.00",23/12/2016
Delivery Units,Adults and Communities,Other Agencies - Third Party P,30147823,PRACTICAL CARE,"1,960.00",23/12/2016
Delivery Units,Adults and Communities,Other Agencies - Third Party P,30147824,PRACTICAL CARE,"2,450.00",23/12/2016
Delivery Units,Adults and Communities,Other Agencies - Third Party P,30147825,PRACTICAL CARE,"2,352.00",23/12/2016
Delivery Units,Adults and Communities,Other Agencies - Third Party P,30146542,QUEEN ANN CARE,"3,985.71",19/12/2016
Delivery Units,Adults and Communities,Other Agencies - Third Party P,30147262,RAPKYNS CARE CENTRE,"6,394.86",20/12/2016
Delivery Units,Adults and Communities,Other Agencies - Third Party P,30147263,RAPKYNS CARE CENTRE,"6,642.86",20/12/2016
Delivery Units,Adults and Communities,Other Agencies - Third Party P,30147307,RESIDENTIAL CARE SERVICES LTD T/A FRANKL,"4,759.61",20/12/2016
Delivery Units,Adults and Communities,Other Agencies - Third Party P,30147123,ROLAND COMMUNITY CARE LTD,"2,150.64",20/12/2016
Delivery Units,Adults and Communities,Other Agencies - Third Party P,30147126,ROLAND COMMUNITY CARE LTD,"2,820.36",20/12/2016
Delivery Units,Adults and Communities,Other Agencies - Third Party P,30147448,ROLAND RESIDENTIAL CARE HOMES,"3,853.63",20/12/2016
Delivery Units,Adults and Communities,Other Agencies - Third Party P,30147313,ROLAND RESIDENTIAL CARE HOMES LTD,"3,322.00",20/12/2016
Delivery Units,Adults and Communities,Other Agencies - Third Party P,30147416,ROLAND RESIDENTIAL CARE HOMES LTD,"4,322.41",20/12/2016
Delivery Units,Adults and Communities,Other Agencies - Third Party P,30147420,ROLAND RESIDENTIAL CARE HOMES LTD,"4,583.32",20/12/2016
Delivery Units,Adults and Communities,Other Agencies - Third Party P,30147439,ROLAND RESIDENTIAL CARE HOMES LTD,"3,529.77",20/12/2016
Delivery Units,Adults and Communities,Other Agencies - Third Party P,30145316,ROSEACRES CARE HOME LIMITED,"2,460.30",06/12/2016
Delivery Units,Adults and Communities,Other Agencies - Third Party P,30145317,ROSEACRES CARE HOME LIMITED,492.06,06/12/2016
Delivery Units,Adults and Communities,Other Agencies - Third Party P,30145318,ROSEACRES CARE HOME LIMITED,"2,460.30",06/12/2016
Delivery Units,Adults and Communities,Other Agencies - Third Party P,30145319,ROSEACRES CARE HOME LIMITED,"2,460.30",06/12/2016
Delivery Units,Adults and Communities,Other Agencies - Third Party P,30145320,ROSEACRES CARE HOME LIMITED,"2,460.30",06/12/2016
Delivery Units,Adults and Communities,Other Agencies - Third Party P,30145321,ROSEACRES CARE HOME LIMITED,"2,260.03",06/12/2016
Delivery Units,Adults and Communities,Other Agencies - Third Party P,30145322,ROSEACRES CARE HOME LIMITED,"2,460.30",06/12/2016
Delivery Units,Adults and Communities,Other Agencies - Third Party P,30145323,ROSEACRES CARE HOME LIMITED,"2,460.30",06/12/2016
Delivery Units,Adults and Communities,Other Agencies - Third Party P,30145324,ROSEACRES CARE HOME LIMITED,"2,460.30",06/12/2016
Delivery Units,Adults and Communities,Other Agencies - Third Party P,30145325,ROSEACRES CARE HOME LIMITED,"2,300.00",06/12/2016
Delivery Units,Adults and Communities,Other Agencies - Third Party P,30145326,ROSEACRES CARE HOME LIMITED,"2,988.53",06/12/2016
Delivery Units,Adults and Communities,Other Agencies - Third Party P,30145327,ROSEACRES CARE HOME LIMITED,"2,460.30",06/12/2016
Delivery Units,Adults and Communities,Other Agencies - Third Party P,30145328,ROSEACRES CARE HOME LIMITED,"2,460.30",06/12/2016
Delivery Units,Adults and Communities,Other Agencies - Third Party P,30145329,ROSEACRES CARE HOME LIMITED,"2,260.03",06/12/2016
Delivery Units,Adults and Communities,Other Agencies - Third Party P,30145330,ROSEACRES CARE HOME LIMITED,"2,369.79",06/12/2016
Delivery Units,Adults and Communities,Other Agencies - Third Party P,30145331,ROSEACRES CARE HOME LIMITED,"2,460.30",06/12/2016
Delivery Units,Adults and Communities,Other Agencies - Third Party P,30145332,ROSEACRES CARE HOME LIMITED,"2,460.30",06/12/2016
Delivery Units,Adults and Communities,Other Agencies - Third Party P,30145514,ROSEACRES CARE HOME LIMITED,552.95,09/12/2016
Delivery Units,Adults and Communities,Other Agencies - Third Party P,30145515,ROSEACRES CARE HOME LIMITED,390.01,09/12/2016
Delivery Units,Adults and Communities,Other Agencies - Third Party P,30145516,ROSEACRES CARE HOME LIMITED,"2,211.80",09/12/2016
Delivery Units,Adults and Communities,Other Agencies - Third Party P,30147914,ROWAN HOUSE,"4,422.28",22/12/2016
Delivery Units,Adults and Communities,Other Agencies - Third Party P,30147764,ROYAL MENCAP SOCIETY,"1,595.00",22/12/2016
Delivery Units,Adults and Communities,Other Agencies - Third Party P,30147765,ROYAL MENCAP SOCIETY,"1,722.60",22/12/2016
Delivery Units,Adults and Communities,Other Agencies - Third Party P,30145285,SANCTUARY CARE LTD,"1,277.76",06/12/2016
Delivery Units,Adults and Communities,Other Agencies - Third Party P,30147398,SANCTUARY CARE LTD,"2,418.04",20/12/2016
Delivery Units,Adults and Communities,Other Agencies - Third Party P,80007037,SAXON COURT,604.76,02/12/2016
Delivery Units,Adults and Communities,Other Agencies - Third Party P,80007038,SAXON COURT,604.76,02/12/2016
Delivery Units,Adults and Communities,Other Agencies - Third Party P,30147382,SCIMITAR CARE HOTELS PLC,724.00,22/12/2016
Delivery Units,Adults and Communities,Other Agencies - Third Party P,30147383,SCIMITAR CARE HOTELS PLC,"3,750.00",20/12/2016
Delivery Units,Adults and Communities,Other Agencies - Third Party P,30147384,SCIMITAR CARE HOTELS PLC,"3,875.00",28/12/2016
Delivery Units,Adults and Communities,Other Agencies - Third Party P,30147385,SCIMITAR CARE HOTELS PLC,"3,976.86",28/12/2016
Delivery Units,Adults and Communities,Other Agencies - Third Party P,30147437,SCIMITAR CARE HOTELS PLC,"3,214.29",20/12/2016
Delivery Units,Adults and Communities,Other Agencies - Third Party P,30147438,SCIMITAR CARE HOTELS PLC,"3,321.43",28/12/2016
Delivery Units,Adults and Communities,Other Agencies - Third Party P,30147499,SCIMITAR CARE HOTELS PLC,"3,848.57",20/12/2016
Delivery Units,Adults and Communities,Other Agencies - Third Party P,80007110,SCIMITAR CARE HOTELS PLC,905.00,22/12/2016
Delivery Units,Adults and Communities,Other Agencies - Third Party P,30147876,SEAFORTH LODGE,"2,448.78",22/12/2016
Delivery Units,Adults and Communities,Other Agencies - Third Party P,30147883,SEAFORTH LODGE,"2,448.78",22/12/2016
Delivery Units,Adults and Communities,Other Agencies - Third Party P,30147909,SEAFORTH LODGE,"2,448.78",22/12/2016
Delivery Units,Adults and Communities,Other Agencies - Third Party P,30147912,SEAFORTH LODGE,"2,249.45",22/12/2016
Delivery Units,Adults and Communities,Other Agencies - Third Party P,30147915,SEAFORTH LODGE,"2,249.45",22/12/2016
Delivery Units,Adults and Communities,Other Agencies - Third Party P,30147935,SEAFORTH LODGE,"2,448.78",22/12/2016
Delivery Units,Adults and Communities,Other Agencies - Third Party P,30147946,SEAFORTH LODGE,"2,448.78",22/12/2016
Delivery Units,Adults and Communities,Other Agencies - Third Party P,30147948,SEAFORTH LODGE,"2,448.78",22/12/2016
Delivery Units,Adults and Communities,Other Agencies - Third Party P,30145472,SELF UNLIMITED-LONDON REGION,"1,921.28",09/12/2016
Delivery Units,Adults and Communities,Other Agencies - Third Party P,30145473,SELF UNLIMITED-LONDON REGION,"2,120.72",09/12/2016
Delivery Units,Adults and Communities,Other Agencies - Third Party P,30145474,SELF UNLIMITED-LONDON REGION,"4,221.36",09/12/2016
Delivery Units,Adults and Communities,Other Agencies - Third Party P,30145475,SELF UNLIMITED-LONDON REGION,"1,048.80",09/12/2016
Delivery Units,Adults and Communities,Other Agencies - Third Party P,30145476,SELF UNLIMITED-LONDON REGION,"3,040.00",09/12/2016
Delivery Units,Adults and Communities,Other Agencies - Third Party P,30145477,SELF UNLIMITED-LONDON REGION,"3,947.12",09/12/2016
Delivery Units,Adults and Communities,Other Agencies - Third Party P,30145478,SELF UNLIMITED-LONDON REGION,"1,276.80",09/12/2016
Delivery Units,Adults and Communities,Other Agencies - Third Party P,30145479,SELF UNLIMITED-LONDON REGION,"1,690.24",09/12/2016
Delivery Units,Adults and Communities,Other Agencies - Third Party P,30145480,SELF UNLIMITED-LONDON REGION,"1,088.32",09/12/2016
Delivery Units,Adults and Communities,Other Agencies - Third Party P,30145482,SELF UNLIMITED-LONDON REGION,"3,279.56",09/12/2016
Delivery Units,Adults and Communities,Other Agencies - Third Party P,30145483,SELF UNLIMITED-LONDON REGION,"1,033.60",09/12/2016
Delivery Units,Adults and Communities,Other Agencies - Third Party P,30145485,SELF UNLIMITED-LONDON REGION,"3,008.00",09/12/2016
Delivery Units,Adults and Communities,Other Agencies - Third Party P,30145486,SELF UNLIMITED-LONDON REGION,"3,240.64",09/12/2016
Delivery Units,Adults and Communities,Other Agencies - Third Party P,30145487,SELF UNLIMITED-LONDON REGION,"3,040.00",09/12/2016
Delivery Units,Adults and Communities,Other Agencies - Third Party P,30145488,SELF UNLIMITED-LONDON REGION,"3,756.24",09/12/2016
Delivery Units,Adults and Communities,Other Agencies - Third Party P,30145489,SELF UNLIMITED-LONDON REGION,"2,145.04",09/12/2016
Delivery Units,Adults and Communities,Other Agencies - Third Party P,30145490,SELF UNLIMITED-LONDON REGION,"2,128.00",09/12/2016
Delivery Units,Adults and Communities,Other Agencies - Third Party P,30145491,SELF UNLIMITED-LONDON REGION,"11,354.64",09/12/2016
Delivery Units,Adults and Communities,Other Agencies - Third Party P,30145492,SELF UNLIMITED-LONDON REGION,"3,947.12",09/12/2016
Delivery Units,Adults and Communities,Other Agencies - Third Party P,30145494,SELF UNLIMITED-LONDON REGION,"1,094.40",09/12/2016
Delivery Units,Adults and Communities,Other Agencies - Third Party P,30145495,SELF UNLIMITED-LONDON REGION,"1,033.60",09/12/2016
Delivery Units,Adults and Communities,Other Agencies - Third Party P,30145496,SELF UNLIMITED-LONDON REGION,"1,921.28",09/12/2016
Delivery Units,Adults and Communities,Other Agencies - Third Party P,30145497,SELF UNLIMITED-LONDON REGION,"1,914.00",09/12/2016
Delivery Units,Adults and Communities,Other Agencies - Third Party P,30145498,SELF UNLIMITED-LONDON REGION,"2,926.32",09/12/2016
Delivery Units,Adults and Communities,Other Agencies - Third Party P,30145534,SELF UNLIMITED-LONDON REGION,"4,522.28",09/12/2016
Delivery Units,Adults and Communities,Other Agencies - Third Party P,30146367,SELF UNLIMITED-LONDON REGION,"3,920.00",14/12/2016
Delivery Units,Adults and Communities,Other Agencies - Third Party P,30146368,SELF UNLIMITED-LONDON REGION,"3,920.00",14/12/2016
Delivery Units,Adults and Communities,Other Agencies - Third Party P,30146369,SELF UNLIMITED-LONDON REGION,"3,920.00",14/12/2016
Delivery Units,Adults and Communities,Other Agencies - Third Party P,30147194,SEQUENCE CARE GROUP,"8,192.86",20/12/2016
Delivery Units,Adults and Communities,Other Agencies - Third Party P,30147195,SEQUENCE CARE GROUP,"8,263.71",20/12/2016
Delivery Units,Adults and Communities,Other Agencies - Third Party P,30147235,SEVA CARE HOME,"2,216.41",20/12/2016
Delivery Units,Adults and Communities,Other Agencies - Third Party P,30147236,SEVA CARE HOME,"2,216.41",20/12/2016
Delivery Units,Adults and Communities,Other Agencies - Third Party P,30147237,SEVA CARE HOME,"2,249.45",20/12/2016
Delivery Units,Adults and Communities,Other Agencies - Third Party P,30145287,SGSL LTD,"2,908.80",06/12/2016
Delivery Units,Adults and Communities,Other Agencies - Third Party P,30146205,SGSL LTD,"2,399.88",13/12/2016
Delivery Units,Adults and Communities,Other Agencies - Third Party P,30146206,SGSL LTD,"2,720.00",13/12/2016
Delivery Units,Adults and Communities,Other Agencies - Third Party P,30147117,SGSL LTD,"2,772.00",20/12/2016
Delivery Units,Adults and Communities,Other Agencies - Third Party P,30147122,SGSL LTD,"2,707.60",20/12/2016
Delivery Units,Adults and Communities,Other Agencies - Third Party P,30147124,SGSL LTD,"3,218.40",20/12/2016
Delivery Units,Adults and Communities,Other Agencies - Third Party P,30147145,SGSL LTD,"3,335.20",20/12/2016
Delivery Units,Adults and Communities,Other Agencies - Third Party P,30145264,SHAW TRUST LIMITED,280.00,06/12/2016
Delivery Units,Adults and Communities,Other Agencies - Third Party P,30147125,SHINE PARTNERSHIPS LTD,"2,640.00",20/12/2016
Delivery Units,Adults and Communities,Other Agencies - Third Party P,30147127,SHINE PARTNERSHIPS LTD,"2,600.00",20/12/2016
Delivery Units,Adults and Communities,Other Agencies - Third Party P,30147141,SHINE PARTNERSHIPS LTD,"2,640.00",20/12/2016
Delivery Units,Adults and Communities,Other Agencies - Third Party P,30147142,SHINE PARTNERSHIPS LTD,"2,640.00",20/12/2016
Delivery Units,Adults and Communities,Other Agencies - Third Party P,30147246,SIMEON CARE,"3,200.40",20/12/2016
Delivery Units,Adults and Communities,Other Agencies - Third Party P,30147841,SMILE CARE AGENTS LTD,976.00,22/12/2016
Delivery Units,Adults and Communities,Other Agencies - Third Party P,30147845,SMILE CARE AGENTS LTD,"3,293.26",22/12/2016
Delivery Units,Adults and Communities,Other Agencies - Third Party P,30147952,SNEH CARE,358.00,22/12/2016
Delivery Units,Adults and Communities,Other Agencies - Third Party P,30147780,SOMA HEALTHCARE LTD,"1,011.00",22/12/2016
Delivery Units,Adults and Communities,Other Agencies - Third Party P,30147781,SOMA HEALTHCARE LTD,580.00,22/12/2016
Delivery Units,Adults and Communities,Other Agencies - Third Party P,30147782,SOMA HEALTHCARE LTD,"1,066.00",22/12/2016
Delivery Units,Adults and Communities,Other Agencies - Third Party P,30147783,SOMA HEALTHCARE LTD,430.00,22/12/2016
Delivery Units,Adults and Communities,Other Agencies - Third Party P,30147784,SOMA HEALTHCARE LTD,208.00,22/12/2016
Delivery Units,Adults and Communities,Other Agencies - Third Party P,30147785,SOMA HEALTHCARE LTD,729.00,22/12/2016
Delivery Units,Adults and Communities,Other Agencies - Third Party P,30147786,SOMA HEALTHCARE LTD,774.00,22/12/2016
Delivery Units,Adults and Communities,Other Agencies - Third Party P,30147787,SOMA HEALTHCARE LTD,726.00,22/12/2016
Delivery Units,Adults and Communities,Other Agencies - Third Party P,30147788,SOMA HEALTHCARE LTD,654.00,22/12/2016
Delivery Units,Adults and Communities,Other Agencies - Third Party P,30147789,SOMA HEALTHCARE LTD,237.90,22/12/2016
Delivery Units,Adults and Communities,Other Agencies - Third Party P,30147790,SOMA HEALTHCARE LTD,694.00,22/12/2016
Delivery Units,Adults and Communities,Other Agencies - Third Party P,30147791,SOMA HEALTHCARE LTD,630.00,22/12/2016
Delivery Units,Adults and Communities,Other Agencies - Third Party P,30147792,SOMA HEALTHCARE LTD,570.00,22/12/2016
Delivery Units,Adults and Communities,Other Agencies - Third Party P,30147793,SOMA HEALTHCARE LTD,270.00,22/12/2016
Delivery Units,Adults and Communities,Other Agencies - Third Party P,30147794,SOMA HEALTHCARE LTD,731.95,22/12/2016
Delivery Units,Adults and Communities,Other Agencies - Third Party P,30147795,SOMA HEALTHCARE LTD,654.00,22/12/2016
Delivery Units,Adults and Communities,Other Agencies - Third Party P,30147796,SOMA HEALTHCARE LTD,623.50,22/12/2016
Delivery Units,Adults and Communities,Other Agencies - Third Party P,30147797,SOMA HEALTHCARE LTD,439.95,22/12/2016
Delivery Units,Adults and Communities,Other Agencies - Third Party P,30147798,SOMA HEALTHCARE LTD,587.00,22/12/2016
Delivery Units,Adults and Communities,Other Agencies - Third Party P,30147799,SOMA HEALTHCARE LTD,614.10,22/12/2016
Delivery Units,Adults and Communities,Other Agencies - Third Party P,30147800,SOMA HEALTHCARE LTD,415.95,22/12/2016
Delivery Units,Adults and Communities,Other Agencies - Third Party P,30147801,SOMA HEALTHCARE LTD,415.95,22/12/2016
Delivery Units,Adults and Communities,Other Agencies - Third Party P,30147802,SOMA HEALTHCARE LTD,614.10,22/12/2016
Delivery Units,Adults and Communities,Other Agencies - Third Party P,30147803,SOMA HEALTHCARE LTD,385.95,22/12/2016
Delivery Units,Adults and Communities,Other Agencies - Third Party P,30147248,SONESTA NURSING HOME LTD.,"5,054.11",20/12/2016
Delivery Units,Adults and Communities,Other Agencies - Third Party P,30147250,SONESTA NURSING HOME LTD.,"2,655.55",20/12/2016
Delivery Units,Adults and Communities,Other Agencies - Third Party P,30147251,SONESTA NURSING HOME LTD.,"2,484.22",20/12/2016
Delivery Units,Adults and Communities,Other Agencies - Third Party P,30147252,SONESTA NURSING HOME LTD.,"2,655.55",20/12/2016
Delivery Units,Adults and Communities,Other Agencies - Third Party P,30147253,SONESTA NURSING HOME LTD.,"2,569.89",20/12/2016
Delivery Units,Adults and Communities,Other Agencies - Third Party P,30147254,SONESTA NURSING HOME LTD.,"2,655.55",20/12/2016
Delivery Units,Adults and Communities,Other Agencies - Third Party P,30147255,SONESTA NURSING HOME LTD.,"2,569.89",20/12/2016
Delivery Units,Adults and Communities,Other Agencies - Third Party P,30147256,SONESTA NURSING HOME LTD.,"2,569.89",20/12/2016
Delivery Units,Adults and Communities,Other Agencies - Third Party P,30147257,SONESTA NURSING HOME LTD.,"2,655.55",20/12/2016
Delivery Units,Adults and Communities,Other Agencies - Third Party P,30147258,SONESTA NURSING HOME LTD.,"2,655.55",20/12/2016
Delivery Units,Adults and Communities,Other Agencies - Third Party P,30147259,SONESTA NURSING HOME LTD.,"2,569.89",20/12/2016
Delivery Units,Adults and Communities,Other Agencies - Third Party P,30147260,SONESTA NURSING HOME LTD.,"2,655.55",20/12/2016
Delivery Units,Adults and Communities,Other Agencies - Third Party P,30147261,SONESTA NURSING HOME LTD.,"2,569.89",20/12/2016
Delivery Units,Adults and Communities,Other Agencies - Third Party P,30146595,SPRINGDENE,"4,542.86",19/12/2016
Delivery Units,Adults and Communities,Other Agencies - Third Party P,30146805,SPRINGVIEW,"3,000.00",19/12/2016
Delivery Units,Adults and Communities,Other Agencies - Third Party P,30145530,ST ANNS HOME-LITTLE SISTERS OF THE POOR,"5,955.62",19/12/2016
Delivery Units,Adults and Communities,Other Agencies - Third Party P,30147947,ST ANNS HOME-LITTLE SISTERS OF THE POOR,"2,707.05",22/12/2016
Delivery Units,Adults and Communities,Other Agencies - Third Party P,30145384,ST JOSEPH'S PASTORAL CENTRE,776.00,08/12/2016
Delivery Units,Adults and Communities,Other Agencies - Third Party P,30145385,ST JOSEPH'S PASTORAL CENTRE,716.00,08/12/2016
Delivery Units,Adults and Communities,Other Agencies - Third Party P,30145387,ST JOSEPH'S PASTORAL CENTRE,664.00,08/12/2016
Delivery Units,Adults and Communities,Other Agencies - Third Party P,30145388,ST JOSEPH'S PASTORAL CENTRE,160.00,08/12/2016
Delivery Units,Adults and Communities,Other Agencies - Third Party P,30145389,ST JOSEPH'S PASTORAL CENTRE,256.00,08/12/2016
Delivery Units,Adults and Communities,Other Agencies - Third Party P,30145390,ST JOSEPH'S PASTORAL CENTRE,236.00,08/12/2016
Delivery Units,Adults and Communities,Other Agencies - Third Party P,30145391,ST JOSEPH'S PASTORAL CENTRE,88.00,08/12/2016
Delivery Units,Adults and Communities,Other Agencies - Third Party P,30145392,ST JOSEPH'S PASTORAL CENTRE,392.00,08/12/2016
Delivery Units,Adults and Communities,Other Agencies - Third Party P,30145393,ST JOSEPH'S PASTORAL CENTRE,544.00,08/12/2016
Delivery Units,Adults and Communities,Other Agencies - Third Party P,30145394,ST JOSEPH'S PASTORAL CENTRE,460.00,08/12/2016
Delivery Units,Adults and Communities,Other Agencies - Third Party P,30145469,ST. MARK'S DAY SERVICE,"1,999.08",16/12/2016
Delivery Units,Adults and Communities,Other Agencies - Third Party P,30147483,STAMFORD NURSING CENTRE,"2,931.90",21/12/2016
Delivery Units,Adults and Communities,Other Agencies - Third Party P,30147345,STRIVING FOR INDEPENDENCE HOMES LLP,"6,022.86",20/12/2016
Delivery Units,Adults and Communities,Other Agencies - Third Party P,30147446,STRIVING FOR INDEPENDENCE HOMES LLP,"6,022.86",20/12/2016
Delivery Units,Adults and Communities,Other Agencies - Third Party P,30147275,SUNRIDGE HOUSING ASSOCIATION LTD,"2,902.40",20/12/2016
Delivery Units,Adults and Communities,Other Agencies - Third Party P,30145431,SWIFTHAND CARE SERVICES T/A HERITAGE HEA,78.75,09/12/2016
Delivery Units,Adults and Communities,Other Agencies - Third Party P,30147465,SYDMAR LODGE,"2,790.00",20/12/2016
Delivery Units,Adults and Communities,Other Agencies - Third Party P,30147466,SYDMAR LODGE,"3,022.50",20/12/2016
Delivery Units,Adults and Communities,Other Agencies - Third Party P,30147467,SYDMAR LODGE,"2,571.23",20/12/2016
Delivery Units,Adults and Communities,Other Agencies - Third Party P,30147469,SYDMAR LODGE,"2,361.93",20/12/2016
Delivery Units,Adults and Communities,Other Agencies - Third Party P,30147470,SYDMAR LODGE,"2,361.93",20/12/2016
Delivery Units,Adults and Communities,Other Agencies - Third Party P,30147471,SYDMAR LODGE,"10,971.57",20/12/2016
Delivery Units,Adults and Communities,Other Agencies - Third Party P,30147944,SYDMAR LODGE,"16,740.93",22/12/2016
Delivery Units,Adults and Communities,Other Agencies - Third Party P,30147759,TENTERDEN HOUSE,"3,957.50",22/12/2016
Delivery Units,Adults and Communities,Other Agencies - Third Party P,30145269,THE BARNETGROUP LIMITED,"1,849.60",06/12/2016
Delivery Units,Adults and Communities,Other Agencies - Third Party P,30145271,THE BARNETGROUP LIMITED,"1,620.00",06/12/2016
Delivery Units,Adults and Communities,Other Agencies - Third Party P,30145272,THE BARNETGROUP LIMITED,144.40,06/12/2016
Delivery Units,Adults and Communities,Other Agencies - Third Party P,30145273,THE BARNETGROUP LIMITED,304.00,06/12/2016
Delivery Units,Adults and Communities,Other Agencies - Third Party P,30145405,THE BARNETGROUP LIMITED,462.40,08/12/2016
Delivery Units,Adults and Communities,Other Agencies - Third Party P,30145406,THE BARNETGROUP LIMITED,346.80,08/12/2016
Delivery Units,Adults and Communities,Other Agencies - Third Party P,30145407,THE BARNETGROUP LIMITED,231.20,08/12/2016
Delivery Units,Adults and Communities,Other Agencies - Third Party P,30145408,THE BARNETGROUP LIMITED,180.00,08/12/2016
Delivery Units,Adults and Communities,Other Agencies - Third Party P,30145409,THE BARNETGROUP LIMITED,270.00,08/12/2016
Delivery Units,Adults and Communities,Other Agencies - Third Party P,30145410,THE BARNETGROUP LIMITED,360.00,08/12/2016
Delivery Units,Adults and Communities,Other Agencies - Third Party P,30145411,THE BARNETGROUP LIMITED,270.00,08/12/2016
Delivery Units,Adults and Communities,Other Agencies - Third Party P,30145412,THE BARNETGROUP LIMITED,462.40,08/12/2016
Delivery Units,Adults and Communities,Other Agencies - Third Party P,30145456,THE BARNETGROUP LIMITED,"6,047.45",09/12/2016
Delivery Units,Adults and Communities,Other Agencies - Third Party P,30147056,THE BARNETGROUP LIMITED,881.60,20/12/2016
Delivery Units,Adults and Communities,Other Agencies - Third Party P,30145421,THE CAMDEN SOCIETY,458.16,15/12/2016
Delivery Units,Adults and Communities,Other Agencies - Third Party P,30145422,THE CAMDEN SOCIETY,440.00,15/12/2016
Delivery Units,Adults and Communities,Other Agencies - Third Party P,30147403,THE CHRISTIAN CARE TRUST,"2,211.80",20/12/2016
Delivery Units,Adults and Communities,Other Agencies - Third Party P,30147352,THE DISABILITIES TRUST,"7,758.06",20/12/2016
Delivery Units,Adults and Communities,Other Agencies - Third Party P,30147432,THE DISABILITIES TRUST,"11,038.48",20/12/2016
Delivery Units,Adults and Communities,Other Agencies - Third Party P,30147433,THE DISABILITIES TRUST,"15,921.33",20/12/2016
Delivery Units,Adults and Communities,Other Agencies - Third Party P,30147434,THE DISABILITIES TRUST,"18,232.43",20/12/2016
Delivery Units,Adults and Communities,Other Agencies - Third Party P,30146834,THE ELMS CARE HOME (BUPA),"2,320.37",19/12/2016
Delivery Units,Adults and Communities,Other Agencies - Third Party P,30147270,THE HOLLIES CARE HOME,"2,407.86",20/12/2016
Delivery Units,Adults and Communities,Other Agencies - Third Party P,30146842,THE KINGSDOWNE SOCIETY,"2,211.80",19/12/2016
Delivery Units,Adults and Communities,Other Agencies - Third Party P,30146843,THE KINGSDOWNE SOCIETY,"2,824.00",19/12/2016
Delivery Units,Adults and Communities,Other Agencies - Third Party P,30146844,THE KINGSDOWNE SOCIETY,"2,211.80",19/12/2016
Delivery Units,Adults and Communities,Other Agencies - Third Party P,30147921,THE KINGSDOWNE SOCIETY,"2,031.76",22/12/2016
Delivery Units,Adults and Communities,Other Agencies - Third Party P,30147922,THE KINGSDOWNE SOCIETY,"2,031.76",22/12/2016
Delivery Units,Adults and Communities,Other Agencies - Third Party P,30147878,THE LIMES RESIDENTIAL HOME,"2,249.45",22/12/2016
Delivery Units,Adults and Communities,Other Agencies - Third Party P,30147884,THE LIMES RESIDENTIAL HOME,"2,448.78",22/12/2016
Delivery Units,Adults and Communities,Other Agencies - Third Party P,30147907,THE LIMES RESIDENTIAL HOME,"2,448.78",22/12/2016
Delivery Units,Adults and Communities,Other Agencies - Third Party P,30147910,THE LIMES RESIDENTIAL HOME,"2,249.45",22/12/2016
Delivery Units,Adults and Communities,Other Agencies - Third Party P,30147918,THE LIMES RESIDENTIAL HOME,"2,448.78",22/12/2016
Delivery Units,Adults and Communities,Other Agencies - Third Party P,30147919,THE LIMES RESIDENTIAL HOME,"2,448.78",22/12/2016
Delivery Units,Adults and Communities,Other Agencies - Third Party P,30147933,THE LIMES RESIDENTIAL HOME,"2,249.45",22/12/2016
Delivery Units,Adults and Communities,Other Agencies - Third Party P,30147934,THE LIMES RESIDENTIAL HOME,"2,249.45",22/12/2016
Delivery Units,Adults and Communities,Other Agencies - Third Party P,30147950,THE LIMES RESIDENTIAL HOME,"2,249.45",22/12/2016
Delivery Units,Adults and Communities,Other Agencies - Third Party P,30145423,THE MEATH EPILEPSY TRUST,"8,790.00",09/12/2016
Delivery Units,Adults and Communities,Other Agencies - Third Party P,30147472,THE NATIONAL SOCIETY FOR EPILEPSY,"4,789.85",28/12/2016
Delivery Units,Adults and Communities,Other Agencies - Third Party P,30147473,THE NATIONAL SOCIETY FOR EPILEPSY,"10,119.29",28/12/2016
Delivery Units,Adults and Communities,Other Agencies - Third Party P,30147425,THE REGARD PARTNERSHIP LTD,"8,040.65",20/12/2016
Delivery Units,Adults and Communities,Other Agencies - Third Party P,30145304,THE RICHMOND FELLOWSHIP,"9,331.43",06/12/2016
Delivery Units,Adults and Communities,Other Agencies - Third Party P,30145305,THE RICHMOND FELLOWSHIP,"3,942.86",06/12/2016
Delivery Units,Adults and Communities,Other Agencies - Third Party P,30147875,THE RICHMOND FELLOWSHIP,"4,074.29",22/12/2016
Delivery Units,Adults and Communities,Other Agencies - Third Party P,30147245,THE WOODSIDE HOME,362.80,20/12/2016
Delivery Units,Adults and Communities,Other Agencies - Third Party P,30147406,THE WOODSIDE HOME,"2,031.76",20/12/2016
Delivery Units,Adults and Communities,Other Agencies - Third Party P,30147407,THE WOODSIDE HOME,"2,031.76",20/12/2016
Delivery Units,Adults and Communities,Other Agencies - Third Party P,30147408,THE WOODSIDE HOME,"2,031.76",20/12/2016
Delivery Units,Adults and Communities,Other Agencies - Third Party P,30147409,THE WOODSIDE HOME,"2,211.80",20/12/2016
Delivery Units,Adults and Communities,Other Agencies - Third Party P,30147410,THE WOODSIDE HOME,"2,211.80",20/12/2016
Delivery Units,Adults and Communities,Other Agencies - Third Party P,30147411,THE WOODSIDE HOME,"2,031.76",20/12/2016
Delivery Units,Adults and Communities,Other Agencies - Third Party P,30147412,THE WOODSIDE HOME,"2,031.76",20/12/2016
Delivery Units,Adults and Communities,Other Agencies - Third Party P,30147413,THE WOODSIDE HOME,"2,211.80",20/12/2016
Delivery Units,Adults and Communities,Other Agencies - Third Party P,30147908,THE WOODSIDE HOME,"2,031.76",22/12/2016
Delivery Units,Adults and Communities,Other Agencies - Third Party P,30147320,THOUGHTS OF OTHERS LTD,"1,445.92",20/12/2016
Delivery Units,Adults and Communities,Other Agencies - Third Party P,30143694,TOGETHER FOR MENTAL WELLBEING,"8,500.00",13/12/2016
Delivery Units,Adults and Communities,Other Agencies - Third Party P,30147435,TORRINGTON HOMES,710.93,20/12/2016
Delivery Units,Adults and Communities,Other Agencies - Third Party P,30147482,TORRINGTON HOMES,"1,342.88",20/12/2016
Delivery Units,Adults and Communities,Other Agencies - Third Party P,30147717,TORRINGTON HOMES,"2,448.78",22/12/2016
Delivery Units,Adults and Communities,Other Agencies - Third Party P,30147718,TORRINGTON HOMES,"2,448.78",22/12/2016
Delivery Units,Adults and Communities,Other Agencies - Third Party P,30147719,TORRINGTON HOMES,"2,448.78",22/12/2016
Delivery Units,Adults and Communities,Other Agencies - Third Party P,30147721,TORRINGTON HOMES,"2,448.78",22/12/2016
Delivery Units,Adults and Communities,Other Agencies - Third Party P,30147722,TORRINGTON HOMES,"2,249.45",22/12/2016
Delivery Units,Adults and Communities,Other Agencies - Third Party P,30147723,TORRINGTON HOMES,"2,448.78",22/12/2016
Delivery Units,Adults and Communities,Other Agencies - Third Party P,30147724,TORRINGTON HOMES,"2,448.78",22/12/2016
Delivery Units,Adults and Communities,Other Agencies - Third Party P,30147725,TORRINGTON HOMES,"2,249.45",22/12/2016
Delivery Units,Adults and Communities,Other Agencies - Third Party P,30147726,TORRINGTON HOMES,"2,249.45",22/12/2016
Delivery Units,Adults and Communities,Other Agencies - Third Party P,30147727,TORRINGTON HOMES,"2,448.78",22/12/2016
Delivery Units,Adults and Communities,Other Agencies - Third Party P,30147283,TOWERTREND LTD,"3,321.43",20/12/2016
Delivery Units,Adults and Communities,Other Agencies - Third Party P,30145453,TREEHAVEN,"6,091.36",14/12/2016
Delivery Units,Adults and Communities,Other Agencies - Third Party P,30145454,TREEHAVEN,"5,210.68",16/12/2016
Delivery Units,Adults and Communities,Other Agencies - Third Party P,30147017,TWO RIVERS,"3,300.00",21/12/2016
Delivery Units,Adults and Communities,Other Agencies - Third Party P,30147018,TWO RIVERS,"1,964.00",21/12/2016
Delivery Units,Adults and Communities,Other Agencies - Third Party P,30147020,TWO RIVERS,"4,376.00",21/12/2016
Delivery Units,Adults and Communities,Other Agencies - Third Party P,30147220,TWO RIVERS,"3,012.72",21/12/2016
Delivery Units,Adults and Communities,Other Agencies - Third Party P,30147221,TWO RIVERS,348.00,21/12/2016
Delivery Units,Adults and Communities,Other Agencies - Third Party P,30147153,UNIQUE SUPPORT UK LTD,"7,400.12",20/12/2016
Delivery Units,Adults and Communities,Other Agencies - Third Party P,30145066,VENTRY RESIDENTIAL CARE LTD,"2,184.04",01/12/2016
Delivery Units,Adults and Communities,Other Agencies - Third Party P,30145505,VENTRY RESIDENTIAL CARE LTD,"2,184.04",09/12/2016
Delivery Units,Adults and Communities,Other Agencies - Third Party P,30146825,VENTRY RESIDENTIAL CARE LTD,"2,211.80",19/12/2016
Delivery Units,Adults and Communities,Other Agencies - Third Party P,30146826,VENTRY RESIDENTIAL CARE LTD,"2,211.80",19/12/2016
Delivery Units,Adults and Communities,Other Agencies - Third Party P,30147492,VILLA SCALABRINI,"2,216.41",23/12/2016
Delivery Units,Adults and Communities,Other Agencies - Third Party P,30139662,VOYAGE CARE,-881.59,01/12/2016
Delivery Units,Adults and Communities,Other Agencies - Third Party P,30139663,VOYAGE CARE,-156.90,01/12/2016
Delivery Units,Adults and Communities,Other Agencies - Third Party P,30147479,VOYAGE LTD (SOLOR CARE),"6,718.89",20/12/2016
Delivery Units,Adults and Communities,Other Agencies - Third Party P,30147497,WESTGATE HOUSE CARE CENTRE,"3,725.76",21/12/2016
Delivery Units,Adults and Communities,Other Agencies - Third Party P,30146535,WESTMINSTER HEALTH CARE LTD,"4,350.90",19/12/2016
Delivery Units,Adults and Communities,Other Agencies - Third Party P,30146536,WESTMINSTER HEALTH CARE LTD,"2,244.13",19/12/2016
Delivery Units,Adults and Communities,Other Agencies - Third Party P,30146537,WESTMINSTER HEALTH CARE LTD,"4,707.17",19/12/2016
